{"text_format":"3","workbook":"xlsx","n_sheets":34,"sheets":["Инструкция","Лог обновления","Титульный","Территории ИП","ИП","Комментарии","Проверка","AllSheetsInThisWorkbook","TEHSHEET","et_union","mod_00","mod_01","mod_02","mod_com","modProv","modFill","modHTTP","modReestr","modfrmReestr","modInstruction","modUpdTemplMain","modfrmCheckUpdates","modfrmRegion","REESTR_MO","REESTR_ORG","REESTR_IP","REESTR_IP_2018","REESTR_TER","REESTR_CNCSN","REESTR_OBJECT","REESTR_STOP_REASON","modClassifierValidate","modCheckCyan","modHyp"],"not_rendered":{"images":24,"macros":1,"defined_names":230,"comments":2},"read":"whole","date_system":"1900"}

{"sheet":"Инструкция","index":0,"n_rows":104,"n_cols":27,"rows_kept":104,"merged":[[1,1,1,6],[2,1,2,2],[4,1,4,24],[6,4,12,23],[13,4,18,23],[20,5,20,12],[20,15,20,23],[21,5,21,12],[21,15,21,23],[34,4,38,23],[39,4,39,23],[40,4,44,23],[45,4,56,23],[57,4,57,9],[57,10,57,23],[58,4,58,9],[58,10,58,23],[59,4,59,6],[59,7,59,23],[60,7,60,23],[69,4,69,17],[70,4,70,23],[71,4,71,23],[72,4,72,23],[73,4,73,23],[80,4,80,23],[81,4,81,23],[82,4,82,6],[82,7,82,23],[83,4,83,9],[83,10,83,23],[84,4,84,23],[85,4,85,23],[86,4,86,9],[86,10,86,23],[87,4,87,9],[87,10,87,23],[88,4,88,6],[88,7,88,23],[89,4,89,9],[89,10,89,23],[90,4,90,9],[90,10,90,23],[91,4,91,6],[91,7,91,23],[92,4,92,6],[92,7,92,23],[93,4,93,5],[93,7,93,23],[94,4,94,6],[94,7,94,23],[99,4,99,23],[101,5,101,18],[103,5,103,23]]}
[{"$nulls":26}," (требуется обновление)"]
[null,{"$f":"\"Код шаблона: \" & GetCode()","v":"Код шаблона: INV.VSNA.2019YEAR"}]
[null,{"$f":"\"Версия \" & GetVersion()","v":"Версия 1.0"}]
[]
[null,{"$f":"Титульный!E5","v":"Контроль за использованием инвестиционных ресурсов, включаемых в регулируемые государством цены (тарифы) в сфере водоснабжения за 2019 год"}]
[]
[{"$nulls":4},"• На рабочем месте должен быть установлен MS Office 2007 SP3, 2010, 2013, 2016 с полной версией MS Excel\n\n• Макросы во время работы должны быть включены (!)\n\n• Для корректной работы отчёта требуется выбрать низкий уровень безопасности\n(В меню MS Excel 2007/2010/2013/2016: Параметры Excel | Центр управления безопасностью | Параметры центра управления безопасностью | Параметры макросов | Включить все макросы | ОК)"]
[]
[]
[]
[]
[]
[]
[{"$nulls":4},"• Если Вы работаете в табличном процессоре MS Excel 2007 и выше, то можете использовать для работы формат XLSB (Двоичная книга Excel). При работе в формате XLSB заметно быстрее происходит сохранение файла, а также уменьшается размер по сравнению с форматами XLS и XLSM\n\n• Не рекомендуется снимать защиту с листов и каким-либо образом модифицировать защищаемые формулы и расчётные поля, в противном случае, отчёт будет отклонён системой\n\n• При сохранении не следует выбирать формат XLSX (Книга Excel), так как в указанном формате макросы, необходимые для работы отчёта, безвозвратно удаляются"]
[]
[]
[]
[]
[]
[]
[{"$nulls":4},"A"," - предназначенные для заполнения",{"$nulls":8},"A"," - ссылки и автозаполняемые поля"]
[{"$nulls":4},"A"," - с формулами и константами",{"$nulls":8},"A"," - обязательные для заполнения"]
{"$rows_empty":12}
[{"$nulls":4},"Если в предложенном Вам списке необходимая организация, МР/МО отсутствуют, обновите реестры с помощью кнопок\n\nВ результате синхронизации с базой данных список организаций (МР/МО) будет заменён актуальным (механизм синхронизации требует подключения к сети Интернет и основан на использовании протокола HTTPS (TCP порт 443))\n\nЕсли после обновления Вам не удалось найти необходимую организацию в списке, обратитесь к ответственному за поддержание реестра Вашего региона."]
{"$rows_empty":10}
[{"$nulls":4},"• При сохранении шаблона осуществляется проверка корректности данных, в том числе на наличие значений в ячейках, обязательных для заполнения\n\n• Если какая-то ячейка не удовлетворяет условию проверки, на лист «Проверка» добавляется гиперссылка на данную ячейку и указывается причина ошибки\n\n• В колонке «Статус» для каждого сообщения возможны 2 значения: ошибка и предупреждение\n\n• При наличии сообщений со статусом «Ошибка» шаблон будет отклонён системой и не будет загружен в хранилище данных, сообщения со статусом «Предупреждение» носят информационный характер, и такой шаблон будет принят системой"]
{"$rows_empty":11}
[{"$nulls":4},"Консультации:",{"$nulls":5},"Обратиться за помощью"]
[{"$nulls":4},"Дистрибутивы:",{"$nulls":5},"Перейти"]
{"$rows_empty":10}
[{"$nulls":4},"Общая инструкция по заполнению отчетной формы:"]
[{"$nulls":4},"Инструкция по заполнению"]
[]
[{"$nulls":4},"Обосновывающие материалы необходимо загружать с помощью \"ЕИАС Мониторинг\":"]
[{"$nulls":4},"Руководство по загрузке документов"]
{"$rows_empty":9}
[{"$nulls":4},"Отчётные формы:",{"$nulls":5},"Перейти к разделу"]
[]
[{"$nulls":4},"Контакты специалистов ЦА ФАС России:"]
[{"$nulls":4},"ФИО:",{"$nulls":5},"Бутко Татьяна Викторовна"]
[{"$nulls":4},"E-mail:",{"$nulls":5},"butko@fas.gov.ru"]
[]
[{"$nulls":4},"ФИО:",{"$nulls":5},"Сондоевская Ксения Александровна"]
[{"$nulls":4},"E-mail:",{"$nulls":5},"demicheva@fas.gov.ru"]
{"$rows_empty":8}
[{"$nulls":4},"При наличии подключения к Интернет, можно автоматически проверять наличие доступных обновлений. Выберите способ оповещения о наличии обновлений для отчёта:"]
[]
[{"$nulls":5},"проверять доступные обновления (рекомендуется)",{"$nulls":20},"y"]
[]
[{"$nulls":5},"никогда не проверять наличие обновлений (не рекомендуется)"]

{"sheet":"Лог обновления","index":1,"n_rows":7,"n_cols":3,"rows_kept":7,"hidden":true}
["Дата/Время","Сообщение","Статус"]
["2019-04-15T16:01:26","Проверка доступных обновлений...","Информация"]
["2019-04-15T16:01:27","Нет доступных обновлений для отчёта с кодом INV.VSNA.2019YEAR!","Информация"]
["2019-04-24T11:59:39","Проверка доступных обновлений...","Информация"]
["2019-04-24T11:59:40","Нет доступных обновлений для отчёта с кодом INV.VSNA.2019YEAR!","Информация"]
["2019-04-24T11:59:51","Проверка доступных обновлений...","Информация"]
["2019-04-24T11:59:52","Нет доступных обновлений для отчёта с кодом INV.VSNA.2019YEAR!","Информация"]

{"sheet":"Титульный","index":2,"n_rows":69,"n_cols":10,"rows_kept":69,"merged":[[4,4,4,5]]}
[]
[]
[]
[{"$nulls":5},{"$f":"version","v":"Версия 1.0"}]
[{"$nulls":4},{"$f":"\"Контроль за использованием инвестиционных ресурсов, включаемых в регулируемые государством цены (тарифы) в сфере водоснабжения за \" & god & \" год\"","v":"Контроль за использованием инвестиционных ресурсов, включаемых в регулируемые государством цены (тарифы) в сфере водоснабжения за 2019 год"}]
[]
[{"$nulls":4},"Субъект РФ","Республика Башкортостан"]
[]
[{"$nulls":4},"Период регулирования",2019]
[]
[{"$nulls":4},"Тип отчета","план"]
[]
[{"$nulls":4},"Наименование ИП","Инвестиционная программа АО \"Водоснабжающая компания\" по развитию, модернизации, реконструкции систем коммунального водоснабжения и канализации городского округа город Стерлитамак на 2017 - 2019 годы",null,1,26758634,{"v":16222.83,"d":"16,222.83"}]
[]
[]
[{"$nulls":4},"Наименование организации","АО \"Водоснабжающая компания\""]
[{"$nulls":4},"ИНН","0268055772"]
[{"$nulls":4},"КПП","026801001"]
[{"$nulls":4},"Наименование (описание) обособленного подразделения"]
[]
[{"$nulls":4},"Организационно-правовая форма","1 22 47 | Публичные акционерные общества"]
[{"$nulls":4},"Вид деятельности","Производство (подъём / добыча) воды :: Очистка воды :: Транспортировка воды :: Сбыт (распределение) воды"]
[]
[{"$nulls":4},"ИП утверждена с НДС","нет"]
[]
[]
[]
[]
[]
[]
[{"$nulls":4},"Статус ИП","продолжение ИП"]
[]
[{"$nulls":4},"Показатели качества и надежности","по отдельным мероприятиям"]
[]
[{"$nulls":4},"Мероприятия по концессионному соглашению","ИП не содержит мероприятия, реализуемые в рамках КС"]
[]
[{"$nulls":4},"Корректировка НВВ в связи с неисполнением ИП","нет"]
[]
[]
[{"$nulls":4},"Дата начала ИП","01.01.2017"]
[{"$nulls":4},"Дата окончания ИП","31.12.2019"]
[]
[{"$nulls":4},"Период реализации ИП",{"$f":"CalcPeriod(date_start,date_end)","v":"3 года"}]
[]
[]
[{"$nulls":4},"Наименование решения","Об утверждении инвестиционных программ"]
[{"$nulls":4},"Тип решения","приказ"]
[{"$nulls":4},"Номер решения","04/06-435"]
[{"$nulls":4},"Дата решения","30.11.2017"]
[{"$nulls":4},"Ссылка на обосновывающие материалы (на дату утверждения ИП)","https://portal.eias.ru/Portal/DownloadPage.aspx?type=12&guid=bb8ecfb9-d126-4c5b-908c-55534a4ab604"]
[{"$nulls":4},{"$f":"\"Ссылка на обосновывающие материалы (на дату представления плана на \" & god & \")\"","v":"Ссылка на обосновывающие материалы (на дату представления плана на 2019)"},"https://portal.eias.ru/Portal/DownloadPage.aspx?type=12&guid=cbf591bc-2316-4808-88c8-4487ebc8e95b"]
[]
[]
[{"$nulls":4},"Изменения ИП"]
[{"$nulls":4},"Ссылка на обосновывающие материалы (Изменения ИП)",""]
[]
[]
[{"$nulls":4},"Причина прекращения действия ИП"]
[{"$nulls":4},"Описание причины прекращения действия ИП",""]
[{"$nulls":4},"Ссылка на обосновывающие материалы (ИП прекратила действие)",""]
[]
[{"$nulls":5},"Адрес регулируемой организации"]
[{"$nulls":4},"Юридический адрес","453120, РБ г.Стерлитамак, ул.Днепровская, д.3"]
[{"$nulls":4},"Почтовый адрес","453120, РБ г.Стерлитамак, ул.Днепровская, д.3"]
[{"$nulls":5},"Ответственный за предоставление информации\n (от регулируемой организации)"]
[{"$nulls":4},"Фамилия, имя, отчество","Кутузова Анастасия Петровна"]
[{"$nulls":4},"Должность","начальник ПЭО МУП \"МРКВК\" г.о. город Стерлитамак"]
[{"$nulls":4},"Контактный телефон","8 (3473) 24-00-98"]
[{"$nulls":4},"e-mail","stervod3@mail.ru"]

{"sheet":"Территории ИП","index":3,"n_rows":10,"n_cols":13,"rows_kept":10}
[]
[]
[]
[{"$nulls":3},"Территории оказания услуг, на которых утверждена ИП"]
[{"$nulls":3},{"$f":"region_name & \" \" & org","v":"Республика Башкортостан АО \"Водоснабжающая компания\""}]
[]
[null,null,"1","№ п/п","Муниципальный район","Муниципальное образование","ОКТМО","Тип муниципального образования","Результат проверки наличия данных"]
[{"$nulls":3},0]
[{"$nulls":3},1,"Город Стерлитамак","город Стерлитамак","80745000",{"$f":" IFERROR(IF(LEN(G9)=0,\"\",VLOOKUP(G9,OKTMO_TYPE_LIST,2,FALSE)),\"МО отсутствует\")","v":"городской округ"},"ОК (А)","Поиск данных в ручном режиме",null,null,"ОК"]
[{"$nulls":4},""]

{"sheet":"ИП","index":4,"n_rows":120,"n_cols":77,"rows_kept":120,"merged":[[2,29,2,41],[3,29,3,41],[4,29,4,41],[5,4,5,30],[6,3,7,3],[6,4,7,4],[6,5,7,5],[6,6,7,6],[6,7,6,9],[6,10,7,10],[6,11,7,11],[6,12,7,12],[6,13,7,14],[6,15,7,15],[6,16,7,16],[6,17,7,17],[6,18,6,24],[6,25,6,29],[6,30,7,31],[6,32,7,32],[6,33,7,33],[6,34,7,34],[6,35,7,35],[6,36,7,36],[6,37,7,37],[6,38,7,38],[6,39,7,39],[6,40,7,40],[6,41,7,41],[6,42,7,42],[6,43,7,43],[6,44,7,44],[6,45,7,45],[6,46,7,46],[6,62,7,62],[6,63,7,63],[6,64,7,64],[46,3,47,3],[46,4,47,4],[46,5,47,5],[46,6,47,6],[46,7,46,9],[46,10,47,10],[46,11,47,11],[46,12,47,12],[46,13,47,14],[46,15,47,15],[46,16,47,16],[46,17,47,17],[46,18,46,24],[46,25,46,29],[46,30,47,31],[46,32,47,32],[46,33,47,33],[46,34,47,34],[46,35,47,35],[46,36,47,36],[46,37,47,37],[46,38,47,38],[46,39,47,39],[46,40,47,40],[46,41,47,41],[46,42,47,42],[46,43,47,43],[46,44,47,44],[46,45,47,45],[46,46,47,46],[46,62,47,62],[46,63,47,63],[46,64,47,64],[48,30,48,32],[50,3,54,3],[50,4,54,4],[50,5,54,5],[50,6,54,6],[50,7,54,7],[50,8,54,8],[50,9,54,9],[50,10,54,10],[50,11,54,11],[50,12,54,12],[51,13,53,13],[51,14,53,14],[51,15,53,15],[51,16,53,16],[51,17,53,17],[51,18,53,18],[51,19,53,19],[51,20,53,20],[51,21,53,21],[51,22,53,22],[51,23,53,23],[51,24,53,24],[51,25,53,25],[51,26,53,26],[51,27,53,27],[51,28,53,28],[51,29,53,29],[51,66,53,66],[51,67,53,67],[51,68,53,68],[51,70,53,70],[51,71,53,71],[51,72,53,72],[51,73,53,73],[51,74,53,74],[54,15,54,16],[55,3,59,3],[55,4,59,4],[55,5,59,5],[55,6,59,6],[55,7,59,7],[55,8,59,8],[55,9,59,9],[55,10,59,10],[55,11,59,11],[55,12,59,12],[56,13,58,13],[56,14,58,14],[56,15,58,15],[56,16,58,16],[56,17,58,17],[56,18,58,18],[56,19,58,19],[56,20,58,20],[56,21,58,21],[56,22,58,22],[56,23,58,23],[56,24,58,24],[56,25,58,25],[56,26,58,26],[56,27,58,27],[56,28,58,28],[56,29,58,29],[56,66,58,66],[56,67,58,67],[56,68,58,68],[56,70,58,70],[56,71,58,71],[56,72,58,72],[56,73,58,73],[56,74,58,74],[59,15,59,16],[60,3,64,3],[60,4,64,4],[60,5,64,5],[60,6,64,6],[60,7,64,7],[60,8,64,8],[60,9,64,9],[60,10,64,10],[60,11,64,11],[60,12,64,12],[61,13,63,13],[61,14,63,14],[61,15,63,15],[61,16,63,16],[61,17,63,17],[61,18,63,18],[61,19,63,19],[61,20,63,20],[61,21,63,21],[61,22,63,22],[61,23,63,23],[61,24,63,24],[61,25,63,25],[61,26,63,26],[61,27,63,27],[61,28,63,28],[61,29,63,29],[61,66,63,66],[61,67,63,67],[61,68,63,68],[61,70,63,70],[61,71,63,71],[61,72,63,72],[61,73,63,73],[61,74,63,74],[64,15,64,16],[65,3,69,3],[65,4,69,4],[65,5,69,5],[65,6,69,6],[65,7,69,7],[65,8,69,8],[65,9,69,9],[65,10,69,10],[65,11,69,11],[65,12,69,12],[66,13,68,13],[66,14,68,14],[66,15,68,15],[66,16,68,16],[66,17,68,17],[66,18,68,18],[66,19,68,19],[66,20,68,20],[66,21,68,21],[66,22,68,22],[66,23,68,23],[66,24,68,24],[66,25,68,25],[66,26,68,26],[66,27,68,27],[66,28,68,28],[66,29,68,29],[66,66,68,66],[66,67,68,67],[66,68,68,68],[66,70,68,70],[66,71,68,71],[66,72,68,72],[66,73,68,73],[66,74,68,74],[69,15,69,16],[70,3,74,3],[70,4,74,4],[70,5,74,5],[70,6,74,6],[70,7,74,7],[70,8,74,8],[70,9,74,9],[70,10,74,10],[70,11,74,11],[70,12,74,12],[71,13,73,13],[71,14,73,14],[71,15,73,15],[71,16,73,16],[71,17,73,17],[71,18,73,18],[71,19,73,19],[71,20,73,20],[71,21,73,21],[71,22,73,22],[71,23,73,23],[71,24,73,24],[71,25,73,25],[71,26,73,26],[71,27,73,27],[71,28,73,28],[71,29,73,29],[71,66,73,66],[71,67,73,67],[71,68,73,68],[71,70,73,70],[71,71,73,71],[71,72,73,72],[71,73,73,73],[71,74,73,74],[74,15,74,16],[75,3,79,3],[75,4,79,4],[75,5,79,5],[75,6,79,6],[75,7,79,7],[75,8,79,8],[75,9,79,9],[75,10,79,10],[75,11,79,11],[75,12,79,12],[76,13,78,13],[76,14,78,14],[76,15,78,15],[76,16,78,16],[76,17,78,17],[76,18,78,18],[76,19,78,19],[76,20,78,20],[76,21,78,21],[76,22,78,22],[76,23,78,23],[76,24,78,24],[76,25,78,25],[76,26,78,26],[76,27,78,27],[76,28,78,28],[76,29,78,29],[76,66,78,66],[76,67,78,67],[76,68,78,68],[76,70,78,70],[76,71,78,71],[76,72,78,72],[76,73,78,73],[76,74,78,74],[79,15,79,16],[80,3,84,3],[80,4,84,4],[80,5,84,5],[80,6,84,6],[80,7,84,7],[80,8,84,8],[80,9,84,9],[80,10,84,10],[80,11,84,11],[80,12,84,12],[81,13,83,13],[81,14,83,14],[81,15,83,15],[81,16,83,16],[81,17,83,17],[81,18,83,18],[81,19,83,19],[81,20,83,20],[81,21,83,21],[81,22,83,22],[81,23,83,23],[81,24,83,24],[81,25,83,25],[81,26,83,26],[81,27,83,27],[81,28,83,28],[81,29,83,29],[81,66,83,66],[81,67,83,67],[81,68,83,68],[81,70,83,70],[81,71,83,71],[81,72,83,72],[81,73,83,73],[81,74,83,74],[84,15,84,16],[85,3,89,3],[85,4,89,4],[85,5,89,5],[85,6,89,6],[85,7,89,7],[85,8,89,8],[85,9,89,9],[85,10,89,10],[85,11,89,11],[85,12,89,12],[86,13,88,13],[86,14,88,14],[86,15,88,15],[86,16,88,16],[86,17,88,17],[86,18,88,18],[86,19,88,19],[86,20,88,20],[86,21,88,21],[86,22,88,22],[86,23,88,23],[86,24,88,24],[86,25,88,25],[86,26,88,26],[86,27,88,27],[86,28,88,28],[86,29,88,29],[86,66,88,66],[86,67,88,67],[86,68,88,68],[86,70,88,70],[86,71,88,71],[86,72,88,72],[86,73,88,73],[86,74,88,74],[89,15,89,16],[90,3,94,3],[90,4,94,4],[90,5,94,5],[90,6,94,6],[90,7,94,7],[90,8,94,8],[90,9,94,9],[90,10,94,10],[90,11,94,11],[90,12,94,12],[91,13,93,13],[91,14,93,14],[91,15,93,15],[91,16,93,16],[91,17,93,17],[91,18,93,18],[91,19,93,19],[91,20,93,20],[91,21,93,21],[91,22,93,22],[91,23,93,23],[91,24,93,24],[91,25,93,25],[91,26,93,26],[91,27,93,27],[91,28,93,28],[91,29,93,29],[91,66,93,66],[91,67,93,67],[91,68,93,68],[91,70,93,70],[91,71,93,71],[91,72,93,72],[91,73,93,73],[91,74,93,74],[94,15,94,16],[95,3,99,3],[95,4,99,4],[95,5,99,5],[95,6,99,6],[95,7,99,7],[95,8,99,8],[95,9,99,9],[95,10,99,10],[95,11,99,11],[95,12,99,12],[96,13,98,13],[96,14,98,14],[96,15,98,15],[96,16,98,16],[96,17,98,17],[96,18,98,18],[96,19,98,19],[96,20,98,20],[96,21,98,21],[96,22,98,22],[96,23,98,23],[96,24,98,24],[96,25,98,25],[96,26,98,26],[96,27,98,27],[96,28,98,28],[96,29,98,29],[96,66,98,66],[96,67,98,67],[96,68,98,68],[96,70,98,70],[96,71,98,71],[96,72,98,72],[96,73,98,73],[96,74,98,74],[99,15,99,16],[100,3,104,3],[100,4,104,4],[100,5,104,5],[100,6,104,6],[100,7,104,7],[100,8,104,8],[100,9,104,9],[100,10,104,10],[100,11,104,11],[100,12,104,12],[101,13,103,13],[101,14,103,14],[101,15,103,15],[101,16,103,16],[101,17,103,17],[101,18,103,18],[101,19,103,19],[101,20,103,20],[101,21,103,21],[101,22,103,22],[101,23,103,23],[101,24,103,24],[101,25,103,25],[101,26,103,26],[101,27,103,27],[101,28,103,28],[101,29,103,29],[101,66,103,66],[101,67,103,67],[101,68,103,68],[101,70,103,70],[101,71,103,71],[101,72,103,72],[101,73,103,73],[101,74,103,74],[104,15,104,16],[108,3,109,3],[108,4,109,4],[108,5,109,5],[108,6,109,6],[108,7,108,9],[108,10,109,10],[108,11,109,11],[108,12,109,12],[108,13,109,14],[108,15,109,15],[108,16,109,16],[108,17,109,17],[108,18,108,24],[108,25,108,29],[108,30,109,31],[108,32,109,32],[108,33,109,33],[108,34,109,34],[108,35,109,35],[108,36,109,36],[108,37,109,37],[108,38,109,38],[108,39,109,39],[108,40,109,40],[108,41,109,41],[108,42,109,42],[108,43,109,43],[108,44,109,44],[108,45,109,45],[108,46,109,46],[108,62,109,62],[108,63,109,63],[108,64,109,64],[110,30,110,32],[115,3,116,3],[115,4,116,4],[115,5,116,5],[115,6,116,6],[115,7,115,9],[115,10,116,10],[115,11,116,11],[115,12,116,12],[115,13,116,14],[115,15,116,15],[115,16,116,16],[115,17,116,17],[115,18,115,24],[115,25,115,29],[115,30,116,31],[115,32,116,32],[115,33,116,33],[115,34,116,34],[115,35,116,35],[115,36,116,36],[115,37,116,37],[115,38,116,38],[115,39,116,39],[115,40,116,40],[115,41,116,41],[115,42,116,42],[115,43,116,43],[115,44,116,44],[115,45,116,45],[115,46,116,46],[115,62,116,62],[115,63,116,63],[115,64,116,64],[117,30,117,32]]}
[]
[{"$nulls":4},1]
[{"$nulls":29},{"$f":"\"Размер средств по инвестиционной программе, учтенных в НВВ на \" & god & \" год, тыс.руб.\"","v":"Размер средств по инвестиционной программе, учтенных в НВВ на 2019 год, тыс.руб."},{"$nulls":12},{"v":16222.44,"d":"16,222.44"}]
[{"$nulls":3},{"$f":" \"Справка о финансировании в тыс.руб \" & IF(nds = \"да\", \"(c НДС)\", \"(без НДС)\")","v":"Справка о финансировании в тыс.руб (без НДС)"},{"$nulls":25},{"$f":"\"Размер средств, исключаемых из НВВ на \" & god & \" год, в связи с неисполнением ИП, тыс. руб.\"","v":"Размер средств, исключаемых из НВВ на 2019 год, в связи с неисполнением ИП, тыс. руб."},{"$nulls":12},{"$f":"AU9","v":{"v":0,"d":"0.00"}}]
[{"$nulls":3},{"$f":"region_name & \" \" & org","v":"Республика Башкортостан АО \"Водоснабжающая компания\""},{"$nulls":25},"Расходы на капитальные вложения (инвестиции), тыс.руб.\n",{"$nulls":12},{"$f":"ip_cost","v":{"v":16222.83,"d":"16,222.83"}}]
[]
[{"$nulls":3},"№ п/п","Группа, к которой относятся мероприятия инвестиционной программы","Подгруппа, к которой относятся мероприятия инвестиционной программы","Наименование строек","Территория оказания услуг",null,null,"Период реализации согласно ИП, лет","Плановый год ввода в эксплуатацию / выполнения мероприятия","Стадия выполнения, %","№ объекта",null,"Объект инфраструктуры ВС","Наименование объекта","Тип объекта","Адрес объекта",{"$nulls":6},"Территория оказания услуг",{"$nulls":4},"№ источника",null,"Источник финансирования","В рамках концессионного соглашения","Наименование концессионного соглашения","Дата начала","Дата окончания","Наименование решения по КС","Тип решения по КС","№ решения по КС","Дата принятия решения по КС","Внесены изменения по источникам финансирования","Всего утверждено на весь период реализации ИП (план)","Всего утверждено на весь период реализации ИП (корректировка)","Всего утверждено на весь период реализации ИП (дельта)","Всего утверждено на предыдущий период реализации ИП ",{"$f":"\"Размер средств, исключаемых из НВВ на \" & god & \" год, в связи с неисполнением ИП\"","v":"Размер средств, исключаемых из НВВ на 2019 год, в связи с неисполнением ИП"},{"$f":"\"Утверждено на \" & god & \" (план)\"","v":"Утверждено на 2019 (план)"},{"$f":"\"Утверждено на \" & god & \" (корректировка)\"","v":"Утверждено на 2019 (корректировка)"},{"$f":"\"Утверждено на \" & god & \" (дельта)\"","v":"Утверждено на 2019 (дельта)"},{"$f":"\"Утверждено на \" & god+1 & \" (план)\"","v":"Утверждено на 2020 (план)"},{"$f":"\"Утверждено на \" & god+1 & \" (корректировка)\"","v":"Утверждено на 2020 (корректировка)"},{"$f":"\"Утверждено на \" & god+1 & \" (дельта)\"","v":"Утверждено на 2020 (дельта)"},{"$f":"\"Утверждено на \" & god+2 & \" (план)\"","v":"Утверждено на 2021 (план)"},{"$f":"\"Утверждено на \" & god+2 & \" (корректировка)\"","v":"Утверждено на 2021 (корректировка)"},{"$f":"\"Утверждено на \" & god+2 & \" (дельта)\"","v":"Утверждено на 2021 (дельта)"},{"$f":"\"Утверждено на \" & god+3 & \" (план)\"","v":"Утверждено на 2022 (план)"},{"$f":"\"Утверждено на \" & god+3 & \" (корректировка)\"","v":"Утверждено на 2022 (корректировка)"},{"$f":"\"Утверждено на \" & god+3 & \" (дельта)\"","v":"Утверждено на 2022 (дельта)"},{"$f":"\"Утверждено на \" & god+4 & \" (план)\"","v":"Утверждено на 2023 (план)"},{"$f":"\"Утверждено на \" & god+4 & \" (корректировка)\"","v":"Утверждено на 2023 (корректировка)"},{"$f":"\"Утверждено на \" & god+4 & \" (дельта)\"","v":"Утверждено на 2023 (дельта)"},{"$f":"\"Утверждено на оставшийся период (план)\"","v":"Утверждено на оставшийся период (план)"},{"$f":"\"Утверждено на оставшийся период (корректировка)\"","v":"Утверждено на оставшийся период (корректировка)"},{"$f":"\"Утверждено на оставшийся период (дельта)\"","v":"Утверждено на оставшийся период (дельта)"}]
[{"$nulls":7},"Муниципальный район","Муниципальное образование","ОКТМО",{"$nulls":8},"Муниципальный район","Муниципальное образование","ОКТМО","Населенный пункт","ОКТМО","улица, проезд, проспект, переулок, и т.п.","дом, корпус, строение","Муниципальный район","Муниципальное образование","ОКТМО","Населенный пункт","ОКТМО",{"$nulls":17},"Всего","Всего","Всего","Всего","Всего","Всего","Всего","Всего","Всего","Всего","Всего","Всего","Всего","Всего","Всего"]
[{"$nulls":32},"Всего в рамках ИП"]
[{"$nulls":32},"Всего",{"$nulls":9},{"$f":"SUM(AT10,AV10,AY10,BB10,BE10,BH10,BK10)","v":{"v":211361,"d":"211,361.00"}},{"$f":"SUM(AT10,AW10,AZ10,BC10,BF10,BI10,BL10)","v":{"v":25672,"d":"25,672.00"}},{"$f":"AQ10-AR10","v":{"v":185689,"d":"185,689.00"}},{"$f":"AT11+AT16+AT20+AT24","v":{"v":25672,"d":"25,672.00"}},{"$f":"AU11+AU16+AU20+AU24","v":{"v":0,"d":"0.00"}},{"$f":"AV11+AV16+AV20+AV24","v":{"v":185689,"d":"185,689.00"}},{"$f":"AW11+AW16+AW20+AW24","v":{"v":0,"d":"0.00"}},{"$f":"AV10-AW10","v":{"v":185689,"d":"185,689.00"}},{"$f":"AY11+AY16+AY20+AY24","v":{"v":0,"d":"0.00"}},{"$f":"AZ11+AZ16+AZ20+AZ24","v":{"v":0,"d":"0.00"}},{"$f":"AY10-AZ10","v":{"v":0,"d":"0.00"}},{"$f":"BB11+BB16+BB20+BB24","v":{"v":0,"d":"0.00"}},{"$f":"BC11+BC16+BC20+BC24","v":{"v":0,"d":"0.00"}},{"$f":"BB10-BC10","v":{"v":0,"d":"0.00"}},{"$f":"BE11+BE16+BE20+BE24","v":{"v":0,"d":"0.00"}},{"$f":"BF11+BF16+BF20+BF24","v":{"v":0,"d":"0.00"}},{"$f":"BE10-BF10","v":{"v":0,"d":"0.00"}},{"$f":"BH11+BH16+BH20+BH24","v":{"v":0,"d":"0.00"}},{"$f":"BI11+BI16+BI20+BI24","v":{"v":0,"d":"0.00"}},{"$f":"BH10-BI10","v":{"v":0,"d":"0.00"}},{"$f":"BK11+BK16+BK20+BK24","v":{"v":0,"d":"0.00"}},{"$f":"BL11+BL16+BL20+BL24","v":{"v":0,"d":"0.00"}},{"$f":"BK10-BL10","v":{"v":0,"d":"0.00"}}]
[{"$nulls":31},1,"Собственные средства",{"$nulls":9},{"v":211361,"d":"211,361.00"},{"v":25672,"d":"25,672.00"},{"v":185689,"d":"185,689.00"},{"$f":"AT12+AT13+AT14+AT15","v":{"v":25672,"d":"25,672.00"}},{"$f":"AU12+AU13+AU14+AU15","v":{"v":0,"d":"0.00"}},{"$f":"AV12+AV13+AV14+AV15","v":{"v":185689,"d":"185,689.00"}},{"$f":"AW12+AW13+AW14+AW15","v":{"v":0,"d":"0.00"}},{"v":185689,"d":"185,689.00"},{"$f":"AY12+AY13+AY14+AY15","v":{"v":0,"d":"0.00"}},{"$f":"AZ12+AZ13+AZ14+AZ15","v":{"v":0,"d":"0.00"}},{"v":0,"d":"0.00"},{"$f":"BB12+BB13+BB14+BB15","v":{"v":0,"d":"0.00"}},{"$f":"BC12+BC13+BC14+BC15","v":{"v":0,"d":"0.00"}},{"v":0,"d":"0.00"},{"$f":"BE12+BE13+BE14+BE15","v":{"v":0,"d":"0.00"}},{"$f":"BF12+BF13+BF14+BF15","v":{"v":0,"d":"0.00"}},{"v":0,"d":"0.00"},{"$f":"BH12+BH13+BH14+BH15","v":{"v":0,"d":"0.00"}},{"$f":"BI12+BI13+BI14+BI15","v":{"v":0,"d":"0.00"}},{"v":0,"d":"0.00"},null,{"$f":"BL12+BL13+BL14+BL15","v":{"v":0,"d":"0.00"}},{"$f":"BK11-BL11","v":{"v":0,"d":"0.00"}}]
[{"$nulls":31},"1.1","Прибыль направляемая на инвестиции",{"$nulls":9},{"v":43001,"d":"43,001.00"},{"v":25672,"d":"25,672.00"},{"v":17329,"d":"17,329.00"},{"$f":"SUMIF($AG$49:$AG$120,$AG12,AT$49:AT$120)","v":{"v":25672,"d":"25,672.00"}},{"$f":"SUMIF($BR$49:$BR$120,$BR12,AU$49:AU$120)","v":{"v":0,"d":"0.00"}},{"v":17329,"d":"17,329.00"},{"v":0,"d":"0.00"},{"v":17329,"d":"17,329.00"},{"$f":"SUMIF($BR$49:$BR$120,$BR12,AY$49:AY$120)","v":{"v":0,"d":"0.00"}},{"v":0,"d":"0.00"},{"v":0,"d":"0.00"},{"$f":"SUMIF($BR$49:$BR$120,$BR12,BB$49:BB$120)","v":{"v":0,"d":"0.00"}},{"v":0,"d":"0.00"},{"v":0,"d":"0.00"},{"$f":"SUMIF($BR$49:$BR$120,$BR12,BE$49:BE$120)","v":{"v":0,"d":"0.00"}},{"v":0,"d":"0.00"},{"v":0,"d":"0.00"},{"$f":"SUMIF($BR$49:$BR$120,$BR12,BH$49:BH$120)","v":{"v":0,"d":"0.00"}},{"v":0,"d":"0.00"},{"v":0,"d":"0.00"},{"$f":"SUMIF($BR$49:$BR$120,$BR12,BK$49:BK$120)","v":{"v":0,"d":"0.00"}},{"v":0,"d":"0.00"},{"v":0,"d":"0.00"},{"$nulls":4},{"$f":"AG12 & \"0\"","v":"Прибыль направляемая на инвестиции0"}]
[{"$nulls":31},"1.2","Амортизационные отчисления",{"$nulls":9},{"v":0,"d":"0.00"},{"v":0,"d":"0.00"},{"v":0,"d":"0.00"},{"$f":"SUMIF($AG$49:$AG$120,$AG13,AT$49:AT$120)","v":{"v":0,"d":"0.00"}},{"v":0,"d":"0.00"},{"v":0,"d":"0.00"},{"v":0,"d":"0.00"},{"v":0,"d":"0.00"},{"v":0,"d":"0.00"},{"v":0,"d":"0.00"},{"v":0,"d":"0.00"},{"v":0,"d":"0.00"},{"v":0,"d":"0.00"},{"v":0,"d":"0.00"},{"v":0,"d":"0.00"},{"v":0,"d":"0.00"},{"v":0,"d":"0.00"},{"v":0,"d":"0.00"},{"v":0,"d":"0.00"},{"v":0,"d":"0.00"},{"v":0,"d":"0.00"},{"v":0,"d":"0.00"},{"v":0,"d":"0.00"},{"$nulls":4},{"$f":"AG13 & \"0\"","v":"Амортизационные отчисления0"}]
[{"$nulls":31},"1.3","Прочие собственные средства",{"$nulls":9},{"v":0,"d":"0.00"},{"v":0,"d":"0.00"},{"v":0,"d":"0.00"},{"$f":"SUMIF($AG$49:$AG$120,$AG14,AT$49:AT$120)","v":{"v":0,"d":"0.00"}},{"v":0,"d":"0.00"},{"v":0,"d":"0.00"},{"v":0,"d":"0.00"},{"v":0,"d":"0.00"},{"v":0,"d":"0.00"},{"v":0,"d":"0.00"},{"v":0,"d":"0.00"},{"v":0,"d":"0.00"},{"v":0,"d":"0.00"},{"v":0,"d":"0.00"},{"v":0,"d":"0.00"},{"v":0,"d":"0.00"},{"v":0,"d":"0.00"},{"v":0,"d":"0.00"},{"v":0,"d":"0.00"},{"v":0,"d":"0.00"},null,{"v":0,"d":"0.00"},{"v":0,"d":"0.00"},{"$nulls":4},{"$f":"AG14 & \"0\"","v":"Прочие собственные средства0"}]
[{"$nulls":31},"1.4","За счет платы за технологическое присоединение",{"$nulls":9},{"$f":"SUM(AT15,AV15,AY15,BB15,BE15,BH15,BK15)","v":{"v":168360,"d":"168,360.00"}},{"$f":"SUM(AT15,AW15,AZ15,BC15,BF15,BI15,BL15)","v":{"v":0,"d":"0.00"}},{"$f":"AQ15-AR15","v":{"v":168360,"d":"168,360.00"}},{"$f":"SUMIF($AG$49:$AG$120,$AG15,AT$49:AT$120)","v":{"v":0,"d":"0.00"}},{"v":0,"d":"0.00"},{"v":168360,"d":"168,360.00"},{"v":0,"d":"0.00"},{"$f":"AV15-AW15","v":{"v":168360,"d":"168,360.00"}},{"v":0,"d":"0.00"},{"v":0,"d":"0.00"},{"$f":"AY15-AZ15","v":{"v":0,"d":"0.00"}},{"v":0,"d":"0.00"},{"v":0,"d":"0.00"},{"$f":"BB15-BC15","v":{"v":0,"d":"0.00"}},{"v":0,"d":"0.00"},{"v":0,"d":"0.00"},{"$f":"BE15-BF15","v":{"v":0,"d":"0.00"}},{"v":0,"d":"0.00"},{"v":0,"d":"0.00"},{"$f":"BH15-BI15","v":{"v":0,"d":"0.00"}},{"v":0,"d":"0.00"},{"v":0,"d":"0.00"},{"$f":"BK15-BL15","v":{"v":0,"d":"0.00"}},{"$nulls":4},{"$f":"AG15 & \"0\"","v":"За счет платы за технологическое присоединение0"}]
[{"$nulls":31},"2","Привлеченные средства",{"$nulls":9},{"v":0,"d":"0.00"},{"v":0,"d":"0.00"},{"v":0,"d":"0.00"},{"$f":"SUM(AT17:AT19)","v":{"v":0,"d":"0.00"}},{"$f":"SUM(AU17:AU19)","v":{"v":0,"d":"0.00"}},{"$f":"SUM(AV17:AV19)","v":{"v":0,"d":"0.00"}},{"$f":"SUM(AW17:AW19)","v":{"v":0,"d":"0.00"}},{"v":0,"d":"0.00"},{"$f":"SUM(AY17:AY19)","v":{"v":0,"d":"0.00"}},{"$f":"SUM(AZ17:AZ19)","v":{"v":0,"d":"0.00"}},{"v":0,"d":"0.00"},{"$f":"SUM(BB17:BB19)","v":{"v":0,"d":"0.00"}},{"$f":"SUM(BC17:BC19)","v":{"v":0,"d":"0.00"}},{"v":0,"d":"0.00"},{"$f":"SUM(BE17:BE19)","v":{"v":0,"d":"0.00"}},{"$f":"SUM(BF17:BF19)","v":{"v":0,"d":"0.00"}},{"v":0,"d":"0.00"},{"$f":"SUM(BH17:BH19)","v":{"v":0,"d":"0.00"}},{"$f":"SUM(BI17:BI19)","v":{"v":0,"d":"0.00"}},{"v":0,"d":"0.00"},{"$f":"SUM(BK17:BK19)","v":{"v":0,"d":"0.00"}},{"$f":"SUM(BL17:BL19)","v":{"v":0,"d":"0.00"}},{"v":0,"d":"0.00"}]
[{"$nulls":31},"2.1","Кредиты",{"$nulls":9},{"v":0,"d":"0.00"},{"v":0,"d":"0.00"},{"v":0,"d":"0.00"},{"$f":"SUMIF($AG$49:$AG$120,$AG17,AT$49:AT$120)","v":{"v":0,"d":"0.00"}},{"$f":"SUMIF($BR$49:$BR$120,$BR17,AU$49:AU$120)","v":{"v":0,"d":"0.00"}},{"v":0,"d":"0.00"},{"v":0,"d":"0.00"},{"v":0,"d":"0.00"},{"$f":"SUMIF($BR$49:$BR$120,$BR17,AY$49:AY$120)","v":{"v":0,"d":"0.00"}},{"v":0,"d":"0.00"},{"v":0,"d":"0.00"},{"$f":"SUMIF($BR$49:$BR$120,$BR17,BB$49:BB$120)","v":{"v":0,"d":"0.00"}},{"v":0,"d":"0.00"},{"v":0,"d":"0.00"},{"$f":"SUMIF($BR$49:$BR$120,$BR17,BE$49:BE$120)","v":{"v":0,"d":"0.00"}},{"v":0,"d":"0.00"},{"v":0,"d":"0.00"},{"$f":"SUMIF($BR$49:$BR$120,$BR17,BH$49:BH$120)","v":{"v":0,"d":"0.00"}},{"v":0,"d":"0.00"},{"v":0,"d":"0.00"},{"$f":"SUMIF($BR$49:$BR$120,$BR17,BK$49:BK$120)","v":{"v":0,"d":"0.00"}},{"v":0,"d":"0.00"},{"v":0,"d":"0.00"},{"$nulls":4},{"$f":"AG17 & \"0\"","v":"Кредиты0"}]
[{"$nulls":31},"2.2","Займы",{"$nulls":9},{"v":0,"d":"0.00"},{"v":0,"d":"0.00"},{"v":0,"d":"0.00"},{"$f":"SUMIF($AG$49:$AG$120,$AG18,AT$49:AT$120)","v":{"v":0,"d":"0.00"}},{"v":0,"d":"0.00"},{"v":0,"d":"0.00"},{"v":0,"d":"0.00"},{"v":0,"d":"0.00"},{"v":0,"d":"0.00"},{"v":0,"d":"0.00"},{"v":0,"d":"0.00"},{"v":0,"d":"0.00"},{"v":0,"d":"0.00"},{"v":0,"d":"0.00"},{"v":0,"d":"0.00"},{"v":0,"d":"0.00"},{"v":0,"d":"0.00"},{"v":0,"d":"0.00"},{"v":0,"d":"0.00"},{"v":0,"d":"0.00"},{"v":0,"d":"0.00"},{"v":0,"d":"0.00"},{"v":0,"d":"0.00"},{"$nulls":4},{"$f":"AG18 & \"0\"","v":"Займы0"}]
[{"$nulls":31},"2.3","Прочие привлеченные средства",{"$nulls":9},{"v":0,"d":"0.00"},{"v":0,"d":"0.00"},{"v":0,"d":"0.00"},{"$f":"SUMIF($AG$49:$AG$120,$AG19,AT$49:AT$120)","v":{"v":0,"d":"0.00"}},{"v":0,"d":"0.00"},{"v":0,"d":"0.00"},{"v":0,"d":"0.00"},{"v":0,"d":"0.00"},{"v":0,"d":"0.00"},{"v":0,"d":"0.00"},{"v":0,"d":"0.00"},{"v":0,"d":"0.00"},{"v":0,"d":"0.00"},{"v":0,"d":"0.00"},{"v":0,"d":"0.00"},{"v":0,"d":"0.00"},{"v":0,"d":"0.00"},{"v":0,"d":"0.00"},{"v":0,"d":"0.00"},{"v":0,"d":"0.00"},{"v":0,"d":"0.00"},{"v":0,"d":"0.00"},{"v":0,"d":"0.00"},{"$nulls":4},{"$f":"AG19 & \"0\"","v":"Прочие привлеченные средства0"}]
[{"$nulls":31},"3","Бюджетное финансирование",{"$nulls":9},{"v":0,"d":"0.00"},{"v":0,"d":"0.00"},{"v":0,"d":"0.00"},{"$f":"SUM(AT21:AT23)","v":{"v":0,"d":"0.00"}},{"$f":"SUM(AU21:AU23)","v":{"v":0,"d":"0.00"}},{"$f":"SUM(AV21:AV23)","v":{"v":0,"d":"0.00"}},{"$f":"SUM(AW21:AW23)","v":{"v":0,"d":"0.00"}},{"v":0,"d":"0.00"},{"$f":"SUM(AY21:AY23)","v":{"v":0,"d":"0.00"}},{"$f":"SUM(AZ21:AZ23)","v":{"v":0,"d":"0.00"}},{"v":0,"d":"0.00"},{"$f":"SUM(BB21:BB23)","v":{"v":0,"d":"0.00"}},{"$f":"SUM(BC21:BC23)","v":{"v":0,"d":"0.00"}},{"v":0,"d":"0.00"},{"$f":"SUM(BE21:BE23)","v":{"v":0,"d":"0.00"}},{"$f":"SUM(BF21:BF23)","v":{"v":0,"d":"0.00"}},{"v":0,"d":"0.00"},{"$f":"SUM(BH21:BH23)","v":{"v":0,"d":"0.00"}},{"$f":"SUM(BI21:BI23)","v":{"v":0,"d":"0.00"}},{"v":0,"d":"0.00"},{"$f":"SUM(BK21:BK23)","v":{"v":0,"d":"0.00"}},{"$f":"SUM(BL21:BL23)","v":{"v":0,"d":"0.00"}},{"v":0,"d":"0.00"}]
[{"$nulls":31},"3.1","Федеральный бюджет",{"$nulls":9},{"v":0,"d":"0.00"},{"v":0,"d":"0.00"},{"v":0,"d":"0.00"},{"$f":"SUMIF($AG$49:$AG$120,$AG21,AT$49:AT$120)","v":{"v":0,"d":"0.00"}},{"$f":"SUMIF($BR$49:$BR$120,$BR21,AU$49:AU$120)","v":{"v":0,"d":"0.00"}},{"v":0,"d":"0.00"},{"v":0,"d":"0.00"},{"v":0,"d":"0.00"},{"$f":"SUMIF($BR$49:$BR$120,$BR21,AY$49:AY$120)","v":{"v":0,"d":"0.00"}},{"v":0,"d":"0.00"},{"v":0,"d":"0.00"},{"$f":"SUMIF($BR$49:$BR$120,$BR21,BB$49:BB$120)","v":{"v":0,"d":"0.00"}},{"v":0,"d":"0.00"},{"v":0,"d":"0.00"},{"$f":"SUMIF($BR$49:$BR$120,$BR21,BE$49:BE$120)","v":{"v":0,"d":"0.00"}},{"v":0,"d":"0.00"},{"v":0,"d":"0.00"},{"$f":"SUMIF($BR$49:$BR$120,$BR21,BH$49:BH$120)","v":{"v":0,"d":"0.00"}},{"v":0,"d":"0.00"},{"v":0,"d":"0.00"},{"$f":"SUMIF($BR$49:$BR$120,$BR21,BK$49:BK$120)","v":{"v":0,"d":"0.00"}},{"v":0,"d":"0.00"},{"v":0,"d":"0.00"},{"$nulls":4},{"$f":"AG21 & \"0\"","v":"Федеральный бюджет0"}]
[{"$nulls":31},"3.2","Бюджет субъекта РФ",{"$nulls":9},{"v":0,"d":"0.00"},{"v":0,"d":"0.00"},{"v":0,"d":"0.00"},{"$f":"SUMIF($AG$49:$AG$120,$AG22,AT$49:AT$120)","v":{"v":0,"d":"0.00"}},{"v":0,"d":"0.00"},{"v":0,"d":"0.00"},{"v":0,"d":"0.00"},{"v":0,"d":"0.00"},{"v":0,"d":"0.00"},{"v":0,"d":"0.00"},{"v":0,"d":"0.00"},{"v":0,"d":"0.00"},{"v":0,"d":"0.00"},{"v":0,"d":"0.00"},{"v":0,"d":"0.00"},{"v":0,"d":"0.00"},{"v":0,"d":"0.00"},{"v":0,"d":"0.00"},{"v":0,"d":"0.00"},{"v":0,"d":"0.00"},{"v":0,"d":"0.00"},{"v":0,"d":"0.00"},{"v":0,"d":"0.00"},{"$nulls":4},{"$f":"AG22 & \"0\"","v":"Бюджет субъекта РФ0"}]
[{"$nulls":31},"3.3","Бюджет муниципального образования",{"$nulls":9},{"v":0,"d":"0.00"},{"v":0,"d":"0.00"},{"v":0,"d":"0.00"},{"$f":"SUMIF($AG$49:$AG$120,$AG23,AT$49:AT$120)","v":{"v":0,"d":"0.00"}},{"v":0,"d":"0.00"},{"v":0,"d":"0.00"},{"v":0,"d":"0.00"},{"v":0,"d":"0.00"},{"v":0,"d":"0.00"},{"v":0,"d":"0.00"},{"v":0,"d":"0.00"},{"v":0,"d":"0.00"},{"v":0,"d":"0.00"},{"v":0,"d":"0.00"},{"v":0,"d":"0.00"},{"v":0,"d":"0.00"},{"v":0,"d":"0.00"},{"v":0,"d":"0.00"},{"v":0,"d":"0.00"},{"v":0,"d":"0.00"},{"v":0,"d":"0.00"},{"v":0,"d":"0.00"},{"v":0,"d":"0.00"},{"$nulls":4},{"$f":"AG23 & \"0\"","v":"Бюджет муниципального образования0"}]
[{"$nulls":31},"4","Прочие источники финансирования",{"$nulls":9},{"v":0,"d":"0.00"},{"v":0,"d":"0.00"},{"v":0,"d":"0.00"},{"$f":"SUM(AT25:AT26)","v":{"v":0,"d":"0.00"}},{"$f":"SUM(AU25:AU26)","v":{"v":0,"d":"0.00"}},{"$f":"SUM(AV25:AV26)","v":{"v":0,"d":"0.00"}},{"$f":"SUM(AW25:AW26)","v":{"v":0,"d":"0.00"}},{"v":0,"d":"0.00"},{"$f":"SUM(AY25:AY26)","v":{"v":0,"d":"0.00"}},{"$f":"SUM(AZ25:AZ26)","v":{"v":0,"d":"0.00"}},{"v":0,"d":"0.00"},{"$f":"SUM(BB25:BB26)","v":{"v":0,"d":"0.00"}},{"$f":"SUM(BC25:BC26)","v":{"v":0,"d":"0.00"}},{"v":0,"d":"0.00"},{"$f":"SUM(BE25:BE26)","v":{"v":0,"d":"0.00"}},{"$f":"SUM(BF25:BF26)","v":{"v":0,"d":"0.00"}},{"v":0,"d":"0.00"},{"$f":"SUM(BH25:BH26)","v":{"v":0,"d":"0.00"}},{"$f":"SUM(BI25:BI26)","v":{"v":0,"d":"0.00"}},{"v":0,"d":"0.00"},{"$f":"SUM(BK25:BK26)","v":{"v":0,"d":"0.00"}},{"$f":"SUM(BL25:BL26)","v":{"v":0,"d":"0.00"}},{"v":0,"d":"0.00"}]
[{"$nulls":31},"4.1","Лизинг",{"$nulls":9},{"v":0,"d":"0.00"},{"v":0,"d":"0.00"},{"v":0,"d":"0.00"},{"$f":"SUMIF($AG$49:$AG$120,$AG25,AT$49:AT$120)","v":{"v":0,"d":"0.00"}},{"$f":"SUMIF($BR$49:$BR$120,$BR25,AU$49:AU$120)","v":{"v":0,"d":"0.00"}},{"v":0,"d":"0.00"},{"v":0,"d":"0.00"},{"v":0,"d":"0.00"},{"$f":"SUMIF($BR$49:$BR$120,$BR25,AY$49:AY$120)","v":{"v":0,"d":"0.00"}},{"$f":"SUMIF($BR$49:$BR$120,$BR25,AZ$49:AZ$120)","v":{"v":0,"d":"0.00"}},{"v":0,"d":"0.00"},{"$f":"SUMIF($BR$49:$BR$120,$BR25,BB$49:BB$120)","v":{"v":0,"d":"0.00"}},{"$f":"SUMIF($BR$49:$BR$120,$BR25,BC$49:BC$120)","v":{"v":0,"d":"0.00"}},{"v":0,"d":"0.00"},{"$f":"SUMIF($BR$49:$BR$120,$BR25,BE$49:BE$120)","v":{"v":0,"d":"0.00"}},{"$f":"SUMIF($BR$49:$BR$120,$BR25,BF$49:BF$120)","v":{"v":0,"d":"0.00"}},{"v":0,"d":"0.00"},{"$f":"SUMIF($BR$49:$BR$120,$BR25,BH$49:BH$120)","v":{"v":0,"d":"0.00"}},{"$f":"SUMIF($BR$49:$BR$120,$BR25,BI$49:BI$120)","v":{"v":0,"d":"0.00"}},{"v":0,"d":"0.00"},{"$f":"SUMIF($BR$49:$BR$120,$BR25,BK$49:BK$120)","v":{"v":0,"d":"0.00"}},{"$f":"SUMIF($BR$49:$BR$120,$BR25,BL$49:BL$120)","v":{"v":0,"d":"0.00"}},{"v":0,"d":"0.00"},{"$nulls":4},{"$f":"AG25 & \"0\"","v":"Лизинг0"}]
[{"$nulls":31},"4.2","Прочие",{"$nulls":9},{"v":0,"d":"0.00"},{"v":0,"d":"0.00"},{"v":0,"d":"0.00"},{"$f":"SUMIF($AG$49:$AG$120,$AG26,AT$49:AT$120)","v":{"v":0,"d":"0.00"}},{"v":0,"d":"0.00"},{"v":0,"d":"0.00"},{"v":0,"d":"0.00"},{"v":0,"d":"0.00"},{"$f":"SUMIF($BR$49:$BR$120,$BR26,AY$49:AY$120)","v":{"v":0,"d":"0.00"}},{"$f":"SUMIF($BR$49:$BR$120,$BR26,AZ$49:AZ$120)","v":{"v":0,"d":"0.00"}},{"v":0,"d":"0.00"},{"$f":"SUMIF($BR$49:$BR$120,$BR26,BB$49:BB$120)","v":{"v":0,"d":"0.00"}},{"$f":"SUMIF($BR$49:$BR$120,$BR26,BC$49:BC$120)","v":{"v":0,"d":"0.00"}},{"v":0,"d":"0.00"},{"$f":"SUMIF($BR$49:$BR$120,$BR26,BE$49:BE$120)","v":{"v":0,"d":"0.00"}},{"$f":"SUMIF($BR$49:$BR$120,$BR26,BF$49:BF$120)","v":{"v":0,"d":"0.00"}},{"v":0,"d":"0.00"},{"$f":"SUMIF($BR$49:$BR$120,$BR26,BH$49:BH$120)","v":{"v":0,"d":"0.00"}},{"$f":"SUMIF($BR$49:$BR$120,$BR26,BI$49:BI$120)","v":{"v":0,"d":"0.00"}},{"v":0,"d":"0.00"},{"$f":"SUMIF($BR$49:$BR$120,$BR26,BK$49:BK$120)","v":{"v":0,"d":"0.00"}},{"$f":"SUMIF($BR$49:$BR$120,$BR26,BL$49:BL$120)","v":{"v":0,"d":"0.00"}},{"v":0,"d":"0.00"},{"$nulls":4},{"$f":"AG26 & \"0\"","v":"Прочие0"}]
[{"$nulls":32},"Всего в рамках КС"]
[{"$nulls":32},"Всего",{"$nulls":9},{"$f":"SUM(AT28,AV28,AY28,BB28,BE28,BH28,BK28)","v":{"v":0,"d":"0.00"}},{"$f":"SUM(AT28,AW28,AZ28,BC28,BF28,BI28,BL28)","v":{"v":0,"d":"0.00"}},{"$f":"AQ28-AR28","v":{"v":0,"d":"0.00"}},{"$f":"AT29+AT34+AT38+AT42","v":{"v":0,"d":"0.00"}},{"$f":"AU29+AU34+AU38+AU42","v":{"v":0,"d":"0.00"}},{"$f":"AV29+AV34+AV38+AV42","v":{"v":0,"d":"0.00"}},{"$f":"AW29+AW34+AW38+AW42","v":{"v":0,"d":"0.00"}},{"$f":"AV28-AW28","v":{"v":0,"d":"0.00"}},{"$f":"AY29+AY34+AY38+AY42","v":{"v":0,"d":"0.00"}},{"$f":"AZ29+AZ34+AZ38+AZ42","v":{"v":0,"d":"0.00"}},{"$f":"AY28-AZ28","v":{"v":0,"d":"0.00"}},{"$f":"BB29+BB34+BB38+BB42","v":{"v":0,"d":"0.00"}},{"$f":"BC29+BC34+BC38+BC42","v":{"v":0,"d":"0.00"}},{"$f":"BB28-BC28","v":{"v":0,"d":"0.00"}},{"$f":"BE29+BE34+BE38+BE42","v":{"v":0,"d":"0.00"}},{"$f":"BF29+BF34+BF38+BF42","v":{"v":0,"d":"0.00"}},{"$f":"BE28-BF28","v":{"v":0,"d":"0.00"}},{"$f":"BH29+BH34+BH38+BH42","v":{"v":0,"d":"0.00"}},{"$f":"BI29+BI34+BI38+BI42","v":{"v":0,"d":"0.00"}},{"$f":"BH28-BI28","v":{"v":0,"d":"0.00"}},{"$f":"BK29+BK34+BK38+BK42","v":{"v":0,"d":"0.00"}},{"$f":"BL29+BL34+BL38+BL42","v":{"v":0,"d":"0.00"}},{"$f":"BK28-BL28","v":{"v":0,"d":"0.00"}}]
[{"$nulls":31},1,"Собственные средства",{"$nulls":9},{"v":0,"d":"0.00"},{"v":0,"d":"0.00"},{"v":0,"d":"0.00"},{"$f":"AT30+AT31+AT32+AT33","v":{"v":0,"d":"0.00"}},{"$f":"AU30+AU31+AU32+AU33","v":{"v":0,"d":"0.00"}},{"$f":"AV30+AV31+AV32+AV33","v":{"v":0,"d":"0.00"}},{"$f":"AW30+AW31+AW32+AW33","v":{"v":0,"d":"0.00"}},{"v":0,"d":"0.00"},{"$f":"AY30+AY31+AY32+AY33","v":{"v":0,"d":"0.00"}},{"$f":"AZ30+AZ31+AZ32+AZ33","v":{"v":0,"d":"0.00"}},{"v":0,"d":"0.00"},{"$f":"BB30+BB31+BB32+BB33","v":{"v":0,"d":"0.00"}},{"$f":"BC30+BC31+BC32+BC33","v":{"v":0,"d":"0.00"}},{"v":0,"d":"0.00"},{"$f":"BE30+BE31+BE32+BE33","v":{"v":0,"d":"0.00"}},{"$f":"BF30+BF31+BF32+BF33","v":{"v":0,"d":"0.00"}},{"v":0,"d":"0.00"},{"$f":"BH30+BH31+BH32+BH33","v":{"v":0,"d":"0.00"}},{"$f":"BI30+BI31+BI32+BI33","v":{"v":0,"d":"0.00"}},{"v":0,"d":"0.00"},{"$f":"BK30+BK31+BK32+BK33","v":{"v":0,"d":"0.00"}},{"$f":"BL30+BL31+BL32+BL33","v":{"v":0,"d":"0.00"}},{"v":0,"d":"0.00"}]
[{"$nulls":31},"1.1","Прибыль направляемая на инвестиции",{"$nulls":9},{"v":0,"d":"0.00"},{"v":0,"d":"0.00"},{"v":0,"d":"0.00"},{"$f":"SUMIF($BX$49:$BX$120,$BX30,AT$49:AT$120)","v":{"v":0,"d":"0.00"}},{"v":0,"d":"0.00"},{"v":0,"d":"0.00"},{"v":0,"d":"0.00"},{"v":0,"d":"0.00"},{"$f":"SUMIF($BX$49:$BX$120,$BX30,AY$49:AY$120)","v":{"v":0,"d":"0.00"}},{"v":0,"d":"0.00"},{"v":0,"d":"0.00"},{"$f":"SUMIF($BX$49:$BX$120,$BX30,BB$49:BB$120)","v":{"v":0,"d":"0.00"}},{"v":0,"d":"0.00"},{"v":0,"d":"0.00"},{"$f":"SUMIF($BX$49:$BX$120,$BX30,BE$49:BE$120)","v":{"v":0,"d":"0.00"}},{"v":0,"d":"0.00"},{"v":0,"d":"0.00"},{"$f":"SUMIF($BX$49:$BX$120,$BX30,BH$49:BH$120)","v":{"v":0,"d":"0.00"}},{"v":0,"d":"0.00"},{"v":0,"d":"0.00"},{"$f":"SUMIF($BX$49:$BX$120,$BX30,BK$49:BK$120)","v":{"v":0,"d":"0.00"}},{"v":0,"d":"0.00"},{"v":0,"d":"0.00"},{"$nulls":10},{"$f":"AG30&\"да\"","v":"Прибыль направляемая на инвестициида"}]
[{"$nulls":31},"1.2","Амортизационные отчисления",{"$nulls":9},{"v":0,"d":"0.00"},{"v":0,"d":"0.00"},{"v":0,"d":"0.00"},{"v":0,"d":"0.00"},{"v":0,"d":"0.00"},{"v":0,"d":"0.00"},{"v":0,"d":"0.00"},{"v":0,"d":"0.00"},{"v":0,"d":"0.00"},{"v":0,"d":"0.00"},{"v":0,"d":"0.00"},{"v":0,"d":"0.00"},{"v":0,"d":"0.00"},{"v":0,"d":"0.00"},{"v":0,"d":"0.00"},{"v":0,"d":"0.00"},{"v":0,"d":"0.00"},{"v":0,"d":"0.00"},{"v":0,"d":"0.00"},{"v":0,"d":"0.00"},{"v":0,"d":"0.00"},{"v":0,"d":"0.00"},{"v":0,"d":"0.00"},{"$nulls":10},"Амортизационные отчисленияда"]
[{"$nulls":31},"1.3","Прочие собственные средства",{"$nulls":9},{"v":0,"d":"0.00"},{"v":0,"d":"0.00"},{"v":0,"d":"0.00"},{"v":0,"d":"0.00"},{"v":0,"d":"0.00"},{"v":0,"d":"0.00"},{"v":0,"d":"0.00"},{"v":0,"d":"0.00"},{"v":0,"d":"0.00"},{"v":0,"d":"0.00"},{"v":0,"d":"0.00"},{"v":0,"d":"0.00"},{"v":0,"d":"0.00"},{"v":0,"d":"0.00"},{"v":0,"d":"0.00"},{"v":0,"d":"0.00"},{"v":0,"d":"0.00"},{"v":0,"d":"0.00"},{"v":0,"d":"0.00"},{"v":0,"d":"0.00"},{"v":0,"d":"0.00"},{"v":0,"d":"0.00"},{"v":0,"d":"0.00"},{"$nulls":10},"Прочие собственные средствада"]
[{"$nulls":31},"1.4","За счет платы за технологическое присоединение",{"$nulls":9},{"v":0,"d":"0.00"},{"v":0,"d":"0.00"},{"v":0,"d":"0.00"},{"v":0,"d":"0.00"},{"v":0,"d":"0.00"},{"v":0,"d":"0.00"},{"v":0,"d":"0.00"},{"v":0,"d":"0.00"},{"v":0,"d":"0.00"},{"v":0,"d":"0.00"},{"v":0,"d":"0.00"},{"v":0,"d":"0.00"},{"v":0,"d":"0.00"},{"v":0,"d":"0.00"},{"v":0,"d":"0.00"},{"v":0,"d":"0.00"},{"v":0,"d":"0.00"},{"v":0,"d":"0.00"},{"v":0,"d":"0.00"},{"v":0,"d":"0.00"},{"v":0,"d":"0.00"},{"v":0,"d":"0.00"},{"v":0,"d":"0.00"},{"$nulls":10},"За счет платы за технологическое присоединениеда"]
[{"$nulls":31},"2","Привлеченные средства",{"$nulls":9},{"v":0,"d":"0.00"},{"v":0,"d":"0.00"},{"v":0,"d":"0.00"},{"$f":"SUM(AT35:AT37)","v":{"v":0,"d":"0.00"}},{"$f":"SUM(AU35:AU37)","v":{"v":0,"d":"0.00"}},{"$f":"SUM(AV35:AV37)","v":{"v":0,"d":"0.00"}},{"$f":"SUM(AW35:AW37)","v":{"v":0,"d":"0.00"}},{"v":0,"d":"0.00"},{"$f":"SUM(AY35:AY37)","v":{"v":0,"d":"0.00"}},{"$f":"SUM(AZ35:AZ37)","v":{"v":0,"d":"0.00"}},{"v":0,"d":"0.00"},{"$f":"SUM(BB35:BB37)","v":{"v":0,"d":"0.00"}},{"$f":"SUM(BC35:BC37)","v":{"v":0,"d":"0.00"}},{"v":0,"d":"0.00"},{"$f":"SUM(BE35:BE37)","v":{"v":0,"d":"0.00"}},{"$f":"SUM(BF35:BF37)","v":{"v":0,"d":"0.00"}},{"v":0,"d":"0.00"},{"$f":"SUM(BH35:BH37)","v":{"v":0,"d":"0.00"}},{"$f":"SUM(BI35:BI37)","v":{"v":0,"d":"0.00"}},{"v":0,"d":"0.00"},{"$f":"SUM(BK35:BK37)","v":{"v":0,"d":"0.00"}},{"$f":"SUM(BL35:BL37)","v":{"v":0,"d":"0.00"}},{"v":0,"d":"0.00"}]
[{"$nulls":31},"2.1","Кредиты",{"$nulls":9},{"v":0,"d":"0.00"},{"v":0,"d":"0.00"},{"v":0,"d":"0.00"},{"$f":"SUMIF($BX$49:$BX$120,$BX35,AT$49:AT$120)","v":{"v":0,"d":"0.00"}},{"v":0,"d":"0.00"},{"v":0,"d":"0.00"},{"v":0,"d":"0.00"},{"v":0,"d":"0.00"},{"$f":"SUMIF($BX$49:$BX$120,$BX35,AY$49:AY$120)","v":{"v":0,"d":"0.00"}},{"v":0,"d":"0.00"},{"v":0,"d":"0.00"},{"$f":"SUMIF($BX$49:$BX$120,$BX35,BB$49:BB$120)","v":{"v":0,"d":"0.00"}},{"v":0,"d":"0.00"},{"v":0,"d":"0.00"},{"$f":"SUMIF($BX$49:$BX$120,$BX35,BE$49:BE$120)","v":{"v":0,"d":"0.00"}},{"v":0,"d":"0.00"},{"v":0,"d":"0.00"},{"$f":"SUMIF($BX$49:$BX$120,$BX35,BH$49:BH$120)","v":{"v":0,"d":"0.00"}},{"v":0,"d":"0.00"},{"v":0,"d":"0.00"},{"$f":"SUMIF($BX$49:$BX$120,$BX35,BK$49:BK$120)","v":{"v":0,"d":"0.00"}},{"v":0,"d":"0.00"},{"v":0,"d":"0.00"},{"$nulls":10},"Кредитыда"]
[{"$nulls":31},"2.2","Займы",{"$nulls":9},{"v":0,"d":"0.00"},{"v":0,"d":"0.00"},{"v":0,"d":"0.00"},{"v":0,"d":"0.00"},{"v":0,"d":"0.00"},{"v":0,"d":"0.00"},{"v":0,"d":"0.00"},{"v":0,"d":"0.00"},{"v":0,"d":"0.00"},{"v":0,"d":"0.00"},{"v":0,"d":"0.00"},{"v":0,"d":"0.00"},{"v":0,"d":"0.00"},{"v":0,"d":"0.00"},{"v":0,"d":"0.00"},{"v":0,"d":"0.00"},{"v":0,"d":"0.00"},{"v":0,"d":"0.00"},{"v":0,"d":"0.00"},{"v":0,"d":"0.00"},{"v":0,"d":"0.00"},{"v":0,"d":"0.00"},{"v":0,"d":"0.00"},{"$nulls":10},"Займыда"]
[{"$nulls":31},"2.3","Прочие привлеченные средства",{"$nulls":9},{"v":0,"d":"0.00"},{"v":0,"d":"0.00"},{"v":0,"d":"0.00"},{"v":0,"d":"0.00"},{"v":0,"d":"0.00"},{"v":0,"d":"0.00"},{"v":0,"d":"0.00"},{"v":0,"d":"0.00"},{"v":0,"d":"0.00"},{"v":0,"d":"0.00"},{"v":0,"d":"0.00"},{"v":0,"d":"0.00"},{"v":0,"d":"0.00"},{"v":0,"d":"0.00"},{"v":0,"d":"0.00"},{"v":0,"d":"0.00"},{"v":0,"d":"0.00"},{"v":0,"d":"0.00"},{"v":0,"d":"0.00"},{"v":0,"d":"0.00"},{"v":0,"d":"0.00"},{"v":0,"d":"0.00"},{"v":0,"d":"0.00"},{"$nulls":10},"Прочие привлеченные средствада"]
[{"$nulls":31},"3","Бюджетное финансирование",{"$nulls":9},{"v":0,"d":"0.00"},{"v":0,"d":"0.00"},{"v":0,"d":"0.00"},{"$f":"SUM(AT39:AT41)","v":{"v":0,"d":"0.00"}},{"$f":"SUM(AU39:AU41)","v":{"v":0,"d":"0.00"}},{"$f":"SUM(AV39:AV41)","v":{"v":0,"d":"0.00"}},{"$f":"SUM(AW39:AW41)","v":{"v":0,"d":"0.00"}},{"v":0,"d":"0.00"},{"$f":"SUM(AY39:AY41)","v":{"v":0,"d":"0.00"}},{"$f":"SUM(AZ39:AZ41)","v":{"v":0,"d":"0.00"}},{"v":0,"d":"0.00"},{"$f":"SUM(BB39:BB41)","v":{"v":0,"d":"0.00"}},{"$f":"SUM(BC39:BC41)","v":{"v":0,"d":"0.00"}},{"v":0,"d":"0.00"},{"$f":"SUM(BE39:BE41)","v":{"v":0,"d":"0.00"}},{"$f":"SUM(BF39:BF41)","v":{"v":0,"d":"0.00"}},{"v":0,"d":"0.00"},{"$f":"SUM(BH39:BH41)","v":{"v":0,"d":"0.00"}},{"$f":"SUM(BI39:BI41)","v":{"v":0,"d":"0.00"}},{"v":0,"d":"0.00"},{"$f":"SUM(BK39:BK41)","v":{"v":0,"d":"0.00"}},{"$f":"SUM(BL39:BL41)","v":{"v":0,"d":"0.00"}},{"v":0,"d":"0.00"}]
[{"$nulls":31},"3.1","Федеральный бюджет",{"$nulls":9},{"v":0,"d":"0.00"},{"v":0,"d":"0.00"},{"v":0,"d":"0.00"},{"$f":"SUMIF($BX$49:$BX$120,$BX39,AT$49:AT$120)","v":{"v":0,"d":"0.00"}},{"v":0,"d":"0.00"},{"v":0,"d":"0.00"},{"v":0,"d":"0.00"},{"v":0,"d":"0.00"},{"$f":"SUMIF($BX$49:$BX$120,$BX39,AY$49:AY$120)","v":{"v":0,"d":"0.00"}},{"v":0,"d":"0.00"},{"v":0,"d":"0.00"},{"$f":"SUMIF($BX$49:$BX$120,$BX39,BB$49:BB$120)","v":{"v":0,"d":"0.00"}},{"v":0,"d":"0.00"},{"v":0,"d":"0.00"},{"$f":"SUMIF($BX$49:$BX$120,$BX39,BE$49:BE$120)","v":{"v":0,"d":"0.00"}},{"v":0,"d":"0.00"},{"v":0,"d":"0.00"},{"$f":"SUMIF($BX$49:$BX$120,$BX39,BH$49:BH$120)","v":{"v":0,"d":"0.00"}},{"v":0,"d":"0.00"},{"v":0,"d":"0.00"},{"$f":"SUMIF($BX$49:$BX$120,$BX39,BK$49:BK$120)","v":{"v":0,"d":"0.00"}},{"v":0,"d":"0.00"},{"v":0,"d":"0.00"},{"$nulls":10},"Федеральный бюджетда"]
[{"$nulls":31},"3.2","Бюджет субъекта РФ",{"$nulls":9},{"v":0,"d":"0.00"},{"v":0,"d":"0.00"},{"v":0,"d":"0.00"},{"v":0,"d":"0.00"},{"v":0,"d":"0.00"},{"v":0,"d":"0.00"},{"v":0,"d":"0.00"},{"v":0,"d":"0.00"},{"v":0,"d":"0.00"},{"v":0,"d":"0.00"},{"v":0,"d":"0.00"},{"v":0,"d":"0.00"},{"v":0,"d":"0.00"},{"v":0,"d":"0.00"},{"v":0,"d":"0.00"},{"v":0,"d":"0.00"},{"v":0,"d":"0.00"},{"v":0,"d":"0.00"},{"v":0,"d":"0.00"},{"v":0,"d":"0.00"},{"v":0,"d":"0.00"},{"v":0,"d":"0.00"},{"v":0,"d":"0.00"},{"$nulls":10},"Бюджет субъекта РФда"]
[{"$nulls":31},"3.3","Бюджет муниципального образования",{"$nulls":9},{"v":0,"d":"0.00"},{"v":0,"d":"0.00"},{"v":0,"d":"0.00"},{"v":0,"d":"0.00"},{"v":0,"d":"0.00"},{"v":0,"d":"0.00"},{"v":0,"d":"0.00"},{"v":0,"d":"0.00"},{"v":0,"d":"0.00"},{"v":0,"d":"0.00"},{"v":0,"d":"0.00"},{"v":0,"d":"0.00"},{"v":0,"d":"0.00"},{"v":0,"d":"0.00"},{"v":0,"d":"0.00"},{"v":0,"d":"0.00"},{"v":0,"d":"0.00"},{"v":0,"d":"0.00"},{"v":0,"d":"0.00"},{"v":0,"d":"0.00"},{"v":0,"d":"0.00"},{"v":0,"d":"0.00"},{"v":0,"d":"0.00"},{"$nulls":10},"Бюджет муниципального образованияда"]
[{"$nulls":31},"4","Прочие источники финансирования",{"$nulls":9},{"v":0,"d":"0.00"},{"v":0,"d":"0.00"},{"v":0,"d":"0.00"},{"$f":"SUM(AT43:AT44)","v":{"v":0,"d":"0.00"}},{"$f":"SUM(AU43:AU44)","v":{"v":0,"d":"0.00"}},{"$f":"SUM(AV43:AV44)","v":{"v":0,"d":"0.00"}},{"$f":"SUM(AW43:AW44)","v":{"v":0,"d":"0.00"}},{"v":0,"d":"0.00"},{"$f":"SUM(AY43:AY44)","v":{"v":0,"d":"0.00"}},{"$f":"SUM(AZ43:AZ44)","v":{"v":0,"d":"0.00"}},{"v":0,"d":"0.00"},{"$f":"SUM(BB43:BB44)","v":{"v":0,"d":"0.00"}},{"$f":"SUM(BC43:BC44)","v":{"v":0,"d":"0.00"}},{"v":0,"d":"0.00"},{"$f":"SUM(BE43:BE44)","v":{"v":0,"d":"0.00"}},{"$f":"SUM(BF43:BF44)","v":{"v":0,"d":"0.00"}},{"v":0,"d":"0.00"},{"$f":"SUM(BH43:BH44)","v":{"v":0,"d":"0.00"}},{"$f":"SUM(BI43:BI44)","v":{"v":0,"d":"0.00"}},{"v":0,"d":"0.00"},{"$f":"SUM(BK43:BK44)","v":{"v":0,"d":"0.00"}},{"$f":"SUM(BL43:BL44)","v":{"v":0,"d":"0.00"}},{"v":0,"d":"0.00"}]
[{"$nulls":31},"4.1","Лизинг",{"$nulls":9},{"v":0,"d":"0.00"},{"v":0,"d":"0.00"},{"v":0,"d":"0.00"},{"$f":"SUMIF($BX$49:$BX$120,$BX43,AT$49:AT$120)","v":{"v":0,"d":"0.00"}},{"v":0,"d":"0.00"},{"v":0,"d":"0.00"},{"v":0,"d":"0.00"},{"v":0,"d":"0.00"},{"$f":"SUMIF($BX$49:$BX$120,$BX43,AY$49:AY$120)","v":{"v":0,"d":"0.00"}},{"$f":"SUMIF($BX$49:$BX$120,$BX43,AZ$49:AZ$120)","v":{"v":0,"d":"0.00"}},{"v":0,"d":"0.00"},{"$f":"SUMIF($BX$49:$BX$120,$BX43,BB$49:BB$120)","v":{"v":0,"d":"0.00"}},{"$f":"SUMIF($BX$49:$BX$120,$BX43,BC$49:BC$120)","v":{"v":0,"d":"0.00"}},{"v":0,"d":"0.00"},{"$f":"SUMIF($BX$49:$BX$120,$BX43,BE$49:BE$120)","v":{"v":0,"d":"0.00"}},{"$f":"SUMIF($BX$49:$BX$120,$BX43,BF$49:BF$120)","v":{"v":0,"d":"0.00"}},{"v":0,"d":"0.00"},{"$f":"SUMIF($BX$49:$BX$120,$BX43,BH$49:BH$120)","v":{"v":0,"d":"0.00"}},{"$f":"SUMIF($BX$49:$BX$120,$BX43,BI$49:BI$120)","v":{"v":0,"d":"0.00"}},{"v":0,"d":"0.00"},{"$f":"SUMIF($BX$49:$BX$120,$BX43,BK$49:BK$120)","v":{"v":0,"d":"0.00"}},{"$f":"SUMIF($BX$49:$BX$120,$BX43,BL$49:BL$120)","v":{"v":0,"d":"0.00"}},{"v":0,"d":"0.00"},{"$nulls":10},"Лизингда"]
[{"$nulls":31},"4.2","Прочие",{"$nulls":9},{"v":0,"d":"0.00"},{"v":0,"d":"0.00"},{"v":0,"d":"0.00"},{"v":0,"d":"0.00"},{"v":0,"d":"0.00"},{"v":0,"d":"0.00"},{"v":0,"d":"0.00"},{"v":0,"d":"0.00"},{"$f":"SUMIF($BX$49:$BX$120,$BX44,AY$49:AY$120)","v":{"v":0,"d":"0.00"}},{"$f":"SUMIF($BX$49:$BX$120,$BX44,AZ$49:AZ$120)","v":{"v":0,"d":"0.00"}},{"v":0,"d":"0.00"},{"$f":"SUMIF($BX$49:$BX$120,$BX44,BB$49:BB$120)","v":{"v":0,"d":"0.00"}},{"$f":"SUMIF($BX$49:$BX$120,$BX44,BC$49:BC$120)","v":{"v":0,"d":"0.00"}},{"v":0,"d":"0.00"},{"$f":"SUMIF($BX$49:$BX$120,$BX44,BE$49:BE$120)","v":{"v":0,"d":"0.00"}},{"$f":"SUMIF($BX$49:$BX$120,$BX44,BF$49:BF$120)","v":{"v":0,"d":"0.00"}},{"v":0,"d":"0.00"},{"$f":"SUMIF($BX$49:$BX$120,$BX44,BH$49:BH$120)","v":{"v":0,"d":"0.00"}},{"$f":"SUMIF($BX$49:$BX$120,$BX44,BI$49:BI$120)","v":{"v":0,"d":"0.00"}},{"v":0,"d":"0.00"},{"$f":"SUMIF($BX$49:$BX$120,$BX44,BK$49:BK$120)","v":{"v":0,"d":"0.00"}},{"$f":"SUMIF($BX$49:$BX$120,$BX44,BL$49:BL$120)","v":{"v":0,"d":"0.00"}},{"v":0,"d":"0.00"},{"$nulls":10},"Прочиеда"]
[]
[]
[{"$nulls":3},"№ п/п","Группа, к которой относятся мероприятия инвестиционной программы","Подгруппа, к которой относятся мероприятия инвестиционной программы","Наименование строек","Территория оказания услуг",null,null,"Период реализации согласно ИП, лет","Плановый год ввода в эксплуатацию / выполнения мероприятия","Стадия выполнения, %","№ объекта",null,"Объект инфраструктуры ВС","Наименование объекта","Тип объекта","Адрес объекта",{"$nulls":6},"Территория оказания услуг",{"$nulls":4},"№ источника",null,"Источник финансирования","В рамках концессионного соглашения","Наименование концессионного соглашения","Дата начала","Дата окончания","Наименование решения по КС","Тип решения по КС","№ решения по КС","Дата принятия решения по КС","Внесены изменения по источникам финансирования","Всего утверждено на весь период реализации ИП (план)","Всего утверждено на весь период реализации ИП (корректировка)","Всего утверждено на весь период реализации ИП (дельта)","Всего утверждено на предыдущий период реализации ИП ",{"$f":"\"Размер средств, исключаемых из НВВ на \" & god & \" год, в связи с неисполнением ИП\"","v":"Размер средств, исключаемых из НВВ на 2019 год, в связи с неисполнением ИП"},{"$f":"\"Утверждено на \" & god & \" (план)\"","v":"Утверждено на 2019 (план)"},{"$f":"\"Утверждено на \" & god & \" (корректировка)\"","v":"Утверждено на 2019 (корректировка)"},{"$f":"\"Утверждено на \" & god & \" (дельта)\"","v":"Утверждено на 2019 (дельта)"},{"$f":"\"Утверждено на \" & god+1 & \" (план)\"","v":"Утверждено на 2020 (план)"},{"$f":"\"Утверждено на \" & god+1 & \" (корректировка)\"","v":"Утверждено на 2020 (корректировка)"},{"$f":"\"Утверждено на \" & god+1 & \" (дельта)\"","v":"Утверждено на 2020 (дельта)"},{"$f":"\"Утверждено на \" & god+2 & \" (план)\"","v":"Утверждено на 2021 (план)"},{"$f":"\"Утверждено на \" & god+2 & \" (корректировка)\"","v":"Утверждено на 2021 (корректировка)"},{"$f":"\"Утверждено на \" & god+2 & \" (дельта)\"","v":"Утверждено на 2021 (дельта)"},{"$f":"\"Утверждено на \" & god+3 & \" (план)\"","v":"Утверждено на 2022 (план)"},{"$f":"\"Утверждено на \" & god+3 & \" (корректировка)\"","v":"Утверждено на 2022 (корректировка)"},{"$f":"\"Утверждено на \" & god+3 & \" (дельта)\"","v":"Утверждено на 2022 (дельта)"},{"$f":"\"Утверждено на \" & god+4 & \" (план)\"","v":"Утверждено на 2023 (план)"},{"$f":"\"Утверждено на \" & god+4 & \" (корректировка)\"","v":"Утверждено на 2023 (корректировка)"},{"$f":"\"Утверждено на \" & god+4 & \" (дельта)\"","v":"Утверждено на 2023 (дельта)"},{"$f":"\"Утверждено на оставшийся период (план)\"","v":"Утверждено на оставшийся период (план)"},{"$f":"\"Утверждено на оставшийся период (корректировка)\"","v":"Утверждено на оставшийся период (корректировка)"},{"$f":"\"Утверждено на оставшийся период (дельта)\"","v":"Утверждено на оставшийся период (дельта)"}]
[{"$nulls":7},"Муниципальный район","Муниципальное образование","ОКТМО",{"$nulls":8},"Муниципальный район","Муниципальное образование","ОКТМО","Населенный пункт","ОКТМО","улица, проезд, проспект, переулок, и т.п.","дом, корпус, строение","Муниципальный район","Муниципальное образование","ОКТМО","Населенный пункт","ОКТМО",{"$nulls":17},"Всего","Всего","Всего","Всего","Всего","Всего","Всего","Всего","Всего","Всего","Всего","Всего","Всего","Всего","Всего"]
[{"$nulls":6},"Всего",{"$nulls":35},{"$f":"SUMIF($BN50:$BN106,\"<>1\",AQ50:AQ106)","v":{"v":211361,"d":"211,361.00"}},{"$f":"SUMIF($BN50:$BN106,\"<>1\",AR50:AR106)","v":{"v":25672,"d":"25,672.00"}},{"$f":"AQ49-AR49","v":{"v":185689,"d":"185,689.00"}},{"$f":"SUMIF($BN50:$BN106,\"<>1\",AT50:AT106)","v":{"v":25672,"d":"25,672.00"}},{"$f":"SUMIF($BN50:$BN106,\"<>1\",AU50:AU106)","v":{"v":0,"d":"0.00"}},{"$f":"SUMIF($BN50:$BN106,\"<>1\",AV50:AV106)","v":{"v":185689,"d":"185,689.00"}},{"$f":"SUMIF($BN50:$BN106,\"<>1\",AW50:AW106)","v":{"v":0,"d":"0.00"}},{"$f":"AV49-AW49","v":{"v":185689,"d":"185,689.00"}},{"$f":"SUMIF($BN50:$BN106,\"<>1\",AY50:AY106)","v":{"v":0,"d":"0.00"}},{"$f":"SUMIF($BN50:$BN106,\"<>1\",AZ50:AZ106)","v":{"v":0,"d":"0.00"}},{"$f":"AY49-AZ49","v":{"v":0,"d":"0.00"}},{"$f":"SUMIF($BN50:$BN106,\"<>1\",BB50:BB106)","v":{"v":0,"d":"0.00"}},{"$f":"SUMIF($BN50:$BN106,\"<>1\",BC50:BC106)","v":{"v":0,"d":"0.00"}},{"$f":"BB49-BC49","v":{"v":0,"d":"0.00"}},{"$f":"SUMIF($BN50:$BN106,\"<>1\",BE50:BE106)","v":{"v":0,"d":"0.00"}},{"$f":"SUMIF($BN50:$BN106,\"<>1\",BF50:BF106)","v":{"v":0,"d":"0.00"}},{"$f":"BE49-BF49","v":{"v":0,"d":"0.00"}},{"$f":"SUMIF($BN50:$BN106,\"<>1\",BH50:BH106)","v":{"v":0,"d":"0.00"}},{"$f":"SUMIF($BN50:$BN106,\"<>1\",BI50:BI106)","v":{"v":0,"d":"0.00"}},{"$f":"BH49-BI49","v":{"v":0,"d":"0.00"}},{"$f":"SUMIF($BN50:$BN106,\"<>1\",BK50:BK106)","v":{"v":0,"d":"0.00"}},{"$f":"SUMIF($BN50:$BN106,\"<>1\",BL50:BL106)","v":{"v":0,"d":"0.00"}},{"$f":"BK49-BL49","v":{"v":0,"d":"0.00"}}]
[{"$nulls":3},0]
[{"$nulls":3},1,"Реконструкция или модернизация существующих объектов водоснабжения в целях снижения уровня износа существующих объектов водоснабжения","реконструкция или модернизация существующих объектов  водоснабжения, за исключением  сетей водоснабжения","Комплексная модернизация насосной станции 3-го подъёма (шкаф контролерный, шкаф управления, уровнемер, датчик давления)","Город Стерлитамак","город Стерлитамак",80745000,3,2019,{"v":19.8015982364288,"d":"19.80"}]
[{"$nulls":14},1,"да","Насосная станция 3 подъема","НС","Город Стерлитамак","Город Стерлитамак","80745000","г Стерлитамак","80745000001","ул. Элеваторная","86а","Город Стерлитамак","Город Стерлитамак","80745000","г Стерлитамак","80745000001"]
[{"$nulls":31},"1","Прибыль направляемая на инвестиции","нет","",{"$nulls":6},"нет",{"$f":"SUM(AT53,AV53,AY53,BB53,BE53,BH53,BK53)","v":{"v":18145,"d":"18,145.00"}},{"$f":"SUM(AT53,AW53,AZ53,BC53,BF53,BI53,BL53)","v":{"v":7186,"d":"7,186.00"}},{"$f":"AQ53-AR53","v":{"v":10959,"d":"10,959.00"}},{"v":7186,"d":"7,186.00"},null,{"v":10959,"d":"10,959.00"},{"$nulls":17},0,{"$nulls":3},{"$f":"AG53 & BN53","v":"Прибыль направляемая на инвестиции0"},{"$nulls":5},{"$f":"AG53&AH53","v":"Прибыль направляемая на инвестициинет"},0]
[null,null,"AddI"]
[null,null,"AddO"]
[{"$nulls":3},2,"Строительство, реконструкция или модернизация объектов  водоснабжения в целях подключения потребителей с указанием объектов  водоснабжения, строительство которых финансируется за счет платы за подключение","строительство новых сетей водоснабжения в целях подключения потребителей","Строительство сетей для подключение объектов к  водоснабжению 5 км","Город Стерлитамак","город Стерлитамак",80745000,1,2019,{"v":0,"d":"0.00"}]
[{"$nulls":14},1,"да","Водопроводная сеть","сеть","Город Стерлитамак","Город Стерлитамак","80745000","г Стерлитамак","80745000001","г. Стерлитамак","/","Город Стерлитамак","Город Стерлитамак","80745000","г Стерлитамак","80745000001"]
[{"$nulls":31},"1","за счет платы за технологическое присоединение","нет","",{"$nulls":6},"нет",{"$f":"SUM(AT58,AV58,AY58,BB58,BE58,BH58,BK58)","v":{"v":23160,"d":"23,160.00"}},{"$f":"SUM(AT58,AW58,AZ58,BC58,BF58,BI58,BL58)","v":{"v":0,"d":"0.00"}},{"$f":"AQ58-AR58","v":{"v":23160,"d":"23,160.00"}},{"v":0,"d":"0.00"},null,{"v":23160,"d":"23,160.00"},{"$nulls":17},0,{"$nulls":3},{"$f":"AG58 & BN58","v":"за счет платы за технологическое присоединение0"},{"$nulls":5},{"$f":"AG58&AH58","v":"за счет платы за технологическое присоединениенет"},0]
[null,null,"AddI"]
[null,null,"AddO"]
[{"$nulls":3},3,"Мероприятия, направленные на повышение энергоэффективности в сфере водоснабжения",null,"Замена насосного агрегата НСП ул.Лесная","Город Стерлитамак","город Стерлитамак",80745000,1,2017,{"v":100,"d":"100.00"}]
[{"$nulls":14},1,"без привязки к объекту"]
[{"$nulls":31},"1","Прибыль направляемая на инвестиции","нет","",{"$nulls":6},"нет",{"$f":"SUM(AT63,AV63,AY63,BB63,BE63,BH63,BK63)","v":{"v":244,"d":"244.00"}},{"$f":"SUM(AT63,AW63,AZ63,BC63,BF63,BI63,BL63)","v":{"v":244,"d":"244.00"}},{"$f":"AQ63-AR63","v":{"v":0,"d":"0.00"}},{"v":244,"d":"244.00"},null,{"v":0,"d":"0.00"},{"$nulls":17},0,{"$nulls":3},{"$f":"AG63 & BN63","v":"Прибыль направляемая на инвестиции0"},{"$nulls":5},{"$f":"AG63&AH63","v":"Прибыль направляемая на инвестициинет"},0]
[null,null,"AddI"]
[null,null,"AddO"]
[{"$nulls":3},4,"Мероприятия, направленные на повышение энергоэффективности в сфере водоснабжения",null,"Внедрение  ветрогенератора или микро ГЭС на источнике Берхомут","Город Стерлитамак","город Стерлитамак",80745000,0,2019,{"v":0,"d":"0.00"}]
[{"$nulls":14},1,"без привязки к объекту"]
[{"$nulls":31},"1","Прибыль направляемая на инвестиции","нет","",{"$nulls":6},"нет",{"$f":"SUM(AT68,AV68,AY68,BB68,BE68,BH68,BK68)","v":{"v":0,"d":"0.00"}},{"$f":"SUM(AT68,AW68,AZ68,BC68,BF68,BI68,BL68)","v":{"v":0,"d":"0.00"}},{"$f":"AQ68-AR68","v":{"v":0,"d":"0.00"}},{"v":0,"d":"0.00"},null,{"v":0,"d":"0.00"},{"$nulls":17},0,{"$nulls":3},{"$f":"AG68 & BN68","v":"Прибыль направляемая на инвестиции0"},{"$nulls":5},{"$f":"AG68&AH68","v":"Прибыль направляемая на инвестициинет"},0]
[null,null,"AddI"]
[null,null,"AddO"]
[{"$nulls":3},5,"Мероприятия, направленные на повышение энергоэффективности в сфере водоснабжения",null,"Техперевооружение первого подъёма ГНС","Город Стерлитамак","город Стерлитамак",80745000,3,2019,{"v":20.8,"d":"20.80"}]
[{"$nulls":14},1,"да","Насосная станция 1 подъема","НС","Город Стерлитамак","Город Стерлитамак","80745000","г Стерлитамак","80745000001","ул. Ольховская","61а","Город Стерлитамак","Город Стерлитамак","80745000","г Стерлитамак","80745000001"]
[{"$nulls":31},"1","Прибыль направляемая на инвестиции","нет","",{"$nulls":6},"нет",{"$f":"SUM(AT73,AV73,AY73,BB73,BE73,BH73,BK73)","v":{"v":1250,"d":"1,250.00"}},{"$f":"SUM(AT73,AW73,AZ73,BC73,BF73,BI73,BL73)","v":{"v":780,"d":"780.00"}},{"$f":"AQ73-AR73","v":{"v":470,"d":"470.00"}},{"v":780,"d":"780.00"},null,{"v":470,"d":"470.00"},{"$nulls":17},0,{"$nulls":3},{"$f":"AG73 & BN73","v":"Прибыль направляемая на инвестиции0"},{"$nulls":5},{"$f":"AG73&AH73","v":"Прибыль направляемая на инвестициинет"},0]
[null,null,"AddI"]
[null,null,"AddO"]
[{"$nulls":3},6,"Реконструкция или модернизация существующих объектов водоснабжения в целях снижения уровня износа существующих объектов водоснабжения","реконструкция или модернизация существующих сетей водоснабжения","Модернизация  водовода  от отм. 220 г.Салавата до Ашкадарского  водозабора в г.Стерлитамак (протяженность участка 1,3 км)","Город Стерлитамак","город Стерлитамак",80745000,2,2018,{"v":29.4582522047875,"d":"29.46"}]
[{"$nulls":14},1,"да","Водопроводная сеть","сеть","Город Стерлитамак","Город Стерлитамак","80745000","г Стерлитамак","80745000001","г. Стерлитамак","/","Город Стерлитамак","Город Стерлитамак","80745000","г Стерлитамак","80745000001"]
[{"$nulls":31},"1","Прибыль направляемая на инвестиции","нет","",{"$nulls":6},"нет",{"$f":"SUM(AT78,AV78,AY78,BB78,BE78,BH78,BK78)","v":{"v":17462,"d":"17,462.00"}},{"$f":"SUM(AT78,AW78,AZ78,BC78,BF78,BI78,BL78)","v":{"v":17462,"d":"17,462.00"}},{"$f":"AQ78-AR78","v":{"v":0,"d":"0.00"}},{"v":17462,"d":"17,462.00"},null,{"v":0,"d":"0.00"},{"$nulls":17},0,{"$nulls":3},{"$f":"AG78 & BN78","v":"Прибыль направляемая на инвестиции0"},{"$nulls":5},{"$f":"AG78&AH78","v":"Прибыль направляемая на инвестициинет"},0]
[null,null,"AddI"]
[null,null,"AddO"]
[{"$nulls":3},7,"Строительство, реконструкция или модернизация объектов  водоснабжения в целях подключения потребителей с указанием объектов  водоснабжения, строительство которых финансируется за счет платы за подключение","строительство новых сетей водоснабжения в целях подключения потребителей","Проектирование и строительство сетей  водоснабжения мкрн.№2,3 «Прибрежный» I, Ду 300 протяжённостью 3,68 км","Город Стерлитамак","город Стерлитамак",80745000,1,2019,{"v":0.210643015521064,"d":"0.21"}]
[{"$nulls":14},1,"да","Водопроводная сеть","сеть","Город Стерлитамак","Город Стерлитамак","80745000","г Стерлитамак","80745000001","г. Стерлитамак","/","Город Стерлитамак","Город Стерлитамак","80745000","г Стерлитамак","80745000001"]
[{"$nulls":31},"1","за счет платы за технологическое присоединение","нет","",{"$nulls":6},"нет",{"$f":"SUM(AT83,AV83,AY83,BB83,BE83,BH83,BK83)","v":{"v":45100,"d":"45,100.00"}},{"$f":"SUM(AT83,AW83,AZ83,BC83,BF83,BI83,BL83)","v":{"v":0,"d":"0.00"}},{"$f":"AQ83-AR83","v":{"v":45100,"d":"45,100.00"}},{"v":0,"d":"0.00"},null,{"v":45100,"d":"45,100.00"},{"$nulls":17},0,{"$nulls":3},{"$f":"AG83 & BN83","v":"за счет платы за технологическое присоединение0"},{"$nulls":5},{"$f":"AG83&AH83","v":"за счет платы за технологическое присоединениенет"},0]
[null,null,"AddI"]
[null,null,"AddO"]
[{"$nulls":3},8,"Строительство, реконструкция или модернизация объектов  водоснабжения в целях подключения потребителей с указанием объектов  водоснабжения, строительство которых финансируется за счет платы за подключение","строительство новых сетей водоснабжения в целях подключения потребителей","Строительство сетей водоснабжения район Заашкадарье, ул.С.Лазо и ул. Ясная , Ду100,Ду 150 протяжённостью 3,7 км","Город Стерлитамак","город Стерлитамак",80745000,1,2019,{"v":0,"d":"0.00"}]
[{"$nulls":14},1,"да","Водопроводная сеть","сеть","Город Стерлитамак","Город Стерлитамак","80745000","г Стерлитамак","80745000001","г. Стерлитамак","/","Город Стерлитамак","Город Стерлитамак","80745000","г Стерлитамак","80745000001"]
[{"$nulls":31},"1","за счет платы за технологическое присоединение","нет","",{"$nulls":6},"нет",{"$f":"SUM(AT88,AV88,AY88,BB88,BE88,BH88,BK88)","v":{"v":21400,"d":"21,400.00"}},{"$f":"SUM(AT88,AW88,AZ88,BC88,BF88,BI88,BL88)","v":{"v":0,"d":"0.00"}},{"$f":"AQ88-AR88","v":{"v":21400,"d":"21,400.00"}},{"v":0,"d":"0.00"},null,{"v":21400,"d":"21,400.00"},{"$nulls":17},0,{"$nulls":3},{"$f":"AG88 & BN88","v":"за счет платы за технологическое присоединение0"},{"$nulls":5},{"$f":"AG88&AH88","v":"за счет платы за технологическое присоединениенет"},0]
[null,null,"AddI"]
[null,null,"AddO"]
[{"$nulls":3},9,"Строительство, реконструкция или модернизация объектов  водоснабжения в целях подключения потребителей с указанием объектов  водоснабжения, строительство которых финансируется за счет платы за подключение","строительство новых сетей водоснабжения в целях подключения потребителей","6, 44 км","Город Стерлитамак","город Стерлитамак",80745000,1,2019,{"v":0,"d":"0.00"}]
[{"$nulls":14},1,"да","Водопроводная сеть","сеть","Город Стерлитамак","Город Стерлитамак","80745000","г Стерлитамак","80745000001","г. Стерлитамак","/","Город Стерлитамак","Город Стерлитамак","80745000","г Стерлитамак","80745000001"]
[{"$nulls":31},"1","за счет платы за технологическое присоединение","нет","",{"$nulls":6},"нет",{"$f":"SUM(AT93,AV93,AY93,BB93,BE93,BH93,BK93)","v":{"v":74200,"d":"74,200.00"}},{"$f":"SUM(AT93,AW93,AZ93,BC93,BF93,BI93,BL93)","v":{"v":0,"d":"0.00"}},{"$f":"AQ93-AR93","v":{"v":74200,"d":"74,200.00"}},{"v":0,"d":"0.00"},null,{"v":74200,"d":"74,200.00"},{"$nulls":17},0,{"$nulls":3},{"$f":"AG93 & BN93","v":"за счет платы за технологическое присоединение0"},{"$nulls":5},{"$f":"AG93&AH93","v":"за счет платы за технологическое присоединениенет"},0]
[null,null,"AddI"]
[null,null,"AddO"]
[{"$nulls":3},10,"Строительство, реконструкция или модернизация объектов  водоснабжения в целях подключения потребителей с указанием объектов  водоснабжения, строительство которых финансируется за счет платы за подключение","строительство новых сетей водоснабжения в целях подключения потребителей","Проектирование строительства сетей водоснабжения, в мкрн. «Радужный»","Город Стерлитамак","город Стерлитамак",80745000,1,2019,{"v":0,"d":"0.00"}]
[{"$nulls":14},1,"да","Водопроводная сеть","сеть","Город Стерлитамак","Город Стерлитамак","80745000","г Стерлитамак","80745000001","г. Стерлитамак","/","Город Стерлитамак","Город Стерлитамак","80745000","г Стерлитамак","80745000001"]
[{"$nulls":31},"1","за счет платы за технологическое присоединение","нет","",{"$nulls":6},"нет",{"$f":"SUM(AT98,AV98,AY98,BB98,BE98,BH98,BK98)","v":{"v":4500,"d":"4,500.00"}},{"$f":"SUM(AT98,AW98,AZ98,BC98,BF98,BI98,BL98)","v":{"v":0,"d":"0.00"}},{"$f":"AQ98-AR98","v":{"v":4500,"d":"4,500.00"}},{"v":0,"d":"0.00"},null,{"v":4500,"d":"4,500.00"},{"$nulls":17},0,{"$nulls":3},{"$f":"AG98 & BN98","v":"за счет платы за технологическое присоединение0"},{"$nulls":5},{"$f":"AG98&AH98","v":"за счет платы за технологическое присоединениенет"},0]
[null,null,"AddI"]
[null,null,"AddO"]
[{"$nulls":3},11,"Мероприятия, направленные на повышение энергоэффективности в сфере водоснабжения",null,"Мероприятия по защите централизованных  систем водоснабжения и их отдельных  объектов  от угроз  техногенного, природного характера и террористических актов, по предотвращению возникновения  аварийных ситуаций, снижению риска и смягчению  последствий  чрезвычайных ситуаций, в том  числе замена освещения, установка  видеонаблюдения и охранной сигнализации по периметру объекта","Город Стерлитамак","город Стерлитамак",80745000,1,2019,{"v":0,"d":"0.00"}]
[{"$nulls":14},1,"без привязки к объекту"]
[{"$nulls":31},"1","Прибыль направляемая на инвестиции","нет","",{"$nulls":6},"нет",{"$f":"SUM(AT103,AV103,AY103,BB103,BE103,BH103,BK103)","v":{"v":5900,"d":"5,900.00"}},{"$f":"SUM(AT103,AW103,AZ103,BC103,BF103,BI103,BL103)","v":{"v":0,"d":"0.00"}},{"$f":"AQ103-AR103","v":{"v":5900,"d":"5,900.00"}},{"v":0,"d":"0.00"},null,{"v":5900,"d":"5,900.00"},{"$nulls":17},0,{"$nulls":3},{"$f":"AG103 & BN103","v":"Прибыль направляемая на инвестиции0"},{"$nulls":5},{"$f":"AG103&AH103","v":"Прибыль направляемая на инвестициинет"},0]
[null,null,"AddI"]
[null,null,"AddO"]
[{"$nulls":4},""]
[]
[]
[{"$nulls":3},"№ п/п","Группа, к которой относятся мероприятия инвестиционной программы","Подгруппа, к которой относятся мероприятия инвестиционной программы","Наименование строек","Территория оказания услуг",null,null,"Период реализации согласно ИП, лет","Плановый год ввода в эксплуатацию / выполнения мероприятия","Стадия выполнения, %","№ объекта",null,"Объект инфраструктуры ВС","Наименование объекта","Тип объекта","Адрес объекта",{"$nulls":6},"Территория оказания услуг",{"$nulls":4},"№ источника",null,"Источник финансирования","В рамках концессионного соглашения","Наименование концессионного соглашения","Дата начала","Дата окончания","Наименование решения по КС","Тип решения по КС","№ решения по КС","Дата принятия решения по КС","Внесены изменения по источникам финансирования","Всего утверждено на весь период реализации ИП (план)","Всего утверждено на весь период реализации ИП (корректировка)","Всего утверждено на весь период реализации ИП (дельта)","Всего утверждено на предыдущий период реализации ИП ",{"$f":"\"Размер средств, исключаемых из НВВ на \" & god & \" год, в связи с неисполнением ИП\"","v":"Размер средств, исключаемых из НВВ на 2019 год, в связи с неисполнением ИП"},{"$f":"\"Утверждено на \" & god & \" (план)\"","v":"Утверждено на 2019 (план)"},{"$f":"\"Утверждено на \" & god & \" (корректировка)\"","v":"Утверждено на 2019 (корректировка)"},{"$f":"\"Утверждено на \" & god & \" (дельта)\"","v":"Утверждено на 2019 (дельта)"},{"$f":"\"Утверждено на \" & god+1 & \" (план)\"","v":"Утверждено на 2020 (план)"},{"$f":"\"Утверждено на \" & god+1 & \" (корректировка)\"","v":"Утверждено на 2020 (корректировка)"},{"$f":"\"Утверждено на \" & god+1 & \" (дельта)\"","v":"Утверждено на 2020 (дельта)"},{"$f":"\"Утверждено на \" & god+2 & \" (план)\"","v":"Утверждено на 2021 (план)"},{"$f":"\"Утверждено на \" & god+2 & \" (корректировка)\"","v":"Утверждено на 2021 (корректировка)"},{"$f":"\"Утверждено на \" & god+2 & \" (дельта)\"","v":"Утверждено на 2021 (дельта)"},{"$f":"\"Утверждено на \" & god+3 & \" (план)\"","v":"Утверждено на 2022 (план)"},{"$f":"\"Утверждено на \" & god+3 & \" (корректировка)\"","v":"Утверждено на 2022 (корректировка)"},{"$f":"\"Утверждено на \" & god+3 & \" (дельта)\"","v":"Утверждено на 2022 (дельта)"},{"$f":"\"Утверждено на \" & god+4 & \" (план)\"","v":"Утверждено на 2023 (план)"},{"$f":"\"Утверждено на \" & god+4 & \" (корректировка)\"","v":"Утверждено на 2023 (корректировка)"},{"$f":"\"Утверждено на \" & god+4 & \" (дельта)\"","v":"Утверждено на 2023 (дельта)"},{"$f":"\"Утверждено на оставшийся период (план)\"","v":"Утверждено на оставшийся период (план)"},{"$f":"\"Утверждено на оставшийся период (корректировка)\"","v":"Утверждено на оставшийся период (корректировка)"},{"$f":"\"Утверждено на оставшийся период (дельта)\"","v":"Утверждено на оставшийся период (дельта)"}]
[{"$nulls":7},"Муниципальный район","Муниципальное образование","ОКТМО",{"$nulls":8},"Муниципальный район","Муниципальное образование","ОКТМО","Населенный пункт","ОКТМО","улица, проезд, проспект, переулок, и т.п.","дом, корпус, строение","Муниципальный район","Муниципальное образование","ОКТМО","Населенный пункт","ОКТМО",{"$nulls":17},"Всего","Всего","Всего","Всего","Всего","Всего","Всего","Всего","Всего","Всего","Всего","Всего","Всего","Всего","Всего"]
[{"$nulls":6},"Всего",{"$nulls":35},{"$f":"SUMIF($BN112:$BN113,\"<>1\",AQ112:AQ113)","v":{"v":0,"d":"0.00"}},{"$f":"SUMIF($BN112:$BN113,\"<>1\",AR112:AR113)","v":{"v":0,"d":"0.00"}},{"$f":"AQ111-AR111","v":{"v":0,"d":"0.00"}},{"$f":"SUMIF($BN112:$BN113,\"<>1\",AT112:AT113)","v":{"v":0,"d":"0.00"}},{"$f":"SUMIF($BN112:$BN113,\"<>1\",AU112:AU113)","v":{"v":0,"d":"0.00"}},{"$f":"SUMIF($BN112:$BN113,\"<>1\",AV112:AV113)","v":{"v":0,"d":"0.00"}},{"$f":"SUMIF($BN112:$BN113,\"<>1\",AW112:AW113)","v":{"v":0,"d":"0.00"}},{"$f":"AV111-AW111","v":{"v":0,"d":"0.00"}},{"$f":"SUMIF($BN112:$BN113,\"<>1\",AY112:AY113)","v":{"v":0,"d":"0.00"}},{"$f":"SUMIF($BN112:$BN113,\"<>1\",AZ112:AZ113)","v":{"v":0,"d":"0.00"}},{"$f":"AY111-AZ111","v":{"v":0,"d":"0.00"}},{"$f":"SUMIF($BN112:$BN113,\"<>1\",BB112:BB113)","v":{"v":0,"d":"0.00"}},{"$f":"SUMIF($BN112:$BN113,\"<>1\",BC112:BC113)","v":{"v":0,"d":"0.00"}},{"$f":"BB111-BC111","v":{"v":0,"d":"0.00"}},{"$f":"SUMIF($BN112:$BN113,\"<>1\",BE112:BE113)","v":{"v":0,"d":"0.00"}},{"$f":"SUMIF($BN112:$BN113,\"<>1\",BF112:BF113)","v":{"v":0,"d":"0.00"}},{"$f":"BE111-BF111","v":{"v":0,"d":"0.00"}},{"$f":"SUMIF($BN112:$BN113,\"<>1\",BH112:BH113)","v":{"v":0,"d":"0.00"}},{"$f":"SUMIF($BN112:$BN113,\"<>1\",BI112:BI113)","v":{"v":0,"d":"0.00"}},{"$f":"BH111-BI111","v":{"v":0,"d":"0.00"}},{"$f":"SUMIF($BN112:$BN113,\"<>1\",BK112:BK113)","v":{"v":0,"d":"0.00"}},{"$f":"SUMIF($BN112:$BN113,\"<>1\",BL112:BL113)","v":{"v":0,"d":"0.00"}},{"$f":"BK111-BL111","v":{"v":0,"d":"0.00"}}]
[{"$nulls":3},0]
[{"$nulls":4},""]
[]
[]
[{"$nulls":3},"№ п/п","Группа, к которой относятся мероприятия инвестиционной программы","Подгруппа, к которой относятся мероприятия инвестиционной программы","Наименование строек","Территория оказания услуг",null,null,"Период реализации согласно ИП, лет","Плановый год ввода в эксплуатацию / выполнения мероприятия","Стадия выполнения, %","№ объекта",null,"Объект инфраструктуры ВС","Наименование объекта","Тип объекта","Адрес объекта",{"$nulls":6},"Территория оказания услуг",{"$nulls":4},"№ источника",null,"Источник финансирования","В рамках концессионного соглашения","Наименование концессионного соглашения","Дата начала","Дата окончания","Наименование решения по КС","Тип решения по КС","№ решения по КС","Дата принятия решения по КС","Внесены изменения по источникам финансирования","Всего утверждено на весь период реализации ИП (план)","Всего утверждено на весь период реализации ИП (корректировка)","Всего утверждено на весь период реализации ИП (дельта)","Всего утверждено на предыдущий период реализации ИП ",{"$f":"\"Размер средств, исключаемых из НВВ на \" & god & \" год, в связи с неисполнением ИП\"","v":"Размер средств, исключаемых из НВВ на 2019 год, в связи с неисполнением ИП"},{"$f":"\"Утверждено на \" & god & \" (план)\"","v":"Утверждено на 2019 (план)"},{"$f":"\"Утверждено на \" & god & \" (корректировка)\"","v":"Утверждено на 2019 (корректировка)"},{"$f":"\"Утверждено на \" & god & \" (дельта)\"","v":"Утверждено на 2019 (дельта)"},{"$f":"\"Утверждено на \" & god+1 & \" (план)\"","v":"Утверждено на 2020 (план)"},{"$f":"\"Утверждено на \" & god+1 & \" (корректировка)\"","v":"Утверждено на 2020 (корректировка)"},{"$f":"\"Утверждено на \" & god+1 & \" (дельта)\"","v":"Утверждено на 2020 (дельта)"},{"$f":"\"Утверждено на \" & god+2 & \" (план)\"","v":"Утверждено на 2021 (план)"},{"$f":"\"Утверждено на \" & god+2 & \" (корректировка)\"","v":"Утверждено на 2021 (корректировка)"},{"$f":"\"Утверждено на \" & god+2 & \" (дельта)\"","v":"Утверждено на 2021 (дельта)"},{"$f":"\"Утверждено на \" & god+3 & \" (план)\"","v":"Утверждено на 2022 (план)"},{"$f":"\"Утверждено на \" & god+3 & \" (корректировка)\"","v":"Утверждено на 2022 (корректировка)"},{"$f":"\"Утверждено на \" & god+3 & \" (дельта)\"","v":"Утверждено на 2022 (дельта)"},{"$f":"\"Утверждено на \" & god+4 & \" (план)\"","v":"Утверждено на 2023 (план)"},{"$f":"\"Утверждено на \" & god+4 & \" (корректировка)\"","v":"Утверждено на 2023 (корректировка)"},{"$f":"\"Утверждено на \" & god+4 & \" (дельта)\"","v":"Утверждено на 2023 (дельта)"},{"$f":"\"Утверждено на оставшийся период (план)\"","v":"Утверждено на оставшийся период (план)"},{"$f":"\"Утверждено на оставшийся период (корректировка)\"","v":"Утверждено на оставшийся период (корректировка)"},{"$f":"\"Утверждено на оставшийся период (дельта)\"","v":"Утверждено на оставшийся период (дельта)"}]
[{"$nulls":7},"Муниципальный район","Муниципальное образование","ОКТМО",{"$nulls":8},"Муниципальный район","Муниципальное образование","ОКТМО","Населенный пункт","ОКТМО","улица, проезд, проспект, переулок, и т.п.","дом, корпус, строение","Муниципальный район","Муниципальное образование","ОКТМО","Населенный пункт","ОКТМО",{"$nulls":17},"Всего","Всего","Всего","Всего","Всего","Всего","Всего","Всего","Всего","Всего","Всего","Всего","Всего","Всего","Всего"]
[{"$nulls":6},"Всего",{"$nulls":35},{"$f":"SUMIF($BN119:$BN120,\"<>1\",AQ119:AQ120)","v":{"v":0,"d":"0.00"}},{"$f":"SUMIF($BN119:$BN120,\"<>1\",AR119:AR120)","v":{"v":0,"d":"0.00"}},{"$f":"AQ118-AR118","v":{"v":0,"d":"0.00"}},{"$f":"SUMIF($BN119:$BN120,\"<>1\",AT119:AT120)","v":{"v":0,"d":"0.00"}},{"$f":"SUMIF($BN119:$BN120,\"<>1\",AU119:AU120)","v":{"v":0,"d":"0.00"}},{"$f":"SUMIF($BN119:$BN120,\"<>1\",AV119:AV120)","v":{"v":0,"d":"0.00"}},{"$f":"SUMIF($BN119:$BN120,\"<>1\",AW119:AW120)","v":{"v":0,"d":"0.00"}},{"$f":"AV118-AW118","v":{"v":0,"d":"0.00"}},{"$f":"SUMIF($BN119:$BN120,\"<>1\",AY119:AY120)","v":{"v":0,"d":"0.00"}},{"$f":"SUMIF($BN119:$BN120,\"<>1\",AZ119:AZ120)","v":{"v":0,"d":"0.00"}},{"$f":"AY118-AZ118","v":{"v":0,"d":"0.00"}},{"$f":"SUMIF($BN119:$BN120,\"<>1\",BB119:BB120)","v":{"v":0,"d":"0.00"}},{"$f":"SUMIF($BN119:$BN120,\"<>1\",BC119:BC120)","v":{"v":0,"d":"0.00"}},{"$f":"BB118-BC118","v":{"v":0,"d":"0.00"}},{"$f":"SUMIF($BN119:$BN120,\"<>1\",BE119:BE120)","v":{"v":0,"d":"0.00"}},{"$f":"SUMIF($BN119:$BN120,\"<>1\",BF119:BF120)","v":{"v":0,"d":"0.00"}},{"$f":"BE118-BF118","v":{"v":0,"d":"0.00"}},{"$f":"SUMIF($BN119:$BN120,\"<>1\",BH119:BH120)","v":{"v":0,"d":"0.00"}},{"$f":"SUMIF($BN119:$BN120,\"<>1\",BI119:BI120)","v":{"v":0,"d":"0.00"}},{"$f":"BH118-BI118","v":{"v":0,"d":"0.00"}},{"$f":"SUMIF($BN119:$BN120,\"<>1\",BK119:BK120)","v":{"v":0,"d":"0.00"}},{"$f":"SUMIF($BN119:$BN120,\"<>1\",BL119:BL120)","v":{"v":0,"d":"0.00"}},{"$f":"BK118-BL118","v":{"v":0,"d":"0.00"}}]
[{"$nulls":3},0]
[{"$nulls":4},""]

{"sheet":"Комментарии","index":5,"n_rows":9,"n_cols":5,"rows_kept":9}
[]
[]
[]
[{"$nulls":3},"Комментарии"]
[{"$nulls":3},{"$f":"region_name & \" \" & org","v":"Республика Башкортостан АО \"Водоснабжающая компания\""}]
[]
[{"$nulls":3},"№ п/п","Комментарий"]
[{"$nulls":3},0]
[{"$nulls":4},"Добавить комментарий"]

{"sheet":"Проверка","index":6,"n_rows":5,"n_cols":4,"rows_kept":5,"merged":[[1,1,1,3]]}
[]
[null,"Результат проверки"]
[]
[null,"Ссылка","Причина","Статус"]
[null,"ИП!AW12","Cумма по источникам финансирования в строке \"Всего\" отклоняется от указанной в мониторинге принятых тарифных решений на величину -100%!","Предупреждение"]

{"sheet":"AllSheetsInThisWorkbook","index":7,"n_rows":28,"n_cols":2,"rows_kept":28,"hidden":true}
["Расчетные листы","Скрытые листы"]
["Инструкция","AllSheetsInThisWorkbook"]
["Лог обновления","TEHSHEET"]
["Титульный","et_union"]
["Территории ИП","mod_00"]
["ИП","mod_01"]
["Комментарии","mod_02"]
["Проверка","mod_com"]
[null,"modProv"]
[null,"modFill"]
[null,"modHTTP"]
[null,"modReestr"]
[null,"modfrmReestr"]
[null,"modInstruction"]
[null,"modUpdTemplMain"]
[null,"modfrmCheckUpdates"]
[null,"modfrmRegion"]
[null,"REESTR_MO"]
[null,"REESTR_ORG"]
[null,"REESTR_IP"]
[null,"REESTR_IP_2018"]
[null,"REESTR_TER"]
[null,"REESTR_CNCSN"]
[null,"REESTR_OBJECT"]
[null,"REESTR_STOP_REASON"]
[null,"modClassifierValidate"]
[null,"modCheckCyan"]
[null,"modHyp"]

{"sheet":"TEHSHEET","index":8,"n_rows":87,"n_cols":21,"rows_kept":87,"hidden":true}
["REGION","ip_list","begin_year_list","year_list","all_year_list","month_list","logical","ist_fin_list","group_list","podgroup_1_list","podgroup_3_list","podgroup_5_list","spr_pok_kach","spr_ip_end_list","spr_ip_type_list",null,"spr_ip_type_list_c","spr_type_report","spr_ks",null,"spr_type"]
["Алтайский край",null,"2017","2017","2003","Январь","да","Прибыль направляемая на инвестиции","Строительство, реконструкция или модернизация объектов  водоснабжения в целях подключения потребителей с указанием объектов  водоснабжения, строительство которых финансируется за счет платы за подключение","строительство новых сетей водоснабжения в целях подключения потребителей","реконструкция или модернизация существующих сетей водоснабжения","вывод из эксплуатации, консервация и демонтаж сетей водоснабжения","по организации","прекращение финансирования","новая ИП","1","корректировка наименования ИП","план","ИП содержит только мероприятия, реализуемые в рамках КС",null,"Водоснабжение"]
["Амурская область",null,null,"2018","2004","Февраль","нет","Амортизационные отчисления","Строительство новых объектов водоснабжения, не связанных с подключением (технологическим присоединением) новых потребителей, в том числе строительство новых  сетей  водоснабжения","строительство иных объектов  водоснабжения, за исключением сетей водоснабжения в целях подключения потребителей","реконструкция или модернизация существующих объектов  водоснабжения, за исключением  сетей водоснабжения","вывод из эксплуатации, консервация и демонтаж иных объектов  водоснабжения, за исключением сетей водоснабжения","по отдельным мероприятиям","выполнение ИП ранее заявленного срока","продолжение ИП","2","корректировка периода ИП","корректировка","ИП, в том числе содержит мероприятия, реализуемые в рамках КС"]
["Архангельская область",null,null,"2019","2005","Март",null,"Прочие собственные средства","Реконструкция или модернизация существующих объектов водоснабжения в целях снижения уровня износа существующих объектов водоснабжения","увеличение пропускной способности существующих сетей водоснабжения в целях подключения потребителей",null,null,"по организации и мероприятиям",null,"прекращение действия ИП","3","корректировка данных организации",null,"ИП не содержит мероприятия, реализуемые в рамках КС"]
["Астраханская область",null,null,"2020","2006","Апрель",null,"За счет платы за технологическое присоединение","Мероприятия, направленные на повышение экологической эффективности","увеличение мощности и производительности существующих объектов водоснабжения, за исключением сетей водоснабжения в целях подключения потребителей",{"$nulls":5},"4","корректировка территорий, на которых утверждена ИП"]
["Белгородская область",null,null,"2021","2007","Май",null,"Кредиты","Вывод из эксплуатации, консервация и демонтаж объектов  водоснабжения",{"$nulls":6},"5","корректировка мероприятий"]
["Брянская область",null,null,"2022","2008","Июнь",null,"Займы","Мероприятия, направленные на повышение энергоэффективности в сфере водоснабжения",{"$nulls":6},"6","корректировка объектов инфраструктуры"]
["Владимирская область",null,null,"2023","2009","Июль",null,"Прочие привлеченные средства",{"$nulls":7},"7","корректировка финансирования ИП"]
["Волгоградская область",null,null,"2024","2010","Август",null,"Федеральный бюджет",{"$nulls":7},"8","прекращение действия ИП"]
["Вологодская область",null,null,"2025","2011","Сентябрь",null,"Бюджет субъекта РФ"]
["Воронежская область",null,null,"2026","2012","Октябрь",null,"Бюджет муниципального образования"]
["г.Байконур",null,null,"2027","2013","Ноябрь",null,"Лизинг"]
["г. Москва",null,null,"2028","2014","Декабрь",null,"Прочие"]
["г.Санкт-Петербург",null,null,"2029","2015"]
["г.Севастополь",null,null,"2030","2016"]
["Еврейская автономная область",null,null,"2031","2017"]
["Забайкальский край",null,null,"2032","2018"]
["Ивановская область",null,null,"2033","2019"]
["Иркутская область",{"$nulls":3},"2020"]
["Кабардино-Балкарская республика",{"$nulls":3},"2021"]
["Калининградская область",{"$nulls":3},"2022"]
["Калужская область",{"$nulls":3},"2023"]
["Камчатский край",{"$nulls":3},"2024"]
["Карачаево-Черкесская республика",{"$nulls":3},"2025"]
["Кемеровская область",{"$nulls":3},"2026"]
["Кировская область",{"$nulls":3},"2027"]
["Костромская область",{"$nulls":3},"2028"]
["Краснодарский край",{"$nulls":3},"2029"]
["Красноярский край",{"$nulls":3},"2030"]
["Курганская область",{"$nulls":3},"2031"]
["Курская область",{"$nulls":3},"2032"]
["Ленинградская область",{"$nulls":3},"2033"]
["Липецкая область"]
["Магаданская область"]
["Московская область"]
["Мурманская область"]
["Ненецкий автономный округ"]
["Нижегородская область"]
["Новгородская область"]
["Новосибирская область"]
["Омская область"]
["Оренбургская область"]
["Орловская область"]
["Пензенская область"]
["Пермский край"]
["Приморский край"]
["Псковская область"]
["Республика Адыгея"]
["Республика Алтай"]
["Республика Башкортостан"]
["Республика Бурятия"]
["Республика Дагестан"]
["Республика Ингушетия"]
["Республика Калмыкия"]
["Республика Карелия"]
["Республика Коми"]
["Республика Крым"]
["Республика Марий Эл"]
["Республика Мордовия"]
["Республика Саха (Якутия)"]
["Республика Северная Осетия-Алания"]
["Республика Татарстан"]
["Республика Тыва"]
["Республика Хакасия"]
["Ростовская область"]
["Рязанская область"]
["Самарская область"]
["Саратовская область"]
["Сахалинская область"]
["Свердловская область"]
["Смоленская область"]
["Ставропольский край"]
["Тамбовская область"]
["Тверская область"]
["Томская область"]
["Тульская область"]
["Тюменская область"]
["Удмуртская республика"]
["Ульяновская область"]
["Хабаровский край"]
["Ханты-Мансийский автономный округ"]
["Челябинская область"]
["Чеченская республика"]
["Чувашская республика"]
["Чукотский автономный округ"]
["Ямало-Ненецкий автономный округ"]
["Ярославская область"]

{"sheet":"et_union","index":9,"n_rows":36,"n_cols":77,"rows_kept":36,"hidden":true,"merged":[[3,3,7,3],[3,4,7,4],[3,5,7,5],[3,6,7,6],[3,7,7,7],[3,8,7,8],[3,9,7,9],[3,10,7,10],[3,11,7,11],[3,12,7,12],[4,13,6,13],[4,14,6,14],[4,15,6,15],[4,16,6,16],[4,17,6,17],[4,18,6,18],[4,19,6,19],[4,20,6,20],[4,21,6,21],[4,22,6,22],[4,23,6,23],[4,24,6,24],[4,25,6,25],[4,26,6,26],[4,27,6,27],[4,28,6,28],[4,29,6,29],[4,66,6,66],[4,67,6,67],[4,68,6,68],[4,70,6,70],[4,71,6,71],[4,72,6,72],[4,73,6,73],[4,74,6,74],[7,15,7,16],[9,13,11,13],[9,14,11,14],[9,15,11,15],[9,16,11,16],[9,17,11,17],[9,18,11,18],[9,19,11,19],[9,20,11,20],[9,21,11,21],[9,22,11,22],[9,23,11,23],[9,24,11,24],[9,25,11,25],[9,26,11,26],[9,27,11,27],[9,28,11,28],[9,29,11,29],[9,66,11,66],[9,67,11,67],[9,68,11,68],[9,70,11,70],[9,71,11,71],[9,72,11,72],[9,73,11,73],[9,74,11,74],[22,3,23,3],[22,4,23,4],[22,5,23,5],[22,6,23,6],[22,7,22,9],[22,10,23,10],[22,11,23,11],[22,12,23,12],[22,14,23,14],[22,15,23,15],[22,16,23,16],[22,17,23,17],[22,18,22,24],[22,25,22,29],[22,31,23,31],[22,32,23,32],[22,33,23,33],[22,34,23,34],[22,35,23,35],[22,36,23,36],[22,37,23,37],[22,38,23,38],[22,39,23,39],[22,40,23,40],[22,41,23,41],[22,42,23,42],[22,43,23,43],[22,44,23,44],[22,45,23,45],[22,46,23,46],[22,62,23,62],[22,63,23,63],[22,64,23,64],[27,3,31,3],[27,4,31,4],[27,5,31,5],[27,6,31,6],[27,7,31,7],[27,8,31,8],[27,9,31,9],[27,10,31,10],[27,11,31,11],[27,12,31,12],[28,13,30,13],[28,14,30,14],[28,15,30,15],[28,16,30,16],[28,17,30,17],[28,18,30,18],[28,19,30,19],[28,20,30,20],[28,21,30,21],[28,22,30,22],[28,23,30,23],[28,24,30,24],[28,25,30,25],[28,26,30,26],[28,27,30,27],[28,28,30,28],[28,29,30,29],[28,66,30,66],[28,67,30,67],[28,68,30,68],[28,70,30,70],[28,71,30,71],[28,72,30,72],[28,73,30,73],[28,74,30,74],[31,15,31,16],[33,13,35,13],[33,14,35,14],[33,15,35,15],[33,16,35,16],[33,17,35,17],[33,18,35,18],[33,19,35,19],[33,20,35,20],[33,21,35,21],[33,22,35,22],[33,23,35,23],[33,24,35,24],[33,25,35,25],[33,26,35,26],[33,27,35,27],[33,28,35,28],[33,29,35,29],[33,66,35,66],[33,67,35,67],[33,68,35,68],[33,70,35,70],[33,71,35,71],[33,72,35,72],[33,73,35,73],[33,74,35,74]]}
["et_LisComm"]
[]
["et_ws_01_m"]
[]
[{"$nulls":14},1,{"$nulls":16},0,"Данные по источникам финансирования для объекта инфраструктуры или мероприятия в целом"]
[{"$nulls":31},"1",null,"нет","",{"$nulls":6},"нет",{"$f":"SUM(AT6,AV6,AY6,BB6,BE6,BH6,BK6)","v":{"v":0,"d":"0.00"}},{"$f":"SUM(AT6,AW6,AZ6,BC6,BF6,BI6,BL6)","v":{"v":0,"d":"0.00"}},{"$f":"AQ6-AR6","v":{"v":0,"d":"0.00"}},{"$nulls":4},{"$f":"AV6-AW6","v":{"v":0,"d":"0.00"}},null,null,{"$f":"AY6-AZ6","v":{"v":0,"d":"0.00"}},null,null,{"$f":"BB6-BC6","v":{"v":0,"d":"0.00"}},null,null,{"$f":"BE6-BF6","v":{"v":0,"d":"0.00"}},null,null,{"$f":"BH6-BI6","v":{"v":0,"d":"0.00"}},null,null,{"$f":"BK6-BL6","v":{"v":0,"d":"0.00"}},0,{"$nulls":3},{"$f":"AG6 & BN6","v":"0"},{"$nulls":5},{"$f":"AG6&AH6","v":"нет"}]
[{"$nulls":30},"if",null,"Добавить ист. фин."]
[{"$nulls":13},"obj",null,"Добавить объект инфраструктуры"]
["et_ws_01_obj"]
[{"$nulls":15},"да",{"$nulls":15},0,"Данные по источникам финансирования для объекта инфраструктуры или мероприятия в целом"]
[{"$nulls":31},"1",null,"нет","",{"$nulls":6},"нет",{"$f":"SUM(AT11,AV11,AY11,BB11,BE11,BH11,BK11)","v":{"v":0,"d":"0.00"}},{"$f":"SUM(AT11,AW11,AZ11,BC11,BF11,BI11,BL11)","v":{"v":0,"d":"0.00"}},{"$f":"AQ11-AR11","v":{"v":0,"d":"0.00"}},{"$nulls":4},{"$f":"AV11-AW11","v":{"v":0,"d":"0.00"}},null,null,{"$f":"AY11-AZ11","v":{"v":0,"d":"0.00"}},null,null,{"$f":"BB11-BC11","v":{"v":0,"d":"0.00"}},null,null,{"$f":"BE11-BF11","v":{"v":0,"d":"0.00"}},null,null,{"$f":"BH11-BI11","v":{"v":0,"d":"0.00"}},null,null,{"$f":"BK11-BL11","v":{"v":0,"d":"0.00"}},0,{"$nulls":3},{"$f":"AG11 & BN11","v":"0"},{"$nulls":5},{"$f":"AG11&AH11","v":"нет"}]
[{"$nulls":30},"if",null,"Добавить ист. фин."]
["et_ws_01_ifin"]
[{"$nulls":33},"нет","",{"$nulls":6},"нет",{"$f":"SUM(AT14,AV14,AY14,BB14,BE14,BH14,BK14)","v":{"v":0,"d":"0.00"}},{"$f":"SUM(AT14,AW14,AZ14,BC14,BF14,BI14,BL14)","v":{"v":0,"d":"0.00"}},{"$f":"AQ14-AR14","v":{"v":0,"d":"0.00"}},{"$nulls":4},{"$f":"AV14-AW14","v":{"v":0,"d":"0.00"}},null,null,{"$f":"AY14-AZ14","v":{"v":0,"d":"0.00"}},null,null,{"$f":"BB14-BC14","v":{"v":0,"d":"0.00"}},null,null,{"$f":"BE14-BF14","v":{"v":0,"d":"0.00"}},null,null,{"$f":"BH14-BI14","v":{"v":0,"d":"0.00"}},null,null,{"$f":"BK14-BL14","v":{"v":0,"d":"0.00"}},0,{"$nulls":3},{"$f":"AG14 & BN14","v":"0"},{"$nulls":5},{"$f":"AG14&AH14","v":"нет"}]
["et_ws_01_ifin_lock"]
[{"$nulls":41},"нет",{"$f":"SUM(AT16,AV16,AY16,BB16,BE16,BH16,BK16)","v":{"v":0,"d":"0.00"}},{"$f":"SUM(AT16,AW16,AZ16,BC16,BF16,BI16,BL16)","v":{"v":0,"d":"0.00"}},{"$f":"AQ16-AR16","v":{"v":0,"d":"0.00"}},{"$nulls":4},{"$f":"AV16-AW16","v":{"v":0,"d":"0.00"}},null,null,{"$f":"AY16-AZ16","v":{"v":0,"d":"0.00"}},null,null,{"$f":"BB16-BC16","v":{"v":0,"d":"0.00"}},null,null,{"$f":"BE16-BF16","v":{"v":0,"d":"0.00"}},null,null,{"$f":"BH16-BI16","v":{"v":0,"d":"0.00"}},null,null,{"$f":"BK16-BL16","v":{"v":0,"d":"0.00"}},0,{"$nulls":3},{"$f":"AG16 & BN16","v":"0"},{"$nulls":5},{"$f":"AG16&AH16","v":""}]
["et_com"]
[]
["et_ws_02_1"]
[{"$nulls":7},{"$f":" IFERROR(IF(LEN(G20)=0,\"\",VLOOKUP(G20,OKTMO_TYPE_LIST,2,FALSE)),\"МО отсутствует\")","v":""},null,"Поиск данных в ручном режиме"]
[]
[]
[{"$nulls":3},"№ п/п","Группа, к которой относятся мероприятия инвестиционной программы","Подгруппа, к которой относятся мероприятия инвестиционной программы","Наименование строек","Территория оказания услуг",null,null,"Период реализации согласно ИП, лет","Плановый год ввода в эксплуатацию / выполнения мероприятия","Стадия выполнения, %",null,"№ объекта","Объект инфраструктуры ТЭ","Наименование объекта","Тип объекта","Адрес объекта",{"$nulls":6},"Территория оказания услуг",{"$nulls":5},"№ источника","Источник финансирования","В рамках концессионного соглашения","Наименование концессионного соглашения","Дата начала","Дата окончания","Наименование решения по КС","Тип решения по КС","№ решения по КС","Дата принятия решения по КС","Внесены изменения по источникам финансирования","Всего утверждено на весь период реализации ИП (план)","Всего утверждено на весь период реализации ИП (уточненный план)","Всего утверждено на весь период реализации ИП (дельта)","Всего утверждено на предыдущий период реализации ИП ",{"$f":"\"Размер средств, исключаемых из НВВ на \" & god & \" год, в связи с неисполнением ИП\"","v":"Размер средств, исключаемых из НВВ на 2019 год, в связи с неисполнением ИП"},{"$f":"\"Утверждено на \" & god & \" (План)\"","v":"Утверждено на 2019 (План)"},{"$f":"\"Утверждено на \" & god & \" (Уточненный план)\"","v":"Утверждено на 2019 (Уточненный план)"},{"$f":"\"Утверждено на \" & god & \" (Дельта)\"","v":"Утверждено на 2019 (Дельта)"},{"$f":"\"Утверждено на \" & god+1 & \" (План)\"","v":"Утверждено на 2020 (План)"},{"$f":"\"Утверждено на \" & god+1 & \" (Уточненный план)\"","v":"Утверждено на 2020 (Уточненный план)"},{"$f":"\"Утверждено на \" & god+1 & \" (Дельта)\"","v":"Утверждено на 2020 (Дельта)"},{"$f":"\"Утверждено на \" & god+2 & \" (План)\"","v":"Утверждено на 2021 (План)"},{"$f":"\"Утверждено на \" & god+2 & \" (Уточненный план)\"","v":"Утверждено на 2021 (Уточненный план)"},{"$f":"\"Утверждено на \" & god+2 & \" (Дельта)\"","v":"Утверждено на 2021 (Дельта)"},{"$f":"\"Утверждено на \" & god+3 & \" (План)\"","v":"Утверждено на 2022 (План)"},{"$f":"\"Утверждено на \" & god+3 & \" (Уточненный план)\"","v":"Утверждено на 2022 (Уточненный план)"},{"$f":"\"Утверждено на \" & god+3 & \" (Дельта)\"","v":"Утверждено на 2022 (Дельта)"},{"$f":"\"Утверждено на \" & god+4 & \" (План)\"","v":"Утверждено на 2023 (План)"},{"$f":"\"Утверждено на \" & god+4 & \" (Уточненный план)\"","v":"Утверждено на 2023 (Уточненный план)"},{"$f":"\"Утверждено на \" & god+4 & \" (Дельта)\"","v":"Утверждено на 2023 (Дельта)"},{"$f":"\"Утверждено на оставшийся период (План)\"","v":"Утверждено на оставшийся период (План)"},{"$f":"\"Утверждено на оставшийся период (Уточненный план)\"","v":"Утверждено на оставшийся период (Уточненный план)"},{"$f":"\"Утверждено на оставшийся период (Дельта)\"","v":"Утверждено на оставшийся период (Дельта)"}]
[{"$nulls":7},"Муниципальный район","Муниципальное образование","ОКТМО",{"$nulls":8},"Муниципальный район","Муниципальное образование","ОКТМО","Населенный пункт","ОКТМО","улица, проезд, проспект, переулок, и т.п.","дом, корпус, строение","Муниципальный район","Муниципальное образование","ОКТМО","Населенный пункт","ОКТМО",{"$nulls":17},"Всего","Всего","Всего","Всего","Всего","Всего","Всего","Всего","Всего","Всего","Всего","Всего","Всего","Всего","Всего"]
[]
[]
["et_ws_01_m_lock"]
[]
[{"$nulls":31},0,"Данные по источникам финансирования для объекта инфраструктуры или мероприятия в целом"]
[{"$nulls":42},{"$f":"SUM(AT30,AV30,AY30,BB30,BE30,BH30,BK30)","v":{"v":0,"d":"0.00"}},{"$f":"SUM(AT30,AW30,AZ30,BC30,BF30,BI30,BL30)","v":{"v":0,"d":"0.00"}},{"$f":"AQ30-AR30","v":{"v":0,"d":"0.00"}},{"$nulls":4},{"$f":"AV30-AW30","v":{"v":0,"d":"0.00"}},null,null,{"$f":"AY30-AZ30","v":{"v":0,"d":"0.00"}},null,null,{"$f":"BB30-BC30","v":{"v":0,"d":"0.00"}},null,null,{"$f":"BE30-BF30","v":{"v":0,"d":"0.00"}},null,null,{"$f":"BH30-BI30","v":{"v":0,"d":"0.00"}},null,null,{"$f":"BK30-BL30","v":{"v":0,"d":"0.00"}},0,{"$nulls":3},{"$f":"AG30 & BN30","v":"0"},{"$nulls":5},{"$f":"AG30&AH30","v":""},0]
[{"$nulls":30},"if",null,""]
[{"$nulls":13},"obj",null,""]
["et_ws_01_obj_lock"]
[{"$nulls":31},0,"Данные по источникам финансирования для объекта инфраструктуры или мероприятия в целом"]
[{"$nulls":42},{"$f":"SUM(AT35,AV35,AY35,BB35,BE35,BH35,BK35)","v":{"v":0,"d":"0.00"}},{"$f":"SUM(AT35,AW35,AZ35,BC35,BF35,BI35,BL35)","v":{"v":0,"d":"0.00"}},{"$f":"AQ35-AR35","v":{"v":0,"d":"0.00"}},{"$nulls":4},{"$f":"AV35-AW35","v":{"v":0,"d":"0.00"}},null,null,{"$f":"AY35-AZ35","v":{"v":0,"d":"0.00"}},null,null,{"$f":"BB35-BC35","v":{"v":0,"d":"0.00"}},null,null,{"$f":"BE35-BF35","v":{"v":0,"d":"0.00"}},null,null,{"$f":"BH35-BI35","v":{"v":0,"d":"0.00"}},null,null,{"$f":"BK35-BL35","v":{"v":0,"d":"0.00"}},0,{"$nulls":3},{"$f":"AG35 & BN35","v":"0"},{"$nulls":5},{"$f":"AG35&AH35","v":""}]
[{"$nulls":30},"if"]

{"sheet":"mod_00","index":10,"n_rows":0,"n_cols":0,"rows_kept":0,"hidden":true}

{"sheet":"mod_01","index":11,"n_rows":0,"n_cols":0,"rows_kept":0,"hidden":true}

{"sheet":"mod_02","index":12,"n_rows":0,"n_cols":0,"rows_kept":0,"hidden":true}

{"sheet":"mod_com","index":13,"n_rows":0,"n_cols":0,"rows_kept":0,"hidden":true}

{"sheet":"modProv","index":14,"n_rows":0,"n_cols":0,"rows_kept":0,"hidden":true}

{"sheet":"modFill","index":15,"n_rows":0,"n_cols":0,"rows_kept":0,"hidden":true}

{"sheet":"modHTTP","index":16,"n_rows":0,"n_cols":0,"rows_kept":0,"hidden":true}

{"sheet":"modReestr","index":17,"n_rows":0,"n_cols":0,"rows_kept":0,"hidden":true}

{"sheet":"modfrmReestr","index":18,"n_rows":0,"n_cols":0,"rows_kept":0,"hidden":true}

{"sheet":"modInstruction","index":19,"n_rows":0,"n_cols":0,"rows_kept":0,"hidden":true}

{"sheet":"modUpdTemplMain","index":20,"n_rows":0,"n_cols":0,"rows_kept":0,"hidden":true}

{"sheet":"modfrmCheckUpdates","index":21,"n_rows":0,"n_cols":0,"rows_kept":0,"hidden":true}

{"sheet":"modfrmRegion","index":22,"n_rows":0,"n_cols":0,"rows_kept":0,"hidden":true}

{"sheet":"REESTR_MO","index":23,"n_rows":896,"n_cols":6,"rows_kept":896,"hidden":true}
["МР","МО","МО_ОКТМО","МО_ТИП","МР","ИМЯ ДИАПАЗОНА"]
["Абзелиловский муниципальный район","Абзелиловский муниципальный район","80601000","муниципальный район","Абзелиловский муниципальный район","MO_LIST_2"]
["Абзелиловский муниципальный район","Альмухаметовский сельский совет","80601404","сельское поселение","Альшеевский муниципальный район","MO_LIST_3"]
["Абзелиловский муниципальный район","Амангильдинский сельский совет","80601407","сельское поселение","Архангельский муниципальный район","MO_LIST_4"]
["Абзелиловский муниципальный район","Аскаровский сельский совет","80601410","сельское поселение","Аскинский муниципальный район","MO_LIST_5"]
["Абзелиловский муниципальный район","Баимовский сельский совет","80601413","сельское поселение","Аургазинский муниципальный район","MO_LIST_6"]
["Абзелиловский муниципальный район","Бурангуловский сельский совет","80601416","сельское поселение","Баймакский муниципальный район","MO_LIST_7"]
["Абзелиловский муниципальный район","Гусевский сельский совет","80601419","сельское поселение","Бакалинский муниципальный район","MO_LIST_8"]
["Абзелиловский муниципальный район","Давлетовский сельский совет","80601422","сельское поселение","Балтачевский муниципальный район","MO_LIST_9"]
["Абзелиловский муниципальный район","Кирдасовский сельский совет","80601425","сельское поселение","Белебеевский муниципальный район","MO_LIST_10"]
["Абзелиловский муниципальный район","Краснобашкирский сельский совет","80601428","сельское поселение","Белокатайский муниципальный район","MO_LIST_11"]
["Абзелиловский муниципальный район","Равиловский сельский совет","80601431","сельское поселение","Белорецкий муниципальный район","MO_LIST_12"]
["Абзелиловский муниципальный район","Ташбулатовский сельский совет","80601434","сельское поселение","Бижбулякский муниципальный район","MO_LIST_13"]
["Абзелиловский муниципальный район","Таштимеровский сельский совет","80601437","сельское поселение","Бирский муниципальный район","MO_LIST_14"]
["Абзелиловский муниципальный район","Халиловский сельский совет","80601440","сельское поселение","Благоварский муниципальный район","MO_LIST_15"]
["Абзелиловский муниципальный район","Хамитовский сельский совет","80601443","сельское поселение","Благовещенский муниципальный район","MO_LIST_16"]
["Абзелиловский муниципальный район","Янгильский сельский совет","80601446","сельское поселение","Буздякский муниципальный район","MO_LIST_17"]
["Альшеевский муниципальный район","Абдрашитовский сельский совет","80602404","сельское поселение","Бураевский муниципальный район","MO_LIST_18"]
["Альшеевский муниципальный район","Аксеновский сельский совет","80602406","сельское поселение","Бурзянский муниципальный район","MO_LIST_19"]
["Альшеевский муниципальный район","Альшеевский муниципальный район","80602000","муниципальный район","Гафурийский муниципальный район","MO_LIST_20"]
["Альшеевский муниципальный район","Воздвиженский сельский совет","80602413","сельское поселение","Город Агидель","MO_LIST_21"]
["Альшеевский муниципальный район","Гайниямакский сельский совет","80602416","сельское поселение","Город Кумертау","MO_LIST_22"]
["Альшеевский муниципальный район","Зеленоклиновский сельский совет","80602418","сельское поселение","Город Нефтекамск","MO_LIST_23"]
["Альшеевский муниципальный район","Ибраевский сельский совет","80602419","сельское поселение","Город Октябрьский","MO_LIST_24"]
["Альшеевский муниципальный район","Казанский сельский совет","80602422","сельское поселение","Город Салават","MO_LIST_25"]
["Альшеевский муниципальный район","Кармышевский сельский совет","80602428","сельское поселение","Город Сибай","MO_LIST_26"]
["Альшеевский муниципальный район","Кипчак-Аскаровский сельский совет","80602431","сельское поселение","Город Стерлитамак","MO_LIST_27"]
["Альшеевский муниципальный район","Кызыльский сельский совет","80602437","сельское поселение","Город Уфа","MO_LIST_28"]
["Альшеевский муниципальный район","Мендяновский сельский совет","80602440","сельское поселение","Давлекановский муниципальный район","MO_LIST_29"]
["Альшеевский муниципальный район","Нигматуллинский сельский совет","80602443","сельское поселение","Дуванский муниципальный район","MO_LIST_30"]
["Альшеевский муниципальный район","Нижнеаврюзовский сельский совет","80602446","сельское поселение","Дюртюлинский муниципальный район","MO_LIST_31"]
["Альшеевский муниципальный район","Никифаровский сельский совет","80602449","сельское поселение","Ермекеевский муниципальный район","MO_LIST_32"]
["Альшеевский муниципальный район","Раевский сельский совет","80602451","сельское поселение","ЗАТО город Межгорье","MO_LIST_33"]
["Альшеевский муниципальный район","Слаковский сельский совет","80602455","сельское поселение","Зианчуринский муниципальный район","MO_LIST_34"]
["Альшеевский муниципальный район","Ташлинский сельский совет","80602458","сельское поселение","Зилаирский муниципальный район","MO_LIST_35"]
["Альшеевский муниципальный район","Трунтаишевский сельский совет","80602461","сельское поселение","Иглинский муниципальный район","MO_LIST_36"]
["Альшеевский муниципальный район","Чебенлинский сельский совет","80602464","сельское поселение","Илишевский муниципальный район","MO_LIST_37"]
["Альшеевский муниципальный район","Шафрановский сельский совет","80602470","сельское поселение","Ишимбайский муниципальный район","MO_LIST_38"]
["Архангельский муниципальный район","Абзановский сельский совет","80603404","сельское поселение","Калтасинский муниципальный район","MO_LIST_39"]
["Архангельский муниципальный район","Арх-Латышский сельский совет","80603413","сельское поселение","Караидельский муниципальный район","MO_LIST_40"]
["Архангельский муниципальный район","Архангельский муниципальный район","80603000","муниципальный район","Кармаскалинский муниципальный район","MO_LIST_41"]
["Архангельский муниципальный район","Архангельский сельский совет","80603410","сельское поселение","Кигинский муниципальный район","MO_LIST_42"]
["Архангельский муниципальный район","Бакалдинский сельский совет","80603416","сельское поселение","Краснокамский муниципальный район","MO_LIST_43"]
["Архангельский муниципальный район","Инзерский сельский совет","80603419","сельское поселение","Кугарчинский муниципальный район","MO_LIST_44"]
["Архангельский муниципальный район","Ирныкшинский сельский совет","80603422","сельское поселение","Кушнаренковский муниципальный район","MO_LIST_45"]
["Архангельский муниципальный район","Краснозилимский сельский совет","80603425","сельское поселение","Куюргазинский муниципальный район","MO_LIST_46"]
["Архангельский муниципальный район","Краснокуртовский сельский совет","80603428","сельское поселение","Мелеузовский муниципальный район","MO_LIST_47"]
["Архангельский муниципальный район","Липовский сельский совет","80603434","сельское поселение","Мечетлинский муниципальный район","MO_LIST_48"]
["Архангельский муниципальный район","Орловский сельский совет","80603440","сельское поселение","Мишкинский муниципальный район","MO_LIST_49"]
["Архангельский муниципальный район","Тавакачевский сельский совет","80603446","сельское поселение","Миякинский муниципальный район","MO_LIST_50"]
["Архангельский муниципальный район","Узунларовский сельский совет","80603450","сельское поселение","Нуримановский муниципальный район","MO_LIST_51"]
["Аскинский муниципальный район","Арбашевский сельский совет","80604402","сельское поселение","Салаватский муниципальный район","MO_LIST_52"]
["Аскинский муниципальный район","Аскинский муниципальный район","80604000","муниципальный район","Стерлибашевский муниципальный район","MO_LIST_53"]
["Аскинский муниципальный район","Аскинский сельский совет","80604404","сельское поселение","Стерлитамакский муниципальный район","MO_LIST_54"]
["Аскинский муниципальный район","Евбулякский сельский совет","80604413","сельское поселение","Татышлинский муниципальный район","MO_LIST_55"]
["Аскинский муниципальный район","Казанчинский сельский совет","80604416","сельское поселение","Туймазинский муниципальный район","MO_LIST_56"]
["Аскинский муниципальный район","Карткисяковский сельский совет","80604418","сельское поселение","Уфимский муниципальный район","MO_LIST_57"]
["Аскинский муниципальный район","Кашкинский сельский совет","80604419","сельское поселение","Учалинский муниципальный район","MO_LIST_58"]
["Аскинский муниципальный район","Ключевский сельский совет","80604425","сельское поселение","Федоровский муниципальный район","MO_LIST_59"]
["Аскинский муниципальный район","Кубиязовский сельский совет","80604428","сельское поселение","Хайбуллинский муниципальный район","MO_LIST_60"]
["Аскинский муниципальный район","Кунгаковский сельский совет","80604431","сельское поселение","Чекмагушевский муниципальный район","MO_LIST_61"]
["Аскинский муниципальный район","Кшлау-Елгинский сельский совет","80604437","сельское поселение","Чишминский муниципальный район","MO_LIST_62"]
["Аскинский муниципальный район","Мутабашевский сельский совет","80604440","сельское поселение","Шаранский муниципальный район","MO_LIST_63"]
["Аскинский муниципальный район","Петропавловский сельский совет","80604442","сельское поселение","Янаульский муниципальный район","MO_LIST_64"]
["Аскинский муниципальный район","Султанбековский сельский совет","80604443","сельское поселение"]
["Аскинский муниципальный район","Урмиязовский сельский совет","80604446","сельское поселение"]
["Аскинский муниципальный район","Усть-Табасский сельский совет","80604450","сельское поселение"]
["Аургазинский муниципальный район","Аургазинский муниципальный район","80605000","муниципальный район"]
["Аургазинский муниципальный район","Балыклыкульский сельский совет","80605402","сельское поселение"]
["Аургазинский муниципальный район","Батыровский сельский совет","80605404","сельское поселение"]
["Аургазинский муниципальный район","Бишкаинский сельский совет","80605407","сельское поселение"]
["Аургазинский муниципальный район","Ибраевский сельский совет","80605410","сельское поселение"]
["Аургазинский муниципальный район","Исмагиловский сельский совет","80605413","сельское поселение"]
["Аургазинский муниципальный район","Ишлинский сельский совет","80605416","сельское поселение"]
["Аургазинский муниципальный район","Кебячевский сельский совет","80605419","сельское поселение"]
["Аургазинский муниципальный район","Меселинский сельский совет","80605422","сельское поселение"]
["Аургазинский муниципальный район","Михайловский сельский совет","80605425","сельское поселение"]
["Аургазинский муниципальный район","Нагадакский сельский совет","80605428","сельское поселение"]
["Аургазинский муниципальный район","Новокальчировский сельский совет","80605431","сельское поселение"]
["Аургазинский муниципальный район","Семенкинский сельский совет","80605434","сельское поселение"]
["Аургазинский муниципальный район","Степановский сельский совет","80605437","сельское поселение"]
["Аургазинский муниципальный район","Султанмуратовский сельский совет","80605440","сельское поселение"]
["Аургазинский муниципальный район","Таштамакский сельский совет","80605443","сельское поселение"]
["Аургазинский муниципальный район","Толбазинский сельский совет","80605446","сельское поселение"]
["Аургазинский муниципальный район","Тряпинский сельский совет","80605449","сельское поселение"]
["Аургазинский муниципальный район","Тукаевский сельский совет","80605452","сельское поселение"]
["Аургазинский муниципальный район","Турумбетовский сельский совет","80605458","сельское поселение"]
["Аургазинский муниципальный район","Уршакский сельский совет","80605461","сельское поселение"]
["Аургазинский муниципальный район","Чуваш-Карамалинский сельский совет","80605472","сельское поселение"]
["Баймакский муниципальный район","1-й Иткуловский сельский совет","80606416","сельское поселение"]
["Баймакский муниципальный район","Абдулкаримовский сельский совет","80606404","сельское поселение"]
["Баймакский муниципальный район","Акмурунский сельский совет","80606407","сельское поселение"]
["Баймакский муниципальный район","Баймакский муниципальный район","80606000","муниципальный район"]
["Баймакский муниципальный район","Бекешевский сельский совет","80606409","сельское поселение"]
["Баймакский муниципальный район","Биляловский сельский совет","80606410","сельское поселение"]
["Баймакский муниципальный район","Город Баймак","80606101","городское поселение, в состав которого входит город"]
["Баймакский муниципальный район","Зилаирский сельский совет","80606413","сельское поселение"]
["Баймакский муниципальный район","Ишбердинский сельский совет","80606428","сельское поселение"]
["Баймакский муниципальный район","Ишмурзинский сельский совет","80606422","сельское поселение"]
["Баймакский муниципальный район","Ишмухаметовский сельский совет","80606425","сельское поселение"]
["Баймакский муниципальный район","Кульчуровский сельский совет","80606437","сельское поселение"]
["Баймакский муниципальный район","Кусеевский сельский совет","80606431","сельское поселение"]
["Баймакский муниципальный район","Мерясовский сельский совет","80606438","сельское поселение"]
["Баймакский муниципальный район","Мукасовский сельский совет","80606434","сельское поселение"]
["Баймакский муниципальный район","Нигаматовский сельский совет","80606440","сельское поселение"]
["Баймакский муниципальный район","Семеновский сельский совет","80606442","сельское поселение"]
["Баймакский муниципальный район","Сибайский сельский совет","80606443","сельское поселение"]
["Баймакский муниципальный район","Тавлыкаевский сельский совет","80606446","сельское поселение"]
["Баймакский муниципальный район","Татлыбаевский сельский совет","80606449","сельское поселение"]
["Баймакский муниципальный район","Темясовский сельский совет","80606452","сельское поселение"]
["Баймакский муниципальный район","Тубинский сельский совет","80606453","сельское поселение"]
["Баймакский муниципальный район","Юмашевский сельский совет","80606455","сельское поселение"]
["Баймакский муниципальный район","Яратовский сельский совет","80606459","сельское поселение"]
["Бакалинский муниципальный район","Ахмановский сельский совет","80607404","сельское поселение"]
["Бакалинский муниципальный район","Бакалинский муниципальный район","80607000","муниципальный район"]
["Бакалинский муниципальный район","Бакалинский сельский совет","80607407","сельское поселение"]
["Бакалинский муниципальный район","Бузюровский сельский совет","80607413","сельское поселение"]
["Бакалинский муниципальный район","Дияшевский сельский совет","80607419","сельское поселение"]
["Бакалинский муниципальный район","Камышлытамакский сельский совет","80607425","сельское поселение"]
["Бакалинский муниципальный район","Килеевский сельский совет","80607428","сельское поселение"]
["Бакалинский муниципальный район","Куштиряковский сельский совет","80607431","сельское поселение"]
["Бакалинский муниципальный район","Михайловский сельский совет","80607410","сельское поселение"]
["Бакалинский муниципальный район","Мустафинский сельский совет","80607434","сельское поселение"]
["Бакалинский муниципальный район","Новокатаевский сельский совет","80607440","сельское поселение"]
["Бакалинский муниципальный район","Новоурсаевский сельский совет","80607446","сельское поселение"]
["Бакалинский муниципальный район","Старокостеевский сельский совет","80607451","сельское поселение"]
["Бакалинский муниципальный район","Старокуручевский сельский совет","80607449","сельское поселение"]
["Бакалинский муниципальный район","Староматинский сельский совет","80607455","сельское поселение"]
["Бакалинский муниципальный район","Старошарашлинский сельский совет","80607458","сельское поселение"]
["Бакалинский муниципальный район","Тактагуловский сельский совет","80607461","сельское поселение"]
["Бакалинский муниципальный район","Урманаевский сельский совет","80607464","сельское поселение"]
["Балтачевский муниципальный район","Балтачевский муниципальный район","80608000","муниципальный район"]
["Балтачевский муниципальный район","Богдановский сельский совет","80608404","сельское поселение"]
["Балтачевский муниципальный район","Верхнеянактаевский сельский совет","80608407","сельское поселение"]
["Балтачевский муниципальный район","Кундашлинский сельский совет","80608413","сельское поселение"]
["Балтачевский муниципальный район","Кунтугушевский сельский совет","80608416","сельское поселение"]
["Балтачевский муниципальный район","Нижнекарышевский сельский совет","80608419","сельское поселение"]
["Балтачевский муниципальный район","Нижнесикиязовский сельский совет","80608422","сельское поселение"]
["Балтачевский муниципальный район","Норкинский сельский совет","80608425","сельское поселение"]
["Балтачевский муниципальный район","Сейтяковский сельский совет","80608428","сельское поселение"]
["Балтачевский муниципальный район","Старобалтачевский сельский совет","80608431","сельское поселение"]
["Балтачевский муниципальный район","Староянбаевский сельский совет","80608434","сельское поселение"]
["Балтачевский муниципальный район","Тошкуровский сельский совет","80608437","сельское поселение"]
["Балтачевский муниципальный район","Тучубаевский сельский совет","80608440","сельское поселение"]
["Балтачевский муниципальный район","Шавьядинский сельский совет","80608441","сельское поселение"]
["Балтачевский муниципальный район","Штандинский сельский совет","80608443","сельское поселение"]
["Балтачевский муниципальный район","Ялангачевский сельский совет","80608448","сельское поселение"]
["Белебеевский муниципальный район","Аксаковский сельский совет","80609401","сельское поселение"]
["Белебеевский муниципальный район","Анновский сельский совет","80609413","сельское поселение"]
["Белебеевский муниципальный район","Баженовский сельский совет","80609402","сельское поселение"]
["Белебеевский муниципальный район","Белебеевский муниципальный район","80609000","муниципальный район"]
["Белебеевский муниципальный район","Город Белебей","80609101","городское поселение, в состав которого входит город"]
["Белебеевский муниципальный район","Донской сельский совет","80609404","сельское поселение"]
["Белебеевский муниципальный район","Ермолкинский сельский совет","80609407","сельское поселение"]
["Белебеевский муниципальный район","Знаменский сельский совет","80609410","сельское поселение"]
["Белебеевский муниципальный район","Максим-Горьковский сельский совет","80609416","сельское поселение"]
["Белебеевский муниципальный район","Малиновский сельский совет","80609419","сельское поселение"]
["Белебеевский муниципальный район","Метевбашевский сельский совет","80609425","сельское поселение"]
["Белебеевский муниципальный район","Приютовский поссовет","80609165","городское поселение, в состав которого входит поселок"]
["Белебеевский муниципальный район","Рассветовский сельский совет","80609428","сельское поселение"]
["Белебеевский муниципальный район","Семенкинский сельский совет","80609431","сельское поселение"]
["Белебеевский муниципальный район","Слакбашевский сельский совет","80609434","сельское поселение"]
["Белебеевский муниципальный район","Тузлукушевский сельский совет","80609437","сельское поселение"]
["Белебеевский муниципальный район","Усень-Ивановский сельский совет","80609440","сельское поселение"]
["Белебеевский муниципальный район","Шаровский сельский совет","80609443","сельское поселение"]
["Белокатайский муниципальный район","Атаршинский сельский совет","80610402","сельское поселение"]
["Белокатайский муниципальный район","Белокатайский муниципальный район","80610000","муниципальный район"]
["Белокатайский муниципальный район","Белянковский сельский совет","80610404","сельское поселение"]
["Белокатайский муниципальный район","Емашинский сельский совет","80610407","сельское поселение"]
["Белокатайский муниципальный район","Карлыхановский сельский совет","80610413","сельское поселение"]
["Белокатайский муниципальный район","Майгазинский сельский совет","80610416","сельское поселение"]
["Белокатайский муниципальный район","Нижнеискушинский сельский совет","80610419","сельское поселение"]
["Белокатайский муниципальный район","Новобелокатайский сельский совет","80610422","сельское поселение"]
["Белокатайский муниципальный район","Ногушинский сельский совет","80610425","сельское поселение"]
["Белокатайский муниципальный район","Старобелокатайский сельский совет","80610428","сельское поселение"]
["Белокатайский муниципальный район","Тардавский сельский совет","80610431","сельское поселение"]
["Белокатайский муниципальный район","Ургалинский сельский совет","80610434","сельское поселение"]
["Белокатайский муниципальный район","Утяшевский сельский совет","80610437","сельское поселение"]
["Белокатайский муниципальный район","Яныбаевский сельский совет","80610440","сельское поселение"]
["Белорецкий муниципальный район","Абзаковский сельский совет","80611404","сельское поселение"]
["Белорецкий муниципальный район","Азикеевский сельский совет","80611407","сельское поселение"]
["Белорецкий муниципальный район","Ассинский сельский совет","80611410","сельское поселение"]
["Белорецкий муниципальный район","Белорецкий муниципальный район","80611000","муниципальный район"]
["Белорецкий муниципальный район","Верхнеавзянский сельский совет","80611415","сельское поселение"]
["Белорецкий муниципальный район","Город Белорецк","80611101","городское поселение, в состав которого входит город"]
["Белорецкий муниципальный район","Железнодорожный сельский совет","80611418","сельское поселение"]
["Белорецкий муниципальный район","Зигазинский сельский совет","80611416","сельское поселение"]
["Белорецкий муниципальный район","Зуяковский сельский совет","80611417","сельское поселение"]
["Белорецкий муниципальный район","Инзерский сельский совет","80611420","сельское поселение"]
["Белорецкий муниципальный район","Ишлинский сельский совет","80611422","сельское поселение"]
["Белорецкий муниципальный район","Кагинский сельский совет","80611425","сельское поселение"]
["Белорецкий муниципальный район","Ломовский сельский совет","80611427","сельское поселение"]
["Белорецкий муниципальный район","Николаевский сельский совет","80611434","сельское поселение"]
["Белорецкий муниципальный район","Нурский сельский совет","80611440","сельское поселение"]
["Белорецкий муниципальный район","Серменевский сельский совет","80611443","сельское поселение"]
["Белорецкий муниципальный район","Сосновский сельский совет","80611446","сельское поселение"]
["Белорецкий муниципальный район","Тирлянский сельский совет","80611448","сельское поселение"]
["Белорецкий муниципальный район","Туканский сельский совет","80611449","сельское поселение"]
["Белорецкий муниципальный район","Узянский сельский совет","80611452","сельское поселение"]
["Белорецкий муниципальный район","Шигаевский сельский совет","80611455","сельское поселение"]
["Бижбулякский муниципальный район","Аитовский сельский совет","80612404","сельское поселение"]
["Бижбулякский муниципальный район","Базлыкский сельский совет","80612407","сельское поселение"]
["Бижбулякский муниципальный район","Бижбулякский муниципальный район","80612000","муниципальный район"]
["Бижбулякский муниципальный район","Бижбулякский сельский совет","80612410","сельское поселение"]
["Бижбулякский муниципальный район","Биккуловский сельский совет","80612413","сельское поселение"]
["Бижбулякский муниципальный район","Демский сельский совет","80612416","сельское поселение"]
["Бижбулякский муниципальный район","Елбулактамакский сельский совет","80612419","сельское поселение"]
["Бижбулякский муниципальный район","Зириклинский сельский совет","80612422","сельское поселение"]
["Бижбулякский муниципальный район","Калининский сельский совет","80612425","сельское поселение"]
["Бижбулякский муниципальный район","Каменский сельский совет","80612428","сельское поселение"]
["Бижбулякский муниципальный район","Кенгер-Менеузовский сельский совет","80612431","сельское поселение"]
["Бижбулякский муниципальный район","Кош-Елгинский сельский совет","80612440","сельское поселение"]
["Бижбулякский муниципальный район","Михайловский сельский совет","80612442","сельское поселение"]
["Бижбулякский муниципальный район","Сухореченский сельский совет","80612443","сельское поселение"]
["Бирский муниципальный район","Бахтыбаевский сельский совет","80613407","сельское поселение"]
["Бирский муниципальный район","Березовский сельский совет","80613409","сельское поселение"]
["Бирский муниципальный район","Бирский муниципальный район","80613000","муниципальный район"]
["Бирский муниципальный район","Бурновский сельский совет","80613408","сельское поселение"]
["Бирский муниципальный район","Верхнелачентауский сельский совет","80613410","сельское поселение"]
["Бирский муниципальный район","Город Бирск","80613101","городское поселение, в состав которого входит город"]
["Бирский муниципальный район","Калинниковский сельский совет","80613416","сельское поселение"]
["Бирский муниципальный район","Кусекеевский сельский совет","80613419","сельское поселение"]
["Бирский муниципальный район","Маядыковский сельский совет","80613422","сельское поселение"]
["Бирский муниципальный район","Осиновский сельский совет","80613425","сельское поселение"]
["Бирский муниципальный район","Силантьевский сельский совет","80613431","сельское поселение"]
["Бирский муниципальный район","Старобазановский сельский совет","80613434","сельское поселение"]
["Бирский муниципальный район","Старопетровский сельский совет","80613437","сельское поселение"]
["Бирский муниципальный район","Сусловский сельский совет","80613440","сельское поселение"]
["Бирский муниципальный район","Угузевский сельский совет","80613443","сельское поселение"]
["Бирский муниципальный район","Чишминский сельский совет","80613446","сельское поселение"]
["Благоварский муниципальный район","Алексеевский сельский совет","80614404","сельское поселение"]
["Благоварский муниципальный район","Балышлинский сельский совет","80614407","сельское поселение"]
["Благоварский муниципальный район","Благоварский муниципальный район","80614000","муниципальный район"]
["Благоварский муниципальный район","Благоварский сельский совет","80614410","сельское поселение"]
["Благоварский муниципальный район","Дмитриевский сельский совет","80614413","сельское поселение"]
["Благоварский муниципальный район","Каргалинский сельский совет","80614416","сельское поселение"]
["Благоварский муниципальный район","Кашкалашинский сельский совет","80614419","сельское поселение"]
["Благоварский муниципальный район","Кучербаевский сельский совет","80614422","сельское поселение"]
["Благоварский муниципальный район","Мирновский сельский совет","80614423","сельское поселение"]
["Благоварский муниципальный район","Первомайский сельский совет","80614424","сельское поселение"]
["Благоварский муниципальный район","Тановский сельский совет","80614428","сельское поселение"]
["Благоварский муниципальный район","Троицкий сельский совет","80614431","сельское поселение"]
["Благоварский муниципальный район","Удрякбашевский сельский совет","80614434","сельское поселение"]
["Благоварский муниципальный район","Языковский сельский совет","80614437","сельское поселение"]
["Благоварский муниципальный район","Ямакаевский сельский совет","80614440","сельское поселение"]
["Благоварский муниципальный район","Янышевский сельский совет","80614443","сельское поселение"]
["Благовещенский муниципальный район","Бедеево-Полянский сельский совет","80615404","сельское поселение"]
["Благовещенский муниципальный район","Благовещенский муниципальный район","80615000","муниципальный район"]
["Благовещенский муниципальный район","Богородский сельский совет","80615407","сельское поселение"]
["Благовещенский муниципальный район","Волковский сельский совет","80615413","сельское поселение"]
["Благовещенский муниципальный район","Город Благовещенск","80615101","городское поселение, в состав которого входит город"]
["Благовещенский муниципальный район","Изяковский сельский совет","80615419","сельское поселение"]
["Благовещенский муниципальный район","Иликовский сельский совет","80615422","сельское поселение"]
["Благовещенский муниципальный район","Ильино-Полянский сельский совет","80615425","сельское поселение"]
["Благовещенский муниципальный район","Николаевский сельский совет","80615428","сельское поселение"]
["Благовещенский муниципальный район","Новонадеждинский сельский совет","80615431","сельское поселение"]
["Благовещенский муниципальный район","Октябрьский сельский совет","80615434","сельское поселение"]
["Благовещенский муниципальный район","Орловский сельский совет","80615437","сельское поселение"]
["Благовещенский муниципальный район","Покровский сельский совет","80615440","сельское поселение"]
["Благовещенский муниципальный район","Саннинский сельский совет","80615443","сельское поселение"]
["Благовещенский муниципальный район","Старонадеждинский сельский совет","80615449","сельское поселение"]
["Благовещенский муниципальный район","Тугайский сельский совет","80615453","сельское поселение"]
["Благовещенский муниципальный район","Удельно-Дуванейский сельский совет","80615461","сельское поселение"]
["Буздякский муниципальный район","Арслановский сельский совет","80617404","сельское поселение"]
["Буздякский муниципальный район","Буздякский муниципальный район","80617000","муниципальный район"]
["Буздякский муниципальный район","Буздякский сельский совет","80617407","сельское поселение"]
["Буздякский муниципальный район","Гафурийский сельский совет","80617410","сельское поселение"]
["Буздякский муниципальный район","Канлы-Туркеевский сельский совет","80617413","сельское поселение"]
["Буздякский муниципальный район","Каранский сельский совет","80617416","сельское поселение"]
["Буздякский муниципальный район","Килимовский сельский совет","80617419","сельское поселение"]
["Буздякский муниципальный район","Копей-Кубовский сельский совет","80617422","сельское поселение"]
["Буздякский муниципальный район","Кузеевский сельский совет","80617425","сельское поселение"]
["Буздякский муниципальный район","Сабаевский сельский совет","80617431","сельское поселение"]
["Буздякский муниципальный район","Тавларовский сельский совет","80617437","сельское поселение"]
["Буздякский муниципальный район","Тюрюшевский сельский совет","80617440","сельское поселение"]
["Буздякский муниципальный район","Уртакульский сельский совет","80617446","сельское поселение"]
["Бураевский муниципальный район","Азяковский сельский совет","80618404","сельское поселение"]
["Бураевский муниципальный район","Бадраковский сельский совет","80618407","сельское поселение"]
["Бураевский муниципальный район","Бураевский муниципальный район","80618000","муниципальный район"]
["Бураевский муниципальный район","Бураевский сельский совет","80618413","сельское поселение"]
["Бураевский муниципальный район","Ванышевский сельский совет","80618416","сельское поселение"]
["Бураевский муниципальный район","Вострецовский сельский совет","80618419","сельское поселение"]
["Бураевский муниципальный район","Каинлыковский сельский совет","80618422","сельское поселение"]
["Бураевский муниципальный район","Кашкалевский сельский совет","80618425","сельское поселение"]
["Бураевский муниципальный район","Кузбаевский сельский совет","80618431","сельское поселение"]
["Бураевский муниципальный район","Кушманаковский сельский совет","80618428","сельское поселение"]
["Бураевский муниципальный район","Тазларовский сельский совет","80618437","сельское поселение"]
["Бураевский муниципальный район","Тангатаровский сельский совет","80618440","сельское поселение"]
["Бураевский муниципальный район","Тепляковский сельский совет","80618443","сельское поселение"]
["Бураевский муниципальный район","Челкаковский сельский совет","80618446","сельское поселение"]
["Бурзянский муниципальный район","Аскаровский сельский совет","80619404","сельское поселение"]
["Бурзянский муниципальный район","Атиковский сельский совет","80619407","сельское поселение"]
["Бурзянский муниципальный район","Байгазинский сельский совет","80619409","сельское поселение"]
["Бурзянский муниципальный район","Байназаровский сельский совет","80619410","сельское поселение"]
["Бурзянский муниципальный район","Бурзянский муниципальный район","80619000","муниципальный район"]
["Бурзянский муниципальный район","Галиакберовский сельский совет","80619413","сельское поселение"]
["Бурзянский муниципальный район","Иргизлинский сельский совет","80619416","сельское поселение"]
["Бурзянский муниципальный район","Киекбаевский сельский совет","80619419","сельское поселение"]
["Бурзянский муниципальный район","Кипчакский сельский совет","80619420","сельское поселение"]
["Бурзянский муниципальный район","Кулганинский сельский совет","80619440","сельское поселение"]
["Бурзянский муниципальный район","Старомунасиповский сельский совет","80619422","сельское поселение"]
["Бурзянский муниципальный район","Старосубхангуловский сельский совет","80619425","сельское поселение"]
["Бурзянский муниципальный район","Тимировский сельский совет","80619430","сельское поселение"]
["Гафурийский муниципальный район","Белоозерский сельский совет","80621407","сельское поселение"]
["Гафурийский муниципальный район","Бельский сельский совет","80621410","сельское поселение"]
["Гафурийский муниципальный район","Бурлинский сельский совет","80621413","сельское поселение"]
["Гафурийский муниципальный район","Буруновский сельский совет","80621414","сельское поселение"]
["Гафурийский муниципальный район","Гафурийский муниципальный район","80621000","муниципальный район"]
["Гафурийский муниципальный район","Зилим-Карановский сельский совет","80621416","сельское поселение"]
["Гафурийский муниципальный район","Имендяшевский сельский совет","80621419","сельское поселение"]
["Гафурийский муниципальный район","Ковардинский сельский совет","80621422","сельское поселение"]
["Гафурийский муниципальный район","Красноусольский сельский совет","80621423","сельское поселение"]
["Гафурийский муниципальный район","Мраковский сельский совет","80621425","сельское поселение"]
["Гафурийский муниципальный район","Саитбабинский сельский совет","80621428","сельское поселение"]
["Гафурийский муниципальный район","Табынский сельский совет","80621431","сельское поселение"]
["Гафурийский муниципальный район","Ташбукановский сельский совет","80621434","сельское поселение"]
["Гафурийский муниципальный район","Ташлинский сельский совет","80621437","сельское поселение"]
["Гафурийский муниципальный район","Толпаровский сельский совет","80621440","сельское поселение"]
["Гафурийский муниципальный район","Утяковский сельский совет","80621443","сельское поселение"]
["Гафурийский муниципальный район","Янгискаинский сельский совет","80621446","сельское поселение"]
["Город Агидель","Город Агидель","80703000","городской округ"]
["Город Кумертау","Город Кумертау","80723000","городской округ"]
["Город Нефтекамск","Город Нефтекамск","80727000","городской округ"]
["Город Октябрьский","Город Октябрьский","80735000","городской округ"]
["Город Салават","Город Салават","80739000","городской округ"]
["Город Сибай","Город Сибай","80743000","городской округ"]
["Город Стерлитамак","Город Стерлитамак","80745000","городской округ"]
["Город Уфа","Город Уфа","80701000","городской округ"]
["Давлекановский муниципальный район","Алгинский сельский совет","80622404","сельское поселение"]
["Давлекановский муниципальный район","Бик-Кармалинский сельский совет","80622410","сельское поселение"]
["Давлекановский муниципальный район","Город Давлеканово","80622101","городское поселение, в состав которого входит город"]
["Давлекановский муниципальный район","Давлекановский муниципальный район","80622000","муниципальный район"]
["Давлекановский муниципальный район","Ивановский сельский совет","80622413","сельское поселение"]
["Давлекановский муниципальный район","Имай-Кармалинский сельский совет","80622416","сельское поселение"]
["Давлекановский муниципальный район","Кадыргуловский сельский совет","80622419","сельское поселение"]
["Давлекановский муниципальный район","Казангуловский сельский совет","80622422","сельское поселение"]
["Давлекановский муниципальный район","Кидрячевский сельский совет","80622425","сельское поселение"]
["Давлекановский муниципальный район","Курманкеевский сельский совет","80622428","сельское поселение"]
["Давлекановский муниципальный район","Микяшевский сельский совет","80622431","сельское поселение"]
["Давлекановский муниципальный район","Поляковский сельский совет","80622434","сельское поселение"]
["Давлекановский муниципальный район","Раевский сельский совет","80622437","сельское поселение"]
["Давлекановский муниципальный район","Рассветовский сельский совет","80622440","сельское поселение"]
["Давлекановский муниципальный район","Сергиопольский сельский совет","80622443","сельское поселение"]
["Давлекановский муниципальный район","Соколовский сельский совет","80622444","сельское поселение"]
["Давлекановский муниципальный район","Чуюнчинский сельский совет","80622446","сельское поселение"]
["Давлекановский муниципальный район","Шестаевский сельский совет","80622449","сельское поселение"]
["Дуванский муниципальный район","Ариевский сельский совет","80623404","сельское поселение"]
["Дуванский муниципальный район","Вознесенский сельский совет","80623406","сельское поселение"]
["Дуванский муниципальный район","Дуванский муниципальный район","80623000","муниципальный район"]
["Дуванский муниципальный район","Дуванский сельский совет","80623407","сельское поселение"]
["Дуванский муниципальный район","Заимкинский сельский совет","80623413","сельское поселение"]
["Дуванский муниципальный район","Лемазинский сельский совет","80623419","сельское поселение"]
["Дуванский муниципальный район","Месягутовский сельский совет","80623422","сельское поселение"]
["Дуванский муниципальный район","Метелинский сельский совет","80623425","сельское поселение"]
["Дуванский муниципальный район","Михайловский сельский совет","80623428","сельское поселение"]
["Дуванский муниципальный район","Рухтинский сельский совет","80623431","сельское поселение"]
["Дуванский муниципальный район","Сальевский сельский совет","80623433","сельское поселение"]
["Дуванский муниципальный район","Сикиязский сельский совет","80623434","сельское поселение"]
["Дуванский муниципальный район","Улькундинский сельский совет","80623440","сельское поселение"]
["Дуванский муниципальный район","Ярославский сельский совет","80623443","сельское поселение"]
["Дюртюлинский муниципальный район","Ангасякский сельский совет","80624404","сельское поселение"]
["Дюртюлинский муниципальный район","Асяновский сельский совет","80624407","сельское поселение"]
["Дюртюлинский муниципальный район","Город Дюртюли","80624101","городское поселение, в состав которого входит город"]
["Дюртюлинский муниципальный район","Дюртюлинский муниципальный район","80624000","муниципальный район"]
["Дюртюлинский муниципальный район","Исмаиловский сельский совет","80624410","сельское поселение"]
["Дюртюлинский муниципальный район","Куккуяновский сельский совет","80624413","сельское поселение"]
["Дюртюлинский муниципальный район","Маядыковский сельский совет","80624416","сельское поселение"]
["Дюртюлинский муниципальный район","Московский сельский совет","80624422","сельское поселение"]
["Дюртюлинский муниципальный район","Семилетовский сельский совет","80624430","сельское поселение"]
["Дюртюлинский муниципальный район","Старобаишевский сельский совет","80624431","сельское поселение"]
["Дюртюлинский муниципальный район","Староянтузовский сельский совет","80624434","сельское поселение"]
["Дюртюлинский муниципальный район","Суккуловский сельский совет","80624437","сельское поселение"]
["Дюртюлинский муниципальный район","Таймурзинский сельский совет","80624440","сельское поселение"]
["Дюртюлинский муниципальный район","Такарликовский сельский совет","80624443","сельское поселение"]
["Дюртюлинский муниципальный район","Учпилинский сельский совет","80624447","сельское поселение"]
["Дюртюлинский муниципальный район","Черлаковский сельский совет","80624449","сельское поселение"]
["Ермекеевский муниципальный район","Бекетовский сельский совет","80625402","сельское поселение"]
["Ермекеевский муниципальный район","Восьмомартовский сельский совет","80625404","сельское поселение"]
["Ермекеевский муниципальный район","Ермекеевский муниципальный район","80625000","муниципальный район"]
["Ермекеевский муниципальный район","Ермекеевский сельский совет","80625407","сельское поселение"]
["Ермекеевский муниципальный район","Кызыл-Ярский сельский совет","80625411","сельское поселение"]
["Ермекеевский муниципальный район","Нижнеулу-Елгинский сельский совет","80625413","сельское поселение"]
["Ермекеевский муниципальный район","Рятамакский сельский совет","80625416","сельское поселение"]
["Ермекеевский муниципальный район","Спартакский сельский совет","80625422","сельское поселение"]
["Ермекеевский муниципальный район","Среднекарамалинский сельский совет","80625425","сельское поселение"]
["Ермекеевский муниципальный район","Старосуллинский сельский совет","80625428","сельское поселение"]
["Ермекеевский муниципальный район","Старотураевский сельский совет","80625431","сельское поселение"]
["Ермекеевский муниципальный район","Суккуловский сельский совет","80625434","сельское поселение"]
["Ермекеевский муниципальный район","Тарказинский сельский совет","80625437","сельское поселение"]
["Ермекеевский муниципальный район","Усман-Ташлинский сельский совет","80625440","сельское поселение"]
["ЗАТО город Межгорье","ЗАТО город Межгорье","80707000","городской округ"]
["Зианчуринский муниципальный район","Абзановский сельский совет","80626404","сельское поселение"]
["Зианчуринский муниципальный район","Абуляисовский сельский совет","80626405","сельское поселение"]
["Зианчуринский муниципальный район","Баишевский сельский совет","80626406","сельское поселение"]
["Зианчуринский муниципальный район","Байдавлетовский сельский совет","80626407","сельское поселение"]
["Зианчуринский муниципальный район","Бикбауский сельский совет","80626410","сельское поселение"]
["Зианчуринский муниципальный район","Зианчуринский муниципальный район","80626000","муниципальный район"]
["Зианчуринский муниципальный район","Исянгуловский сельский совет","80626416","сельское поселение"]
["Зианчуринский муниципальный район","Казанбулакский сельский совет","80626419","сельское поселение"]
["Зианчуринский муниципальный район","Муйнакский сельский совет","80626422","сельское поселение"]
["Зианчуринский муниципальный район","Новопетровский сельский совет","80626425","сельское поселение"]
["Зианчуринский муниципальный район","Новочебенкинский сельский совет","80626428","сельское поселение"]
["Зианчуринский муниципальный район","Сакмарский сельский совет","80626431","сельское поселение"]
["Зианчуринский муниципальный район","Суренский сельский совет","80626434","сельское поселение"]
["Зианчуринский муниципальный район","Тазларовский сельский совет","80626437","сельское поселение"]
["Зианчуринский муниципальный район","Утягуловский сельский совет","80626440","сельское поселение"]
["Зианчуринский муниципальный район","Яныбаевский сельский совет","80626443","сельское поселение"]
["Зилаирский муниципальный район","Бердяшский сельский совет","80627404","сельское поселение"]
["Зилаирский муниципальный район","Верхнегалеевский сельский совет","80627410","сельское поселение"]
["Зилаирский муниципальный район","Дмитриевский сельский совет","80627413","сельское поселение"]
["Зилаирский муниципальный район","Зилаирский муниципальный район","80627000","муниципальный район"]
["Зилаирский муниципальный район","Зилаирский сельский совет","80627416","сельское поселение"]
["Зилаирский муниципальный район","Ивано-Кувалатский сельский совет","80627419","сельское поселение"]
["Зилаирский муниципальный район","Кананикольский сельский совет","80627421","сельское поселение"]
["Зилаирский муниципальный район","Канзафаровский сельский совет","80627422","сельское поселение"]
["Зилаирский муниципальный район","Кашкаровский сельский совет","80627423","сельское поселение"]
["Зилаирский муниципальный район","Матраевский сельский совет","80627425","сельское поселение"]
["Зилаирский муниципальный район","Сабыровский сельский совет","80627432","сельское поселение"]
["Зилаирский муниципальный район","Уркасский сельский совет","80627434","сельское поселение"]
["Зилаирский муниципальный район","Юлдыбаевский сельский совет","80627436","сельское поселение"]
["Зилаирский муниципальный район","Ямансазский сельский совет","80627442","сельское поселение"]
["Иглинский муниципальный район","Акбердинский сельский совет","80628403","сельское поселение"]
["Иглинский муниципальный район","Ауструмский сельский совет","80628405","сельское поселение"]
["Иглинский муниципальный район","Балтийский сельский совет","80628410","сельское поселение"]
["Иглинский муниципальный район","Ивано-Казанский сельский совет","80628415","сельское поселение"]
["Иглинский муниципальный район","Иглинский муниципальный район","80628000","муниципальный район"]
["Иглинский муниципальный район","Иглинский сельский совет","80628416","сельское поселение"]
["Иглинский муниципальный район","Калтымановский сельский совет","80628420","сельское поселение"]
["Иглинский муниципальный район","Кальтовский сельский совет","80628425","сельское поселение"]
["Иглинский муниципальный район","Красновосходский сельский совет","80628430","сельское поселение"]
["Иглинский муниципальный район","Кудеевский сельский совет","80628432","сельское поселение"]
["Иглинский муниципальный район","Лемезинский сельский совет","80628435","сельское поселение"]
["Иглинский муниципальный район","Майский сельский совет","80628440","сельское поселение"]
["Иглинский муниципальный район","Надеждинский сельский совет","80628445","сельское поселение"]
["Иглинский муниципальный район","Охлебининский сельский совет","80628450","сельское поселение"]
["Иглинский муниципальный район","Тавтимановский сельский совет","80628455","сельское поселение"]
["Иглинский муниципальный район","Турбаслинский сельский совет","80628460","сельское поселение"]
["Иглинский муниципальный район","Уктеевский сельский совет","80628470","сельское поселение"]
["Иглинский муниципальный район","Улу-Телякский сельский совет","80628472","сельское поселение"]
["Иглинский муниципальный район","Урманский сельский совет","80628474","сельское поселение"]
["Иглинский муниципальный район","Чуваш-Кубовский сельский совет","80628480","сельское поселение"]
["Илишевский муниципальный район","Аккузевский сельский совет","80630404","сельское поселение"]
["Илишевский муниципальный район","Андреевский сельский совет","80630408","сельское поселение"]
["Илишевский муниципальный район","Базитамакский сельский совет","80630412","сельское поселение"]
["Илишевский муниципальный район","Бишкураевский сельский совет","80630416","сельское поселение"]
["Илишевский муниципальный район","Дюмеевский сельский совет","80630424","сельское поселение"]
["Илишевский муниципальный район","Игметовский сельский совет","80630426","сельское поселение"]
["Илишевский муниципальный район","Илишевский муниципальный район","80630000","муниципальный район"]
["Илишевский муниципальный район","Исаметовский сельский совет","80630428","сельское поселение"]
["Илишевский муниципальный район","Исанбаевский сельский совет","80630432","сельское поселение"]
["Илишевский муниципальный район","Итеевский сельский совет","80630436","сельское поселение"]
["Илишевский муниципальный район","Ишкаровский сельский совет","80630440","сельское поселение"]
["Илишевский муниципальный район","Кадыровский сельский совет","80630444","сельское поселение"]
["Илишевский муниципальный район","Карабашевский сельский совет","80630448","сельское поселение"]
["Илишевский муниципальный район","Кужбахтинский сельский совет","80630452","сельское поселение"]
["Илишевский муниципальный район","Новомедведевский сельский совет","80630456","сельское поселение"]
["Илишевский муниципальный район","Рсаевский сельский совет","80630460","сельское поселение"]
["Илишевский муниципальный район","Старокуктовский сельский совет","80630464","сельское поселение"]
["Илишевский муниципальный район","Сюльтинский сельский совет","80630468","сельское поселение"]
["Илишевский муниципальный район","Урметовский сельский совет","80630472","сельское поселение"]
["Илишевский муниципальный район","Черекулевский сельский совет","80630476","сельское поселение"]
["Илишевский муниципальный район","Юнновский сельский совет","80630478","сельское поселение"]
["Илишевский муниципальный район","Ябалаковский сельский совет","80630480","сельское поселение"]
["Илишевский муниципальный район","Яркеевский сельский совет","80630484","сельское поселение"]
["Ишимбайский муниципальный район","Арметовский сельский совет","80631405","сельское поселение"]
["Ишимбайский муниципальный район","Байгузинский сельский совет","80631415","сельское поселение"]
["Ишимбайский муниципальный район","Верхоторский сельский совет","80631425","сельское поселение"]
["Ишимбайский муниципальный район","Город Ишимбай","80631101","городское поселение, в состав которого входит город"]
["Ишимбайский муниципальный район","Иткуловский сельский совет","80631430","сельское поселение"]
["Ишимбайский муниципальный район","Ишеевский сельский совет","80631435","сельское поселение"]
["Ишимбайский муниципальный район","Ишимбайский муниципальный район","80631000","муниципальный район"]
["Ишимбайский муниципальный район","Кузяновский сельский совет","80631440","сельское поселение"]
["Ишимбайский муниципальный район","Кулгунинский сельский совет","80631445","сельское поселение"]
["Ишимбайский муниципальный район","Макаровский сельский совет","80631450","сельское поселение"]
["Ишимбайский муниципальный район","Петровский сельский совет","80631455","сельское поселение"]
["Ишимбайский муниципальный район","Сайрановский сельский совет","80631460","сельское поселение"]
["Ишимбайский муниципальный район","Скворчихинский сельский совет","80631470","сельское поселение"]
["Ишимбайский муниципальный район","Урман-Бишкадакский сельский совет","80631475","сельское поселение"]
["Ишимбайский муниципальный район","Янурусовский сельский совет","80631480","сельское поселение"]
["Калтасинский муниципальный район","Амзибашевский сельский совет","80633403","сельское поселение"]
["Калтасинский муниципальный район","Большекачаковский сельский совет","80633405","сельское поселение"]
["Калтасинский муниципальный район","Калегинский сельский совет","80633415","сельское поселение"]
["Калтасинский муниципальный район","Калмиябашевский сельский совет","80633420","сельское поселение"]
["Калтасинский муниципальный район","Калтасинский муниципальный район","80633000","муниципальный район"]
["Калтасинский муниципальный район","Калтасинский сельский совет","80633425","сельское поселение"]
["Калтасинский муниципальный район","Кельтеевский сельский совет","80633430","сельское поселение"]
["Калтасинский муниципальный район","Краснохолмский сельский совет","80633447","сельское поселение"]
["Калтасинский муниципальный район","Нижнекачмашевский сельский совет","80633445","сельское поселение"]
["Калтасинский муниципальный район","Новокильбахтинский сельский совет","80633446","сельское поселение"]
["Калтасинский муниципальный район","Старояшевский сельский совет","80633452","сельское поселение"]
["Калтасинский муниципальный район","Тюльдинский сельский совет","80633450","сельское поселение"]
["Караидельский муниципальный район","Артакульский сельский совет","80634404","сельское поселение"]
["Караидельский муниципальный район","Байкибашевский сельский совет","80634412","сельское поселение"]
["Караидельский муниципальный район","Байкинский сельский совет","80634416","сельское поселение"]
["Караидельский муниципальный район","Верхнесуянский сельский совет","80634424","сельское поселение"]
["Караидельский муниципальный район","Караидельский муниципальный район","80634000","муниципальный район"]
["Караидельский муниципальный район","Караидельский сельский совет","80634432","сельское поселение"]
["Караидельский муниципальный район","Караярский сельский совет","80634436","сельское поселение"]
["Караидельский муниципальный район","Кирзинский сельский совет","80634440","сельское поселение"]
["Караидельский муниципальный район","Куртлыкульский сельский совет","80634444","сельское поселение"]
["Караидельский муниципальный район","Магинский сельский совет","80634445","сельское поселение"]
["Караидельский муниципальный район","Новобердяшский сельский совет","80634452","сельское поселение"]
["Караидельский муниципальный район","Новомуллакаевский сельский совет","80634456","сельское поселение"]
["Караидельский муниципальный район","Озеркинский сельский совет","80634460","сельское поселение"]
["Караидельский муниципальный район","Подлубовский сельский совет","80634464","сельское поселение"]
["Караидельский муниципальный район","Староакбуляковский сельский совет","80634472","сельское поселение"]
["Караидельский муниципальный район","Ургушевский сельский совет","80634480","сельское поселение"]
["Караидельский муниципальный район","Урюш-Битуллинский сельский совет","80634484","сельское поселение"]
["Караидельский муниципальный район","Явгильдинский сельский совет","80634488","сельское поселение"]
["Кармаскалинский муниципальный район","Адзитаровский сельский совет","80635405","сельское поселение"]
["Кармаскалинский муниципальный район","Бузовьязовский сельский совет","80635415","сельское поселение"]
["Кармаскалинский муниципальный район","Ефремкинский сельский совет","80635420","сельское поселение"]
["Кармаскалинский муниципальный район","Кабаковский сельский совет","80635423","сельское поселение"]
["Кармаскалинский муниципальный район","Камышлинский сельский совет","80635425","сельское поселение"]
["Кармаскалинский муниципальный район","Карламанский сельский совет","80635430","сельское поселение"]
["Кармаскалинский муниципальный район","Кармаскалинский муниципальный район","80635000","муниципальный район"]
["Кармаскалинский муниципальный район","Кармаскалинский сельский совет","80635435","сельское поселение"]
["Кармаскалинский муниципальный район","Николаевский сельский совет","80635440","сельское поселение"]
["Кармаскалинский муниципальный район","Новокиешкинский сельский совет","80635445","сельское поселение"]
["Кармаскалинский муниципальный район","Подлубовский сельский совет","80635450","сельское поселение"]
["Кармаскалинский муниципальный район","Прибельский сельский совет","80635451","сельское поселение"]
["Кармаскалинский муниципальный район","Савалеевский сельский совет","80635455","сельское поселение"]
["Кармаскалинский муниципальный район","Сахаевский сельский совет","80635475","сельское поселение"]
["Кармаскалинский муниципальный район","Старобабичевский сельский совет","80635465","сельское поселение"]
["Кармаскалинский муниципальный район","Старомусинский сельский совет","80635470","сельское поселение"]
["Кармаскалинский муниципальный район","Шаймуратовский сельский совет","80635480","сельское поселение"]
["Кигинский муниципальный район","Абзаевский сельский совет","80636405","сельское поселение"]
["Кигинский муниципальный район","Арслановский сельский совет","80636410","сельское поселение"]
["Кигинский муниципальный район","Верхнекигинский сельский совет","80636415","сельское поселение"]
["Кигинский муниципальный район","Душанбековский сельский совет","80636425","сельское поселение"]
["Кигинский муниципальный район","Еланлинский сельский совет","80636420","сельское поселение"]
["Кигинский муниципальный район","Ибраевский сельский совет","80636430","сельское поселение"]
["Кигинский муниципальный район","Кандаковский сельский совет","80636435","сельское поселение"]
["Кигинский муниципальный район","Кигинский муниципальный район","80636000","муниципальный район"]
["Кигинский муниципальный район","Леузинский сельский совет","80636440","сельское поселение"]
["Кигинский муниципальный район","Нижнекигинский сельский совет","80636445","сельское поселение"]
["Краснокамский муниципальный район","Арлановский сельский совет","80637405","сельское поселение"]
["Краснокамский муниципальный район","Кариевский сельский совет","80637410","сельское поселение"]
["Краснокамский муниципальный район","Краснокамский муниципальный район","80637000","муниципальный район"]
["Краснокамский муниципальный район","Куяновский сельский совет","80637412","сельское поселение"]
["Краснокамский муниципальный район","Музяковский сельский совет","80637415","сельское поселение"]
["Краснокамский муниципальный район","Николо-Березовский сельский совет","80637421","сельское поселение"]
["Краснокамский муниципальный район","Никольский сельский совет","80637420","сельское поселение"]
["Краснокамский муниципальный район","Новобуринский сельский совет","80637425","сельское поселение"]
["Краснокамский муниципальный район","Новокабановский сельский совет","80637430","сельское поселение"]
["Краснокамский муниципальный район","Новокаинлыковский сельский совет","80637435","сельское поселение"]
["Краснокамский муниципальный район","Новонагаевский сельский совет","80637440","сельское поселение"]
["Краснокамский муниципальный район","Новоянзигитовский сельский совет","80637461","сельское поселение"]
["Краснокамский муниципальный район","Раздольевский сельский совет","80637443","сельское поселение"]
["Краснокамский муниципальный район","Саузбашевский сельский совет","80637450","сельское поселение"]
["Краснокамский муниципальный район","Шушнурский сельский совет","80637465","сельское поселение"]
["Кугарчинский муниципальный район","Волостновский сельский совет","80638405","сельское поселение"]
["Кугарчинский муниципальный район","Зареченский сельский совет","80638410","сельское поселение"]
["Кугарчинский муниципальный район","Ибраевский сельский совет","80638415","сельское поселение"]
["Кугарчинский муниципальный район","Ижбердинский сельский совет","80638420","сельское поселение"]
["Кугарчинский муниципальный район","Иртюбякский сельский совет","80638425","сельское поселение"]
["Кугарчинский муниципальный район","Исимовский сельский совет","80638430","сельское поселение"]
["Кугарчинский муниципальный район","Кугарчинский муниципальный район","80638000","муниципальный район"]
["Кугарчинский муниципальный район","Кугарчинский сельский совет","80638440","сельское поселение"]
["Кугарчинский муниципальный район","Максютовский сельский совет","80638445","сельское поселение"]
["Кугарчинский муниципальный район","Мраковский сельский совет","80638450","сельское поселение"]
["Кугарчинский муниципальный район","Нижнебиккузинский сельский совет","80638455","сельское поселение"]
["Кугарчинский муниципальный район","Новопетровский сельский совет","80638460","сельское поселение"]
["Кугарчинский муниципальный район","Нукаевский сельский совет","80638463","сельское поселение"]
["Кугарчинский муниципальный район","Побоищенский сельский совет","80638470","сельское поселение"]
["Кугарчинский муниципальный район","Санзяповский сельский совет","80638473","сельское поселение"]
["Кугарчинский муниципальный район","Тляумбетовский сельский совет","80638475","сельское поселение"]
["Кугарчинский муниципальный район","Уральский сельский совет","80638480","сельское поселение"]
["Кугарчинский муниципальный район","Чапаевский сельский совет","80638483","сельское поселение"]
["Кугарчинский муниципальный район","Юлдыбаевский сельский совет","80638485","сельское поселение"]
["Кугарчинский муниципальный район","Юмагузинский сельский совет","80638487","сельское поселение"]
["Кугарчинский муниципальный район","Ялчинский сельский совет","80638495","сельское поселение"]
["Кушнаренковский муниципальный район","Ахметовский сельский совет","80640405","сельское поселение"]
["Кушнаренковский муниципальный район","Бакаевский сельский совет","80640410","сельское поселение"]
["Кушнаренковский муниципальный район","Горьковский сельский совет","80640415","сельское поселение"]
["Кушнаренковский муниципальный район","Карача-Елгинский сельский совет","80640430","сельское поселение"]
["Кушнаренковский муниципальный район","Кушнаренковский муниципальный район","80640000","муниципальный район"]
["Кушнаренковский муниципальный район","Кушнаренковский сельский совет","80640435","сельское поселение"]
["Кушнаренковский муниципальный район","Матвеевский сельский совет","80640440","сельское поселение"]
["Кушнаренковский муниципальный район","Расмекеевский сельский совет","80640465","сельское поселение"]
["Кушнаренковский муниципальный район","Старогумеровский сельский совет","80640470","сельское поселение"]
["Кушнаренковский муниципальный район","Старокамышлинский сельский совет","80640475","сельское поселение"]
["Кушнаренковский муниципальный район","Старокурмашевский сельский совет","80640477","сельское поселение"]
["Кушнаренковский муниципальный район","Старотукмаклинский сельский совет","80640480","сельское поселение"]
["Кушнаренковский муниципальный район","Шариповский сельский совет","80640490","сельское поселение"]
["Куюргазинский муниципальный район","Бахмутский сельский совет","80639410","сельское поселение"]
["Куюргазинский муниципальный район","Ермолаевский сельский совет","80639412","сельское поселение"]
["Куюргазинский муниципальный район","Зяк-Ишметовский сельский совет","80639417","сельское поселение"]
["Куюргазинский муниципальный район","Илькинеевский сельский совет","80639415","сельское поселение"]
["Куюргазинский муниципальный район","Кривле-Илюшкинский сельский совет","80639420","сельское поселение"]
["Куюргазинский муниципальный район","Куюргазинский муниципальный район","80639000","муниципальный район"]
["Куюргазинский муниципальный район","Ленинский сельский совет","80639425","сельское поселение"]
["Куюргазинский муниципальный район","Мурапталовский сельский совет","80639435","сельское поселение"]
["Куюргазинский муниципальный район","Отрадинский сельский совет","80639440","сельское поселение"]
["Куюргазинский муниципальный район","Свободинский сельский совет","80639450","сельское поселение"]
["Куюргазинский муниципальный район","Таймасовский сельский совет","80639455","сельское поселение"]
["Куюргазинский муниципальный район","Шабагишский сельский совет","80639460","сельское поселение"]
["Куюргазинский муниципальный район","Якшимбетовский сельский совет","80639465","сельское поселение"]
["Мелеузовский муниципальный район","Абитовский сельский совет","80641402","сельское поселение"]
["Мелеузовский муниципальный район","Александровский сельский совет","80641405","сельское поселение"]
["Мелеузовский муниципальный район","Аптраковский сельский совет","80641410","сельское поселение"]
["Мелеузовский муниципальный район","Араслановский сельский совет","80641415","сельское поселение"]
["Мелеузовский муниципальный район","Воскресенский сельский совет","80641422","сельское поселение"]
["Мелеузовский муниципальный район","Город Мелеуз","80641101","городское поселение, в состав которого входит город"]
["Мелеузовский муниципальный район","Денисовский сельский совет","80641435","сельское поселение"]
["Мелеузовский муниципальный район","Зирганский сельский совет","80641430","сельское поселение"]
["Мелеузовский муниципальный район","Иштугановский сельский совет","80641445","сельское поселение"]
["Мелеузовский муниципальный район","Корнеевский сельский совет","80641480","сельское поселение"]
["Мелеузовский муниципальный район","Мелеузовский муниципальный район","80641000","муниципальный район"]
["Мелеузовский муниципальный район","Мелеузовский сельский совет","80641450","сельское поселение"]
["Мелеузовский муниципальный район","Нордовский сельский совет","80641455","сельское поселение"]
["Мелеузовский муниципальный район","Нугушевский сельский совет","80641460","сельское поселение"]
["Мелеузовский муниципальный район","Партизанский сельский совет","80641465","сельское поселение"]
["Мелеузовский муниципальный район","Первомайский сельский совет","80641470","сельское поселение"]
["Мелеузовский муниципальный район","Сарышевский сельский совет","80641475","сельское поселение"]
["Мелеузовский муниципальный район","Шевченковский сельский совет","80641485","сельское поселение"]
["Мечетлинский муниципальный район","Абдуллинский сельский совет","80642401","сельское поселение"]
["Мечетлинский муниципальный район","Алегазовский сельский совет","80642405","сельское поселение"]
["Мечетлинский муниципальный район","Большеокинский сельский совет","80642410","сельское поселение"]
["Мечетлинский муниципальный район","Большеустьикинский сельский совет","80642415","сельское поселение"]
["Мечетлинский муниципальный район","Дуван-Мечетлинский сельский совет","80642420","сельское поселение"]
["Мечетлинский муниципальный район","Кургатовский сельский совет","80642423","сельское поселение"]
["Мечетлинский муниципальный район","Лемез-Тамакский сельский совет","80642425","сельское поселение"]
["Мечетлинский муниципальный район","Малоустьикинский сельский совет","80642430","сельское поселение"]
["Мечетлинский муниципальный район","Мечетлинский муниципальный район","80642000","муниципальный район"]
["Мечетлинский муниципальный район","Новомещеровский сельский совет","80642435","сельское поселение"]
["Мечетлинский муниципальный район","Новояушевский сельский совет","80642442","сельское поселение"]
["Мечетлинский муниципальный район","Ростовский сельский совет","80642445","сельское поселение"]
["Мечетлинский муниципальный район","Юнусовский сельский совет","80642450","сельское поселение"]
["Мишкинский муниципальный район","Акбулатовский сельский совет","80643405","сельское поселение"]
["Мишкинский муниципальный район","Баймурзинский сельский совет","80643410","сельское поселение"]
["Мишкинский муниципальный район","Большесухоязовский сельский совет","80643415","сельское поселение"]
["Мишкинский муниципальный район","Большешадинский сельский совет","80643420","сельское поселение"]
["Мишкинский муниципальный район","Ирсаевский сельский совет","80643425","сельское поселение"]
["Мишкинский муниципальный район","Кайраковский сельский совет","80643430","сельское поселение"]
["Мишкинский муниципальный район","Камеевский сельский совет","80643435","сельское поселение"]
["Мишкинский муниципальный район","Мавлютовский сельский совет","80643445","сельское поселение"]
["Мишкинский муниципальный район","Мишкинский муниципальный район","80643000","муниципальный район"]
["Мишкинский муниципальный район","Мишкинский сельский совет","80643450","сельское поселение"]
["Мишкинский муниципальный район","Новотроицкий сельский совет","80643455","сельское поселение"]
["Мишкинский муниципальный район","Староарзаматовский сельский совет","80643460","сельское поселение"]
["Мишкинский муниципальный район","Тынбаевский сельский совет","80643465","сельское поселение"]
["Мишкинский муниципальный район","Урьядинский сельский совет","80643470","сельское поселение"]
["Мишкинский муниципальный район","Чураевский сельский совет","80643480","сельское поселение"]
["Миякинский муниципальный район","Биккуловский сельский совет","80644405","сельское поселение"]
["Миякинский муниципальный район","Богдановский сельский совет","80644410","сельское поселение"]
["Миякинский муниципальный район","Большекаркалинский сельский совет","80644415","сельское поселение"]
["Миякинский муниципальный район","Енебей-Урсаевский сельский совет","80644420","сельское поселение"]
["Миякинский муниципальный район","Зильдяровский сельский совет","80644425","сельское поселение"]
["Миякинский муниципальный район","Ильчигуловский сельский совет","80644428","сельское поселение"]
["Миякинский муниципальный район","Карановский сельский совет","80644429","сельское поселение"]
["Миякинский муниципальный район","Качегановский сельский совет","80644430","сельское поселение"]
["Миякинский муниципальный район","Кожай-Семеновский сельский совет","80644435","сельское поселение"]
["Миякинский муниципальный район","Менеузтамакский сельский совет","80644440","сельское поселение"]
["Миякинский муниципальный район","Миякибашевский сельский совет","80644445","сельское поселение"]
["Миякинский муниципальный район","Миякинский муниципальный район","80644000","муниципальный район"]
["Миякинский муниципальный район","Миякинский сельский совет","80644450","сельское поселение"]
["Миякинский муниципальный район","Новокарамалинский сельский совет","80644460","сельское поселение"]
["Миякинский муниципальный район","Сатыевский сельский совет","80644465","сельское поселение"]
["Миякинский муниципальный район","Уршакбашкарамалинский сельский совет","80644470","сельское поселение"]
["Нуримановский муниципальный район","Байгильдинский сельский совет","80645405","сельское поселение"]
["Нуримановский муниципальный район","Баш-Шидинский сельский совет","80645410","сельское поселение"]
["Нуримановский муниципальный район","Красногорский сельский совет","80645415","сельское поселение"]
["Нуримановский муниципальный район","Красноключевский сельский совет","80645416","сельское поселение"]
["Нуримановский муниципальный район","Никольский сельский совет","80645420","сельское поселение"]
["Нуримановский муниципальный район","Новокулевский сельский совет","80645435","сельское поселение"]
["Нуримановский муниципальный район","Новосубаевский сельский совет","80645440","сельское поселение"]
["Нуримановский муниципальный район","Нуримановский муниципальный район","80645000","муниципальный район"]
["Нуримановский муниципальный район","Павловский сельский совет","80645444","сельское поселение"]
["Нуримановский муниципальный район","Первомайский сельский совет","80645445","сельское поселение"]
["Нуримановский муниципальный район","Сарвинский сельский совет","80645450","сельское поселение"]
["Нуримановский муниципальный район","Старобедеевский сельский совет","80645452","сельское поселение"]
["Нуримановский муниципальный район","Староисаевский сельский совет","80645455","сельское поселение"]
["Салаватский муниципальный район","Алькинский сельский совет","80647405","сельское поселение"]
["Салаватский муниципальный район","Аркауловский сельский совет","80647410","сельское поселение"]
["Салаватский муниципальный район","Ишимбаевский сельский совет","80647415","сельское поселение"]
["Салаватский муниципальный район","Лагеревский сельский совет","80647425","сельское поселение"]
["Салаватский муниципальный район","Лаклинский сельский совет","80647430","сельское поселение"]
["Салаватский муниципальный район","Малоязовский сельский совет","80647435","сельское поселение"]
["Салаватский муниципальный район","Мечетлинский сельский совет","80647440","сельское поселение"]
["Салаватский муниципальный район","Мещегаровский сельский совет","80647445","сельское поселение"]
["Салаватский муниципальный район","Мурсалимкинский сельский совет","80647447","сельское поселение"]
["Салаватский муниципальный район","Насибашевский сельский совет","80647450","сельское поселение"]
["Салаватский муниципальный район","Первомайский сельский совет","80647476","сельское поселение"]
["Салаватский муниципальный район","Салаватский муниципальный район","80647000","муниципальный район"]
["Салаватский муниципальный район","Салаватский сельский совет","80647453","сельское поселение"]
["Салаватский муниципальный район","Таймеевский сельский совет","80647455","сельское поселение"]
["Салаватский муниципальный район","Терменевский сельский совет","80647460","сельское поселение"]
["Салаватский муниципальный район","Турналинский сельский совет","80647465","сельское поселение"]
["Салаватский муниципальный район","Янгантауский сельский совет","80647475","сельское поселение"]
["Стерлибашевский муниципальный район","Айдаралинский сельский совет","80648405","сельское поселение"]
["Стерлибашевский муниципальный район","Аллагуватский сельский совет","80648402","сельское поселение"]
["Стерлибашевский муниципальный район","Бакеевский сельский совет","80648410","сельское поселение"]
["Стерлибашевский муниципальный район","Бузатовский сельский совет","80648415","сельское поселение"]
["Стерлибашевский муниципальный район","Кабакушский сельский совет","80648418","сельское поселение"]
["Стерлибашевский муниципальный район","Карагушский сельский совет","80648420","сельское поселение"]
["Стерлибашевский муниципальный район","Куганакбашевский сельский совет","80648425","сельское поселение"]
["Стерлибашевский муниципальный район","Кундрякский сельский совет","80648430","сельское поселение"]
["Стерлибашевский муниципальный район","Сарайсинский сельский совет","80648435","сельское поселение"]
["Стерлибашевский муниципальный район","Старокалкашевский сельский совет","80648440","сельское поселение"]
["Стерлибашевский муниципальный район","Стерлибашевский муниципальный район","80648000","муниципальный район"]
["Стерлибашевский муниципальный район","Стерлибашевский сельский совет","80648445","сельское поселение"]
["Стерлибашевский муниципальный район","Тятер-Араслановский сельский совет","80648455","сельское поселение"]
["Стерлибашевский муниципальный район","Халикеевский сельский совет","80648460","сельское поселение"]
["Стерлибашевский муниципальный район","Янгурчинский сельский совет","80648465","сельское поселение"]
["Стерлибашевский муниципальный район","Яшергановский сельский совет","80648470","сельское поселение"]
["Стерлитамакский муниципальный район","Айгулевский сельский совет","80649404","сельское поселение"]
["Стерлитамакский муниципальный район","Алатанинский сельский совет","80649412","сельское поселение"]
["Стерлитамакский муниципальный район","Ашкадарский сельский совет","80649416","сельское поселение"]
["Стерлитамакский муниципальный район","Аючевский сельский совет","80649418","сельское поселение"]
["Стерлитамакский муниципальный район","Буриказгановский сельский совет","80649428","сельское поселение"]
["Стерлитамакский муниципальный район","Казадаевский сельский совет","80649436","сельское поселение"]
["Стерлитамакский муниципальный район","Константиноградовский сельский совет","80649420","сельское поселение"]
["Стерлитамакский муниципальный район","Красноярский сельский совет","80649444","сельское поселение"]
["Стерлитамакский муниципальный район","Куганакский сельский совет","80649440","сельское поселение"]
["Стерлитамакский муниципальный район","Максимовский сельский совет","80649424","сельское поселение"]
["Стерлитамакский муниципальный район","Наумовский сельский совет","80649448","сельское поселение"]
["Стерлитамакский муниципальный район","Николаевский сельский совет","80649452","сельское поселение"]
["Стерлитамакский муниципальный район","Октябрьский сельский совет","80649460","сельское поселение"]
["Стерлитамакский муниципальный район","Отрадовский сельский совет","80649456","сельское поселение"]
["Стерлитамакский муниципальный район","Первомайский сельский совет","80649464","сельское поселение"]
["Стерлитамакский муниципальный район","Подлесненский сельский совет","80649468","сельское поселение"]
["Стерлитамакский муниципальный район","Рощинский сельский совет","80649478","сельское поселение"]
["Стерлитамакский муниципальный район","Рязановский сельский совет","80649480","сельское поселение"]
["Стерлитамакский муниципальный район","Стерлитамакский муниципальный район","80649000","муниципальный район"]
["Стерлитамакский муниципальный район","Тюрюшлинский сельский совет","80649488","сельское поселение"]
["Стерлитамакский муниципальный район","Услинский сельский совет","80649492","сельское поселение"]
["Татышлинский муниципальный район","Акбулатовский сельский совет","80650405","сельское поселение"]
["Татышлинский муниципальный район","Аксаитовский сельский совет","80650410","сельское поселение"]
["Татышлинский муниципальный район","Бадряшевский сельский совет","80650415","сельское поселение"]
["Татышлинский муниципальный район","Буль-Кайпановский сельский совет","80650420","сельское поселение"]
["Татышлинский муниципальный район","Верхнетатышлинский сельский совет","80650425","сельское поселение"]
["Татышлинский муниципальный район","Кальмияровский сельский совет","80650430","сельское поселение"]
["Татышлинский муниципальный район","Кальтяевский сельский совет","80650435","сельское поселение"]
["Татышлинский муниципальный район","Кудашевский сельский совет","80650440","сельское поселение"]
["Татышлинский муниципальный район","Курдымский сельский совет","80650445","сельское поселение"]
["Татышлинский муниципальный район","Нижнебалтачевский сельский совет","80650450","сельское поселение"]
["Татышлинский муниципальный район","Новотатышлинский сельский совет","80650455","сельское поселение"]
["Татышлинский муниципальный район","Татышлинский муниципальный район","80650000","муниципальный район"]
["Татышлинский муниципальный район","Шулгановский сельский совет","80650460","сельское поселение"]
["Татышлинский муниципальный район","Ялгыз-Наратский сельский совет","80650465","сельское поселение"]
["Туймазинский муниципальный район","Бишкураевский сельский совет","80651405","сельское поселение"]
["Туймазинский муниципальный район","Верхнебишиндинский сельский совет","80651410","сельское поселение"]
["Туймазинский муниципальный район","Верхнетроицкий сельский совет","80651415","сельское поселение"]
["Туймазинский муниципальный район","Гафуровский сельский совет","80651417","сельское поселение"]
["Туймазинский муниципальный район","Город Туймазы","80651101","городское поселение, в состав которого входит город"]
["Туймазинский муниципальный район","Ильчимбетовский сельский совет","80651420","сельское поселение"]
["Туймазинский муниципальный район","Какрыбашевский сельский совет","80651425","сельское поселение"]
["Туймазинский муниципальный район","Кандринский сельский совет","80651427","сельское поселение"]
["Туймазинский муниципальный район","Карамалы-Губеевский сельский совет","80651430","сельское поселение"]
["Туймазинский муниципальный район","Каратовский сельский совет","80651435","сельское поселение"]
["Туймазинский муниципальный район","Нижнетроицкий сельский совет","80651439","сельское поселение"]
["Туймазинский муниципальный район","Николаевский сельский совет","80651440","сельское поселение"]
["Туймазинский муниципальный район","Сайрановский сельский совет","80651445","сельское поселение"]
["Туймазинский муниципальный район","Серафимовский сельский совет","80651447","сельское поселение"]
["Туймазинский муниципальный район","Старотуймазинский сельский совет","80651455","сельское поселение"]
["Туймазинский муниципальный район","Субханкуловский сельский совет","80651461","сельское поселение"]
["Туймазинский муниципальный район","Татар-Улкановский сельский совет","80651465","сельское поселение"]
["Туймазинский муниципальный район","Туймазинский муниципальный район","80651000","муниципальный район"]
["Туймазинский муниципальный район","Тюменяковский сельский совет","80651470","сельское поселение"]
["Туймазинский муниципальный район","Чукадыбашевский сельский совет","80651475","сельское поселение"]
["Уфимский муниципальный район","Авдонский сельский совет","80652405","сельское поселение"]
["Уфимский муниципальный район","Алексеевский сельский совет","80652403","сельское поселение"]
["Уфимский муниципальный район","Булгаковский сельский совет","80652410","сельское поселение"]
["Уфимский муниципальный район","Дмитриевский сельский совет","80652415","сельское поселение"]
["Уфимский муниципальный район","Жуковский сельский совет","80652418","сельское поселение"]
["Уфимский муниципальный район","Зубовский сельский совет","80652420","сельское поселение"]
["Уфимский муниципальный район","Кармасанский сельский совет","80652423","сельское поселение"]
["Уфимский муниципальный район","Кирилловский сельский совет","80652425","сельское поселение"]
["Уфимский муниципальный район","Красноярский сельский совет","80652430","сельское поселение"]
["Уфимский муниципальный район","Миловский сельский совет","80652435","сельское поселение"]
["Уфимский муниципальный район","Михайловский сельский совет","80652440","сельское поселение"]
["Уфимский муниципальный район","Николаевский сельский совет","80652450","сельское поселение"]
["Уфимский муниципальный район","Ольховский сельский совет","80652452","сельское поселение"]
["Уфимский муниципальный район","Русско-Юрмашский сельский совет","80652455","сельское поселение"]
["Уфимский муниципальный район","Таптыковский сельский совет","80652460","сельское поселение"]
["Уфимский муниципальный район","Уфимский муниципальный район","80652000","муниципальный район"]
["Уфимский муниципальный район","Черкасский сельский совет","80652472","сельское поселение"]
["Уфимский муниципальный район","Чесноковский сельский совет","80652473","сельское поселение"]
["Уфимский муниципальный район","Шемякский сельский совет","80652475","сельское поселение"]
["Уфимский муниципальный район","Юматовский сельский совет","80652480","сельское поселение"]
["Учалинский муниципальный район","Амангильдинский сельский совет","80653410","сельское поселение"]
["Учалинский муниципальный район","Ахуновский сельский совет","80653415","сельское поселение"]
["Учалинский муниципальный район","Буйдинский сельский совет","80653416","сельское поселение"]
["Учалинский муниципальный район","Город Учалы","80653101","городское поселение, в состав которого входит город"]
["Учалинский муниципальный район","Ильчигуловский сельский совет","80653420","сельское поселение"]
["Учалинский муниципальный район","Ильчинский сельский совет","80653425","сельское поселение"]
["Учалинский муниципальный район","Имангуловский сельский совет","80653430","сельское поселение"]
["Учалинский муниципальный район","Кирябинский сельский совет","80653440","сельское поселение"]
["Учалинский муниципальный район","Кунакбаевский сельский совет","80653445","сельское поселение"]
["Учалинский муниципальный район","Мансуровский сельский совет","80653449","сельское поселение"]
["Учалинский муниципальный район","Миндякский сельский совет","80653448","сельское поселение"]
["Учалинский муниципальный район","Наурузовский сельский совет","80653450","сельское поселение"]
["Учалинский муниципальный район","Новобайрамгуловский сельский совет","80653455","сельское поселение"]
["Учалинский муниципальный район","Поляковский сельский совет","80653465","сельское поселение"]
["Учалинский муниципальный район","Сафаровский сельский совет","80653470","сельское поселение"]
["Учалинский муниципальный район","Тунгатаровский сельский совет","80653484","сельское поселение"]
["Учалинский муниципальный район","Уразовский сельский совет","80653488","сельское поселение"]
["Учалинский муниципальный район","Уральский сельский совет","80653491","сельское поселение"]
["Учалинский муниципальный район","Учалинский муниципальный район","80653000","муниципальный район"]
["Учалинский муниципальный район","Учалинский сельский совет","80653496","сельское поселение"]
["Федоровский муниципальный район","Бала-Четырманский сельский совет","80654405","сельское поселение"]
["Федоровский муниципальный район","Балыклинский сельский совет","80654410","сельское поселение"]
["Федоровский муниципальный район","Булякаевский сельский совет","80654415","сельское поселение"]
["Федоровский муниципальный район","Верхнеяушевский сельский совет","80654416","сельское поселение"]
["Федоровский муниципальный район","Гончаровский сельский совет","80654417","сельское поселение"]
["Федоровский муниципальный район","Дедовский сельский совет","80654420","сельское поселение"]
["Федоровский муниципальный район","Денискинский сельский совет","80654425","сельское поселение"]
["Федоровский муниципальный район","Каралачикский сельский совет","80654427","сельское поселение"]
["Федоровский муниципальный район","Михайловский сельский совет","80654430","сельское поселение"]
["Федоровский муниципальный район","Покровский сельский совет","80654440","сельское поселение"]
["Федоровский муниципальный район","Пугачевский сельский совет","80654445","сельское поселение"]
["Федоровский муниципальный район","Разинский сельский совет","80654450","сельское поселение"]
["Федоровский муниципальный район","Теняевский сельский совет","80654455","сельское поселение"]
["Федоровский муниципальный район","Федоровский муниципальный район","80654000","муниципальный район"]
["Федоровский муниципальный район","Федоровский сельский совет","80654460","сельское поселение"]
["Хайбуллинский муниципальный район","Абишевский сельский совет","80655405","сельское поселение"]
["Хайбуллинский муниципальный район","Акъюловский сельский совет","80655410","сельское поселение"]
["Хайбуллинский муниципальный район","Акъярский сельский совет","80655415","сельское поселение"]
["Хайбуллинский муниципальный район","Антинганский сельский совет","80655420","сельское поселение"]
["Хайбуллинский муниципальный район","Бурибайский сельский совет","80655424","сельское поселение"]
["Хайбуллинский муниципальный район","Ивановский сельский совет","80655425","сельское поселение"]
["Хайбуллинский муниципальный район","Маканский сельский совет","80655430","сельское поселение"]
["Хайбуллинский муниципальный район","Новозирганский сельский совет","80655432","сельское поселение"]
["Хайбуллинский муниципальный район","Самарский сельский совет","80655433","сельское поселение"]
["Хайбуллинский муниципальный район","Таналыкский сельский совет","80655440","сельское поселение"]
["Хайбуллинский муниципальный район","Татыр-Узякский сельский совет","80655435","сельское поселение"]
["Хайбуллинский муниципальный район","Уфимский сельский совет","80655445","сельское поселение"]
["Хайбуллинский муниципальный район","Федоровский сельский совет","80655450","сельское поселение"]
["Хайбуллинский муниципальный район","Хайбуллинский муниципальный район","80655000","муниципальный район"]
["Хайбуллинский муниципальный район","Целинный сельский совет","80655455","сельское поселение"]
["Чекмагушевский муниципальный район","Башировский сельский совет","80656410","сельское поселение"]
["Чекмагушевский муниципальный район","Имянликулевский сельский совет","80656415","сельское поселение"]
["Чекмагушевский муниципальный район","Калмашбашевский сельский совет","80656420","сельское поселение"]
["Чекмагушевский муниципальный район","Новобалтачевский сельский совет","80656425","сельское поселение"]
["Чекмагушевский муниципальный район","Новокутовский сельский совет","80656435","сельское поселение"]
["Чекмагушевский муниципальный район","Рапатовский сельский совет","80656440","сельское поселение"]
["Чекмагушевский муниципальный район","Резяповский сельский совет","80656445","сельское поселение"]
["Чекмагушевский муниципальный район","Старокалмашевский сельский совет","80656450","сельское поселение"]
["Чекмагушевский муниципальный район","Тайняшевский сельский совет","80656455","сельское поселение"]
["Чекмагушевский муниципальный район","Тузлукушевский сельский совет","80656460","сельское поселение"]
["Чекмагушевский муниципальный район","Урнякский сельский совет","80656465","сельское поселение"]
["Чекмагушевский муниципальный район","Чекмагушевский муниципальный район","80656000","муниципальный район"]
["Чекмагушевский муниципальный район","Чекмагушевский сельский совет","80656470","сельское поселение"]
["Чекмагушевский муниципальный район","Юмашевский сельский совет","80656475","сельское поселение"]
["Чишминский муниципальный район","Алкинский сельский совет","80657405","сельское поселение"]
["Чишминский муниципальный район","Аровский сельский совет","80657410","сельское поселение"]
["Чишминский муниципальный район","Арслановский сельский совет","80657415","сельское поселение"]
["Чишминский муниципальный район","Дмитриевский сельский совет","80657420","сельское поселение"]
["Чишминский муниципальный район","Дурасовский сельский совет","80657425","сельское поселение"]
["Чишминский муниципальный район","Енгалышевский сельский совет","80657430","сельское поселение"]
["Чишминский муниципальный район","Еремеевский сельский совет","80657435","сельское поселение"]
["Чишминский муниципальный район","Ибрагимовский сельский совет","80657440","сельское поселение"]
["Чишминский муниципальный район","Кара-Якуповский сельский совет","80657445","сельское поселение"]
["Чишминский муниципальный район","Лесной сельский совет","80657446","сельское поселение"]
["Чишминский муниципальный район","Новотроицкий сельский совет","80657450","сельское поселение"]
["Чишминский муниципальный район","Сафаровский сельский совет","80657455","сельское поселение"]
["Чишминский муниципальный район","Чишминский муниципальный район","80657000","муниципальный район"]
["Чишминский муниципальный район","Чишминский поссовет","80657151","городское поселение, в состав которого входит поселок"]
["Чишминский муниципальный район","Чишминский сельский совет","80657465","сельское поселение"]
["Чишминский муниципальный район","Чувалкиповский сельский совет","80657470","сельское поселение"]
["Чишминский муниципальный район","Шингак-Кульский сельский совет","80657475","сельское поселение"]
["Шаранский муниципальный район","Акбарисовский сельский совет","80658405","сельское поселение"]
["Шаранский муниципальный район","Базгиевский сельский совет","80658410","сельское поселение"]
["Шаранский муниципальный район","Дмитриево-Полянский сельский совет","80658415","сельское поселение"]
["Шаранский муниципальный район","Дюртюлинский сельский совет","80658420","сельское поселение"]
["Шаранский муниципальный район","Зириклинский сельский совет","80658425","сельское поселение"]
["Шаранский муниципальный район","Мичуринский сельский совет","80658430","сельское поселение"]
["Шаранский муниципальный район","Нижнезаитовский сельский совет","80658435","сельское поселение"]
["Шаранский муниципальный район","Нижнеташлинский сельский совет","80658440","сельское поселение"]
["Шаранский муниципальный район","Нуреевский сельский совет","80658445","сельское поселение"]
["Шаранский муниципальный район","Писаревский сельский совет","80658455","сельское поселение"]
["Шаранский муниципальный район","Старотумбагушевский сельский совет","80658465","сельское поселение"]
["Шаранский муниципальный район","Чалмалинский сельский совет","80658475","сельское поселение"]
["Шаранский муниципальный район","Шаранский муниципальный район","80658000","муниципальный район"]
["Шаранский муниципальный район","Шаранский сельский совет","80658485","сельское поселение"]
["Янаульский муниципальный район","Асавдыбашский сельский совет","80659410","сельское поселение"]
["Янаульский муниципальный район","Байгузинский сельский совет","80659415","сельское поселение"]
["Янаульский муниципальный район","Воядинский сельский совет","80659420","сельское поселение"]
["Янаульский муниципальный район","Город Янаул","80659101","городское поселение, в состав которого входит город"]
["Янаульский муниципальный район","Ижболдинский сельский совет","80659430","сельское поселение"]
["Янаульский муниципальный район","Истякский сельский совет","80659435","сельское поселение"]
["Янаульский муниципальный район","Иткинеевский сельский совет","80659440","сельское поселение"]
["Янаульский муниципальный район","Кармановский сельский совет","80659445","сельское поселение"]
["Янаульский муниципальный район","Кисак-Каинский сельский совет","80659450","сельское поселение"]
["Янаульский муниципальный район","Максимовский сельский совет","80659453","сельское поселение"]
["Янаульский муниципальный район","Месягутовский сельский совет","80659455","сельское поселение"]
["Янаульский муниципальный район","Новоартаульский сельский совет","80659460","сельское поселение"]
["Янаульский муниципальный район","Орловский сельский совет","80659465","сельское поселение"]
["Янаульский муниципальный район","Первомайский сельский совет","80659470","сельское поселение"]
["Янаульский муниципальный район","Сандугачевский сельский совет","80659475","сельское поселение"]
["Янаульский муниципальный район","Староваряшский сельский совет","80659480","сельское поселение"]
["Янаульский муниципальный район","Старокудашевский сельский совет","80659485","сельское поселение"]
["Янаульский муниципальный район","Шудекский сельский совет","80659490","сельское поселение"]
["Янаульский муниципальный район","Ямадинский сельский совет","80659495","сельское поселение"]
["Янаульский муниципальный район","Янаульский муниципальный район","80659000","муниципальный район"]

{"sheet":"REESTR_ORG","index":24,"n_rows":0,"n_cols":0,"rows_kept":0,"hidden":true}

{"sheet":"REESTR_IP","index":25,"n_rows":27,"n_cols":17,"rows_kept":27,"hidden":true}
[null,"L_NAME","L_START_DATE","L_END_DATE","L_IP_COSTS","ORG_NAME","INN_NAME","KPP_NAME","L_OPF","FIL_NAME","VDET_NAME","RST_ORG_ID","L_DECISION_NAME","L_DECISION_TYPE","L_DECISION_NMBR","L_DECISION_DATE","L_DECISION_URL"]
[1,"Инвестиционная программа № 04-06/326 от 12.09.2018 МУП Салаватводоканал в сфере водоснабжения и водоотведения по модернизации и развитию инженерных сетей водоснабжения и водоотведения, на территории городского округа Салават на 2019-2023 годы","01.01.2019","31.12.2023","2194","МУП Салаватводоканал","0266002905","026601001","6 52 43 | Муниципальные унитарные предприятия",null,"Производство (подъём / добыча) воды :: Очистка воды :: Транспортировка воды","26472042","Инвестиционная программа № 04-06/326 от 12.09.2018 МУП Салаватводоканал в сфере водоснабжения и водоотведения по модернизации и развитию инженерных сетей водоснабжения и водоотведения, на территории городского округа Салават на 2019-2023 годы","приказ","04-06/326","12.09.2018","https://portal.eias.ru/Portal/DownloadPage.aspx?type=12&guid=e744aecd-eb40-431f-90d0-6728e988b0d2"]
[2,"Инвестиционная программа № 04/06-326 от 12.09.2018 ДМУП \"ГорКомСервис\" в сфере водоснабжения и водоотведения по реконструкции существующих объектов инженерных сетей водоснабжения и водоотведения, на территории городского поселения Город Давлеканово, Давлекановский муниципальный район на 2019-2021 годы","01.01.2019","31.12.2021","0","ДМУП \"ГорКомСервис\"","0259011320","025901001","6 52 43 | Муниципальные унитарные предприятия",null,"Производство (подъём / добыча) воды :: Транспортировка воды :: Сбыт (распределение) воды","28152448","ИП","приказ","04/06-326","12.09.2018","https://portal.eias.ru/Portal/DownloadPage.aspx?type=12&guid=e24aae4c-ffb5-4ed9-9ef7-bec0160a6bfa"]
[3,"Инвестиционная программа № 04/06-326 от 12.09.2018 ООО ЖКХ с. Семилетка в сфере водоснабжения и водоотведения по развитию, модернизации и реконструкции систем коммунального водоснабжения и водоотведения, на территории муниципального района Дюртюлинский на 2019-2023 годы","01.01.2019","31.12.2023","0","ООО ЖКХ с. Семилетка","0260011460","026001001","1 23 00 | Общества с ограниченной ответственностью",null,"Производство (подъём / добыча) воды :: Очистка воды :: Транспортировка воды :: Сбыт (распределение) воды :: Подвоз воды","31007428","Инвестиционая программа ООО ЖКХ с. Семилетка в сфере водоснабжения и водоотведения по развития, модернизации и реконструкции","приказ","04/06-236","12.09.2018","https://portal.eias.ru/Portal/DownloadPage.aspx?type=12&guid=1f96526d-67ab-4734-a6f0-d910cdc145b4"]
[4,"Инвестиционная программа № 04/06-383 от 30.10.2018 МУП \"Водоканал\" (Шаранский) в сфере холодного водоснабжения по модернизации и реконструкции водопроводных сетей, на территории муниципального района Шаранский на 2019-2021 годы","01.01.2019","31.12.2021","0","МУП \"Водоканал\" (Шаранский)","0251006470","025101001","6 52 43 | Муниципальные унитарные предприятия",null,"Производство (подъём / добыча) воды","27916300","Инвестиц программа","приказ","04/06-383","30.10.2018","https://portal.eias.ru/Portal/DownloadPage.aspx?type=12&guid=ba534166-c6ad-48f9-b1c7-cba2f4087564"]
[5,"Инвестиционная программа № 04/06-383 от 30.10.2018 МУП \"Водоканал\" (Шаранский) в сфере холодного водоснабжения по модернизации и реконструкции водопроводных сетей, на территории муниципального района Шаранский на 2019-2021 годы","01.01.2019","31.12.2021","0","МУП \"Водоканал\" (Шаранский)","0251006470","025101001","6 52 43 | Муниципальные унитарные предприятия",null,"Производство (подъём / добыча) воды","27916300","Инвестиц. программа","приказ","04/06-383","30.10.2018","https://portal.eias.ru/Portal/DownloadPage.aspx?type=12&guid=ba534166-c6ad-48f9-b1c7-cba2f4087564"]
[6,"Инвестиционная программа № 04/06-383 от 30.10.2018 ООО ЖКХ \"Урал\" Абзелиловского района РБ в сфере холодного водоснабжения по реконструкции, модернизации и развитию водопроводных сетей, на территории муниципального района Абзелиловский на 2019-2021 годы","01.01.2019","31.12.2021","0","ООО ЖКХ \"Урал\" Абзелиловского района РБ","0201010513","020101001","1 23 00 | Общества с ограниченной ответственностью",null,"Производство (подъём / добыча) воды","26353611","ИП","приказ","04/06-383","30.10.2018","https://portal.eias.ru/Portal/DownloadPage.aspx?type=12&guid=890f97ad-eba5-4fff-b403-61b42b719414"]
[7,"Инвестиционная программа № 04/06-415 от 20.11.2018 ООО \"Водоканал г. Туймазы\" в сфере водоснабжения и водоотведения по развитию, модернизации и реконструкции систем коммунального водоснабжения и водоотведения, на территории городского поселения Город Туймазы, Туймазинский муниципальный район на 2019-2020 годы","01.01.2019","31.12.2020","313,3997348292","ООО \"Водоканал г. Туймазы\"","0269036490","026901001","1 23 00 | Общества с ограниченной ответственностью",null,"Производство (подъём / добыча) воды :: Очистка воды :: Транспортировка воды :: Сбыт (распределение) воды :: Подвоз воды","31020528","Приказ МЖКХ РБ","приказ","04/06-415","20.11.2018","https://portal.eias.ru/Portal/DownloadPage.aspx?type=12&guid=c5a918b3-9f36-40bb-ada7-658abfe9562e"]
[8,"Инвестиционная программа № 04/08-374 от 26.10.2018 ООО \"ЖКХ С.МОСКОВО\" в сфере водоснабжения и водоотведения по развитию централизованных систем холодного водоснабжения и водоотведения, на территории муниципального района Дюртюлинский на 2019-2022 годы","01.01.2019","31.12.2022","0","ООО \"ЖКХ С.МОСКОВО\"","0260012390","026001001","1 23 00 | Общества с ограниченной ответственностью",null,"Производство (подъём / добыча) воды","27182754","Инвестиционная программа ООО \"ЖКХ с. Москово\" по развитию централизованных систем водоснабжения и водоотведения на 2019-2022 годы","приказ","04/08-374","26.10.2018","https://portal.eias.ru/Portal/DownloadPage.aspx?type=12&guid=86b3c033-b63b-4e47-afba-9303781ce2f1"]
[9,"Инвестиционная программа № 142 от 12.10.2018 МУП \"Коммунхоз\" в сфере водоснабжения по модернизации и реконструкции системы коммунальной инфраструктуры на 2019-2023 годы","01.01.2019","31.01.2023","0","МУП \"Коммунхоз\"","0207005936","020701001","6 52 43 | Муниципальные унитарные предприятия",null,"Производство (подъём / добыча) воды :: Очистка воды","26471886","МУП \"Коммунхоз\" по развитию, модернизации, реконструкции систем коммунального водоснабжения сельского поселения Бакалинский сельсовет муниципального района Бакалинский район Республики Башкортостан","постановление","04/06-383","12.10.2018","https://portal.eias.ru/Portal/DownloadPage.aspx?type=12&guid=04e88e1a-0673-4d00-8cb0-fb0fa6228e04"]
[10,"Инвестиционная программа АО \"Водоснабжающая компания\" по развитию, модернизации, реконструкции систем коммунального водоснабжения и канализации городского округа город Стерлитамак на 2017 - 2019 годы","01.01.2017","31.12.2019","16222,8320981832","АО \"Водоснабжающая компания\"","0268055772","026801001","1 22 47 | Публичные акционерные общества",null,"Производство (подъём / добыча) воды :: Очистка воды :: Транспортировка воды :: Сбыт (распределение) воды","26758634","Об утверждении инвестиционных программ","приказ","04/06-435","30.11.2017","https://portal.eias.ru/Portal/DownloadPage.aspx?type=12&guid=bb8ecfb9-d126-4c5b-908c-55534a4ab604"]
[11,"Инвестиционная программа Ишимбайского муниципального унитарного предприятия \"Межрайкоммунводоканал\" по развитию систем водоснабжения и водоотведения муниципального района Ишимбайский район на период 2017 - 2021 гг.","01.01.2017","31.12.2021","6351,99","ИМУП \"Межрайкоммунводоканал\"","0261002348","026101001","6 52 43 | Муниципальные унитарные предприятия",null,"Производство (подъём / добыча) воды :: Транспортировка воды :: Сбыт (распределение) воды","26472050","Приказ Министерства жилищно-коммунального хозяйства Республики Башкортостан","приказ","04/06-396","17.11.2016","https://portal.eias.ru/Portal/DownloadPage.aspx?type=12&guid=ffbaa6a1-d76c-461e-a84a-8917aae968c4"]
[12,"Инвестиционная программа МУП \"Водоканал\" по развитию централизованных систем водоснабжения муниципального района Иглинский район на период 2016 - 2021 гг.","01.01.2016","31.12.2021","0","МУП \"Водоканал\"","0224009480","022401001","6 52 43 | Муниципальные унитарные предприятия",null,"Производство (подъём / добыча) воды :: Сбыт (распределение) воды","26472155","Об утверждении ИП МУП Водоканал Иглинский МР","приказ","04/06-236","17.08.2015","https://portal.eias.ru/Portal/DownloadPage.aspx?type=12&guid=01c67581-2c06-4102-aa65-85025154fced"]
[13,"Инвестиционная программа МУП \"Дюртюливодоканал\" по развитию систем водоснабжения и водоотведения муниципального района Дюртюлинский район на 2017-2021 годы","01.01.2017","31.12.2021","0","МУП \"Дюртюливодоканал\"","0260006195","026001001","6 52 43 | Муниципальные унитарные предприятия",null,"Производство (подъём / добыча) воды :: Транспортировка воды :: Сбыт (распределение) воды","27745143","Об утверждении инвестиционной программы","приказ","04/08-374","26.10.2018","https://portal.eias.ru/Portal/DownloadPage.aspx?type=12&guid=de1f5404-189f-489a-974c-f744e86b3f1a"]
[14,"Инвестиционная программа МУП \"Межрайкоммунводоканал\" по развитию централизованных систем водоснабжения и водоотведения на территории городского округа город Кумертау на 2018-2020 годы","01.01.2018","31.12.2020","490,0000047822","МУП \"Межрайкоммунводоканал\"","0262000343","026201001","6 52 43 | Муниципальные унитарные предприятия",null,"Производство (подъём / добыча) воды :: Очистка воды :: Транспортировка воды :: Сбыт (распределение) воды","26471967","Об утверждении инвестиционных программ","приказ","04/06-374","23.10.2017","https://portal.eias.ru/Portal/DownloadPage.aspx?type=12&guid=47578e27-cf6b-424e-b7b5-71e1f2d1eec6"]
[15,"Инвестиционная программа МУП \"Октябрьсккоммунводоканал\" по развитию централизованных систем водоснабжения и водоотведения городского округа город Октябрьский на 2017 - 2019 годы","01.01.2017","31.01.2019","1605","МУП \"Октябрьсккоммунводоканал\"","0265026710","026501001","6 52 43 | Муниципальные унитарные предприятия",null,"Производство (подъём / добыча) воды :: Транспортировка воды :: Сбыт (распределение) воды","26472030","Об утверждении инвестиционных программ","приказ","04/06-435","30.11.2017","https://portal.eias.ru/Portal/DownloadPage.aspx?type=12&guid=c7a150d7-fa13-499c-92d9-58e6ea326176"]
[16,"Инвестиционная программа МУП \"Сибайводоканал\" по развитию систем водоснабжения и водоотведения городского округа город Сибай на 2017 - 2019 годы","01.01.2017","31.12.2019","3081,75","МУП \"Сибайводоканал\"","0267018087","026701001","6 52 43 | Муниципальные унитарные предприятия",null,"Производство (подъём / добыча) воды :: Сбыт (распределение) воды","30350111","Об утверждении инвестиционной программы","приказ","04/06-300","08.09.2016","https://portal.eias.ru/Portal/DownloadPage.aspx?type=12&guid=ee828f5f-4c31-488c-9dfb-38d58ed0e806"]
[17,"Инвестиционная программа МУП \"Тепловодоснабжение\" по реконструкции объектов водоснабжения с. Красноусольский муниципального района Гафурийский район на 2017 - 2019 годы","01.01.2017","31.12.2019","0","МУП \"Тепловодоснабжение\"","0219007350","021901001","6 52 43 | Муниципальные унитарные предприятия",null,"Производство (подъём / добыча) воды","26471953","Инвестиционная программа МУП «Тепловодоснабжение» муниципального района Гафурийский район Республики Башкортостан  \"Реконструкции  объектов водоснабжения с. Красноусольский на 2017-2019 гг.\"","приказ","04/06-420","30.11.2016","https://portal.eias.ru/Portal/DownloadPage.aspx?type=12&guid=33f37950-e535-4074-8d99-a1088d344839"]
[18,"Инвестиционная программа МУП \"Уфаводоканал\" по развитию централизованных систем водоснабжения и водоотведения муниципального унитарного предприятия по эксплуатации водопроводно-канализационного хозяйства \"Уфаводоканал\" на 2015 - 2019 годы в целях реализации программы комплексного развития централизованных систем водоснабжения и водоотведения городского округа город Уфа на 2009 - 2025 годы","01.01.2017","31.12.2019","10510,0847457627","МУП \"Уфаводоканал\"","0275000238","027601001","6 52 43 | Муниципальные унитарные предприятия",null,"Производство (подъём / добыча) воды :: Очистка воды :: Транспортировка воды","26472069","Об утверждении инвестиционных программ","приказ","04/06-364","06.10.2017","https://portal.eias.ru/Portal/DownloadPage.aspx?type=12&guid=25678f66-3d42-4e5a-9988-780dd9054144"]
[19,"Инвестиционная программа МУП \"Учалыводоканал\" по развитию, модернизации, оценке и реконструкции систем холодного водоснабжения на 2018-2020 годы","01.01.2018","31.12.2020","135","МУП \"Учалыводоканал\"","0270000570","027001001","6 52 43 | Муниципальные унитарные предприятия",null,"Производство (подъём / добыча) воды :: Очистка воды","26472460","Приказ Министерства жилищно-коммунального хозяйства Республики Башкортостан","приказ","04/06-397","09.11.2017","https://portal.eias.ru/Portal/DownloadPage.aspx?type=12&guid=2ce7daf4-4c11-4f08-81dc-6661402c6acb"]
[20,"Инвестиционная программа ООО \"Белебеевский водоканал\" по развитию систем водоснабжения и водоотведения Белебеевского муниципального района на 2017-2019 годы","01.01.2017","31.12.2019","330","ООО \"Белебеевский водоканал\"","0255014715","025501001","1 23 00 | Общества с ограниченной ответственностью",null,"Производство (подъём / добыча) воды :: Транспортировка воды :: Сбыт (распределение) воды","26471913","Министерство-жилищно-коммунального хозяйства РБ","приказ","04/06-420","30.11.2016","https://portal.eias.ru/Portal/DownloadPage.aspx?type=12&guid=0b11691f-f2c0-441b-97c8-29dc7b22d509"]
[21,"Инвестиционная программа ООО \"Водоканал\" по развитию централизованных систем водоснабжения и водоотведения на 2018-2021 годы","01.01.2018","31.12.2021","4686","ООО \"Водоканал\"","0263017332","026301001","1 23 00 | Общества с ограниченной ответственностью",null,"Производство (подъём / добыча) воды :: Очистка воды :: Транспортировка воды :: Сбыт (распределение) воды","30376832","Об утверждении ИП","приказ","04/06-374","23.10.2017","https://portal.eias.ru/Portal/DownloadPage.aspx?type=12&guid=555cdd05-fe40-469c-89a0-e6beba268a24"]
[22,"Инвестиционная программа ООО \"Нуримановское ЖКХ\" по реконструкции объектов водоснабжения с. Красноусольский муниципального района Нуримановский район на период 2017 - 2019 гг.","01.01.2017","30.12.2019","93,13","ООО «Нуримановское ЖКХ»","0239005216","023901001","1 23 00 | Общества с ограниченной ответственностью",null,"Производство (подъём / добыча) воды :: Очистка воды","26353644","Инвестиционная программа","приказ","04/06-421","30.11.2016","https://portal.eias.ru/Portal/DownloadPage.aspx?type=12&guid=4526eac3-a6e0-48af-a995-0a768c42f19d"]
[23,"Инвестиционная программа от 12.09.2018 ООО \"Водоканал с. Серафимовский\" в сфере водоснабжения и водоотведения по развитию, модернизации и реконструкции систем коммунального водоснабжения и водоотведения, на территории муниципального района Туймазинский на 2019-2021 годы","01.01.2019","31.12.2021","59,5081983471","ООО \"Водоканал с. Серафимовский\"","0269998106","026901001","1 23 00 | Общества с ограниченной ответственностью",null,"Производство (подъём / добыча) воды :: Очистка воды :: Транспортировка воды :: Сбыт (распределение) воды :: Подвоз воды","31076837","Приказ МЖКХ РБ","приказ","04/06-326","12.09.2018","https://portal.eias.ru/Portal/DownloadPage.aspx?type=12&guid=f004170d-64dc-4193-aeb0-e95130df99f1"]
[24,"Инвестиционная программа от 25.05.2018 МУП \"Дуванводоканал\" МР Дуванский район РБ в сфере водоснабжения по развитию системы водоснабжения на 2019-2020 годы","01.01.2019","31.12.2020","51","МУП \"Дуванводоканал\" МР Дуванский район РБ","0220004836","022001001","6 52 43 | Муниципальные унитарные предприятия",null,"Производство (подъём / добыча) воды :: Транспортировка воды","26353627","Инвестиционная программа МУП \"Дуванводоканал\" по развитию системы водоснабжения на 2019-2020 годы","приказ","04/06-187","25.05.2018","https://portal.eias.ru/Portal/DownloadPage.aspx?type=12&guid=379c396a-217a-4876-92ed-80d3eade04ae"]
[25,"Инвестиционная программа от 26.10.2018 ООО \"Водолей\" Илишевского района в сфере холодного водоснабжения по модернизации и реконструкции системы водоснабжения, на территории муниципального района Илишевский на 2019-2023 годы","01.01.2019","31.12.2023","50,8497512857","ООО \"Водолей\" Илишевского района","0225009394","022501001","1 23 00 | Общества с ограниченной ответственностью",null,"Производство (подъём / добыча) воды :: Очистка воды :: Транспортировка воды","27129164","Об утверждении инвестиционных программ","приказ","04/08-374","26.10.2018","https://portal.eias.ru/Portal/DownloadPage.aspx?type=12&guid=86b3c033-b63b-4e47-afba-9303781ce2f1"]
[26,"Инвестиционная программа от 29.11.2017 АО «Башкоммунводоканал» в сфере водоснабжения и водоотведения по комплексному развитию единого комплекса объектов, на территории городского поселения Город Бирск, Бирский муниципальный район на 2018-2020 годы","01.01.2018","31.12.2020","451,75","АО «Башкоммунводоканал»","0278181938","027801001","1 22 47 | Публичные акционерные общества",null,"Производство (подъём / добыча) воды :: Транспортировка воды :: Сбыт (распределение) воды","30990030","Инвестиционная программа ОАО \"Башкоммунводоканал\"","приказ","04/06-434","29.11.2017","https://portal.eias.ru/Portal/DownloadPage.aspx?type=12&guid=5d3265d4-b1b5-4848-8e74-f8280a335a01"]

{"sheet":"REESTR_IP_2018","index":26,"n_rows":0,"n_cols":0,"rows_kept":0,"hidden":true}

{"sheet":"REESTR_TER","index":27,"n_rows":0,"n_cols":0,"rows_kept":0,"hidden":true}

{"sheet":"REESTR_CNCSN","index":28,"n_rows":0,"n_cols":0,"rows_kept":0,"hidden":true}

{"sheet":"REESTR_OBJECT","index":29,"n_rows":6,"n_cols":25,"rows_kept":6,"hidden":true}
[null,"LGL_ID","NOMER_NAME","ORG_NAME","INN_NAME","KPP_NAME","FIL_NAME","NOMER2_NAME","NMOB_NAME","DET_NAME","L_ADDRESS_MR","L_ADDRESS_MO","L_ADDRESS_OKTMO","L_ADDRESS_LOCATION","L_ADDRESS_LOC_OKTMO","L_ADDRESS_STREET","L_ADDRESS_BUILDING","DET2_NAME","MR_NAME","MO_NAME","OKTMO_NAME","LOCATION_NAME","LOCATION_OKTMO_NAME","L_SERVICE_PRODUCTION","L_SERVICE_TRANSMISSION"]
[1,"4293348495","4293348495","АО \"Водоснабжающая компания\"","0268055772","026801001",null,"1","Насосная станция 1 подъема","НС","Город Стерлитамак","Город Стерлитамак","80745000","г Стерлитамак","80745000001","ул. Ольховская","61а","1","Город Стерлитамак","город Стерлитамак","80745000","г Стерлитамак","80745000001","да","нет"]
[2,"4293348495","4293348495","АО \"Водоснабжающая компания\"","0268055772","026801001",null,"2","Насосная станция 2 подъема","НС","Город Стерлитамак","Город Стерлитамак","80745000","г Стерлитамак","80745000001","ул. Ольховская","61а","1","Город Стерлитамак","город Стерлитамак","80745000","г Стерлитамак","80745000001","да","нет"]
[3,"4293348495","4293348495","АО \"Водоснабжающая компания\"","0268055772","026801001",null,"3","Насосная станция 3 подъема","НС","Город Стерлитамак","Город Стерлитамак","80745000","г Стерлитамак","80745000001","ул. Элеваторная","86а","1","Город Стерлитамак","город Стерлитамак","80745000","г Стерлитамак","80745000001","да","нет"]
[4,"4293348495","4293348495","АО \"Водоснабжающая компания\"","0268055772","026801001",null,"4","Насосная станция подкачки","НС","Город Стерлитамак","Город Стерлитамак","80745000","г Стерлитамак","80745000001","пер. Цветочный","13","1","Город Стерлитамак","город Стерлитамак","80745000","г Стерлитамак","80745000001","да","нет"]
[5,"4293348495","4293348495","АО \"Водоснабжающая компания\"","0268055772","026801001",null,"5","Водопроводная сеть","сеть","Город Стерлитамак","Город Стерлитамак","80745000","г Стерлитамак","80745000001","г. Стерлитамак","/","1","Город Стерлитамак","город Стерлитамак","80745000","г Стерлитамак","80745000001","нет","да"]

{"sheet":"REESTR_STOP_REASON","index":30,"n_rows":3,"n_cols":4,"rows_kept":3,"hidden":true}
[null,"ID","NAME","TYPE"]
[1,"808","выполнение ИП ранее заявленного срока","1"]
[2,"807","прекращение финансирования","1"]

{"sheet":"modClassifierValidate","index":31,"n_rows":0,"n_cols":0,"rows_kept":0,"hidden":true}

{"sheet":"modCheckCyan","index":32,"n_rows":0,"n_cols":0,"rows_kept":0,"hidden":true}

{"sheet":"modHyp","index":33,"n_rows":0,"n_cols":0,"rows_kept":0,"hidden":true}